Body,BodyName,ServiceLabel,ServiceDivisionLabel,ExpenditureCategory,DetailedExpenditureType,DetailedExpenditureCode,DatePaid,TransactionNumber,NetAmount,CapitalOrRevenue,SupplierName
http://statistics.data.gov.uk/doc/local-authority/00DA,Leeds City Council,Central & Corporate,Commercial Services Trading Services,Supplies and Services,Operational Materials,205,07-Feb-14,1402-00001,97.56,R,A & A Electrical Distributors Ltd
http://statistics.data.gov.uk/doc/local-authority/00DA,Leeds City Council,Central & Corporate,Commercial Services Trading Services,Supplies and Services,Operational Materials,205,14-Feb-14,1402-00002,130,R,A & A Electrical Distributors Ltd
http://statistics.data.gov.uk/doc/local-authority/00DA,Leeds City Council,Civic Enterprise Leeds,Commercial Services  ,Supplies and Services,Teaching Materials,203,20-Jan-14,1402-00003,80.49,R,A & L Sunter Ltd
http://statistics.data.gov.uk/doc/local-authority/00DA,Leeds City Council,Central & Corporate,Commercial Services Trading Services,Supplies and Services,Operational Materials,205,28-Feb-14,1402-00004,67.14,R,A Andrews & Sons (Marbles & Tiles)
http://statistics.data.gov.uk/doc/local-authority/00DA,Leeds City Council,Central & Corporate,Commercial Services Trading Services,Supplies and Services,Operational Materials,205,28-Feb-14,1402-00005,395.36,R,A Andrews & Sons (Marbles & Tiles)
http://statistics.data.gov.uk/doc/local-authority/00DA,Leeds City Council,Central & Corporate,Commercial Services Trading Services,Supplies and Services,Operational Materials,205,26-Feb-14,1402-00006,5.5,R,A Andrews & Sons (Marbles & Tiles)
http://statistics.data.gov.uk/doc/local-authority/00DA,Leeds City Council,Central & Corporate,Commercial Services Trading Services,Supplies and Services,Operational Materials,205,26-Feb-14,1402-00007,35.09,R,A Andrews & Sons (Marbles & Tiles)
http://statistics.data.gov.uk/doc/local-authority/00DA,Leeds City Council,Central & Corporate,Commercial Services Trading Services,Supplies and Services,Operational Materials,205,26-Feb-14,1402-00008,12.4,R,A Andrews & Sons (Marbles & Tiles)
http://statistics.data.gov.uk/doc/local-authority/00DA,Leeds City Council,Central & Corporate,Commercial Services Trading Services,Supplies and Services,Operational Materials,205,24-Feb-14,1402-00009,32.2,R,A Andrews & Sons (Marbles & Tiles)
http://statistics.data.gov.uk/doc/local-authority/00DA,Leeds City Council,City Development,Libraries  Arts & Heritage,Supplies and Services,Operational Furniture And Equipment,203,07-Feb-14,1402-00010,50,R,A C Entertainment Technologies Ltd
http://statistics.data.gov.uk/doc/local-authority/00DA,Leeds City Council,City Development,Libraries  Arts & Heritage,Supplies and Services,Operational Furniture And Equipment,203,12-Feb-14,1402-00011,742.35,R,A C Entertainment Technologies Ltd
http://statistics.data.gov.uk/doc/local-authority/00DA,Leeds City Council,City Development,Libraries  Arts & Heritage,Supplies and Services,Operational Furniture And Equipment,203,28-Feb-14,1402-00012,252.4,R,A C Entertainment Technologies Ltd
http://statistics.data.gov.uk/doc/local-authority/00DA,Leeds City Council,City Development,Libraries  Arts & Heritage,Supplies and Services,Operational Materials,205,12-Feb-14,1402-00013,134.7,R,A C Entertainment Technologies Ltd
http://statistics.data.gov.uk/doc/local-authority/00DA,Leeds City Council,City Development,Libraries  Arts & Heritage,Supplies and Services,Operational Materials,205,12-Feb-14,1402-00014,57.3,R,A C Entertainment Technologies Ltd
http://statistics.data.gov.uk/doc/local-authority/00DA,Leeds City Council,Environment & Housing,South South East,Capital,Other Costs,7,14-Feb-14,1402-00015,10,C,REDACTED PERSONAL DATA
http://statistics.data.gov.uk/doc/local-authority/00DA,Leeds City Council,Adult Social Care,Roseville Enterprises,Supplies and Services,Operational Furniture And Equipment,203,14-Feb-14,1402-00016,517.5,R,A D G Engineering Ltd
http://statistics.data.gov.uk/doc/local-authority/00DA,Leeds City Council,Childrens Services,Learning Skills & Universal,Third Party Payments,Services Rendered By Voluntary Sector,505,03-Feb-14,1402-00017,229.85,R,A E Speight
http://statistics.data.gov.uk/doc/local-authority/00DA,Leeds City Council,Childrens Services,Learning Skills & Universal,Third Party Payments,Services Rendered By Voluntary Sector,505,17-Feb-14,1402-00018,644,R,A E Speight
http://statistics.data.gov.uk/doc/local-authority/00DA,Leeds City Council,Childrens Services,Learning Skills & Universal,Third Party Payments,Services Rendered By Other Organisations,511,17-Feb-14,1402-00019,55,R,A Hodgson
http://statistics.data.gov.uk/doc/local-authority/00DA,Leeds City Council,City Development,Recreation,Employees,Training Costs,71,04-Feb-14,1402-00020,40.75,R,REDACTED PERSONAL DATA
http://statistics.data.gov.uk/doc/local-authority/00DA,Leeds City Council,City Development,Libraries  Arts & Heritage,Supplies and Services,Other Hired And Contracted Services,265,11-Feb-14,1402-00021,285,R,A J Carter
http://statistics.data.gov.uk/doc/local-authority/00DA,Leeds City Council,Central & Corporate,Commercial Services Trading Services,Supplies and Services,Operational Materials,205,21-Feb-14,1402-00022,893,R,A J H  Pump Supply & Repair Ltd
http://statistics.data.gov.uk/doc/local-authority/00DA,Leeds City Council,Central & Corporate,Commercial Services Trading Services,Supplies and Services,Operational Materials,205,28-Feb-14,1402-00023,3082,R,A J H  Pump Supply & Repair Ltd
http://statistics.data.gov.uk/doc/local-authority/00DA,Leeds City Council,City Development,Economic Development,Supplies and Services,Resaleable Materials,204,27-Feb-14,1402-00024,380,R,A J Promotions
http://statistics.data.gov.uk/doc/local-authority/00DA,Leeds City Council,City Development,Economic Development,Supplies and Services,Resaleable Materials,204,21-Feb-14,1402-00025,309.3,R,A J Promotions
http://statistics.data.gov.uk/doc/local-authority/00DA,Leeds City Council,City Development,Libraries  Arts & Heritage,Supplies and Services,Libraries,591,07-Feb-14,1402-00026,268.36,R,A J Promotions
http://statistics.data.gov.uk/doc/local-authority/00DA,Leeds City Council,Childrens Services,Learning Skills & Universal,Third Party Payments,Services Rendered By Other Organisations,511,17-Feb-14,1402-00027,88,R,A K Walsh
http://statistics.data.gov.uk/doc/local-authority/00DA,Leeds City Council,Childrens Services,Learning Skills & Universal,Third Party Payments,Services Rendered By Voluntary Sector,505,26-Feb-14,1402-00028,385,R,A Little Something Extra Ltd
http://statistics.data.gov.uk/doc/local-authority/00DA,Leeds City Council,Childrens Services,Learning Skills & Universal,Third Party Payments,Services Rendered By Voluntary Sector,505,28-Feb-14,1402-00029,220,R,A Little Something Extra Ltd
http://statistics.data.gov.uk/doc/local-authority/00DA,Leeds City Council,Childrens Services,Learning Skills & Universal,Third Party Payments,Services Rendered By Other Organisations,511,17-Feb-14,1402-00030,20,R,A Longbottom
http://statistics.data.gov.uk/doc/local-authority/00DA,Leeds City Council,Central & Corporate,Customer Services,Supplies and Services,Other Hired And Contracted Services,265,04-Feb-14,1402-00031,107.5,R,A Mohammed
http://statistics.data.gov.uk/doc/local-authority/00DA,Leeds City Council,Central & Corporate,Customer Services,Supplies and Services,Other Hired And Contracted Services,265,06-Feb-14,1402-00032,573.15,R,A Musalam
http://statistics.data.gov.uk/doc/local-authority/00DA,Leeds City Council,Adult Social Care,Services For Older People Under 65 P/Dis,Transfer Payments,Direct Payments,626,12-Feb-14,1402-00033,1006.92,R,REDACTED PERSONAL DATA
http://statistics.data.gov.uk/doc/local-authority/00DA,Leeds City Council,City Development,Libraries  Arts & Heritage,Supplies and Services,Books & Audio-Visual Materials,206,06-Feb-14,1402-00034,125.6,R,A S Jhagra
http://statistics.data.gov.uk/doc/local-authority/00DA,Leeds City Council,Central & Corporate,Customer Services,Supplies and Services,Other Hired And Contracted Services,265,04-Feb-14,1402-00035,172.75,R,A Sheikholeslami
http://statistics.data.gov.uk/doc/local-authority/00DA,Leeds City Council,Central & Corporate,Support And Facilities General Fund,Supplies and Services,Other Hired And Contracted Services,265,26-Feb-14,1402-00036,70,R,A Star Couriers Ltd
http://statistics.data.gov.uk/doc/local-authority/00DA,Leeds City Council,Childrens Services,Learning Skills & Universal,Third Party Payments,Services Rendered By Other Organisations,511,26-Feb-14,1402-00037,974.85,R,A Walding
http://statistics.data.gov.uk/doc/local-authority/00DA,Leeds City Council,Childrens Services,Learning Skills & Universal,Third Party Payments,Services Rendered By Other Organisations,511,17-Feb-14,1402-00038,100,R,A Walding
http://statistics.data.gov.uk/doc/local-authority/00DA,Leeds City Council,Childrens Services,Learning Skills & Universal,Third Party Payments,Services Rendered By Other Organisations,511,26-Feb-14,1402-00039,2607,R,A Walding
http://statistics.data.gov.uk/doc/local-authority/00DA,Leeds City Council,Adult Social Care,Services For Older People Under 65 P/Dis,Transfer Payments,Direct Payments,626,12-Feb-14,1402-00040,1384.16,R,REDACTED PERSONAL DATA
http://statistics.data.gov.uk/doc/local-authority/00DA,Leeds City Council,City Development,Libraries  Arts And Heritage  ,Supplies and Services,Teaching Materials,202,10-Jan-14,1402-00041,106.98,R,A2z Kids
http://statistics.data.gov.uk/doc/local-authority/00DA,Leeds City Council,Adult Social Care,Services For Older People Under 65 P/Dis,Transfer Payments,Personalised Budgets,627,12-Feb-14,1402-00042,822.4,R,REDACTED PERSONAL DATA
http://statistics.data.gov.uk/doc/local-authority/00DA,Leeds City Council,Childrens Services,Safeguarding Targeted & Specialist,Supplies and Services,Operational Furniture And Equipment,203,19-Feb-14,1402-00043,670,R,Aat (Gb) Ltd
http://statistics.data.gov.uk/doc/local-authority/00DA,Leeds City Council as Accountable Body,Social Services Pooled Budgets,Leeds Community Equip Store Pooled Budgt,Supplies and Services,Other Equipment,203,12-Feb-14,1402-00044,190,R,Aat (Gb) Ltd
http://statistics.data.gov.uk/doc/local-authority/00DA,Leeds City Council,Central & Corporate,Leeds Shared Services,Supplies and Services,Computer Software & Equipment,214,07-Feb-14,1402-00045,5280,R,Abacus E-Media
http://statistics.data.gov.uk/doc/local-authority/00DA,Leeds City Council,Childrens Services,Safeguarding Targeted & Specialist,Support Services,Legal Disbursements,411,14-Feb-14,1402-00046,19.32,R,Abacus Express Limited
http://statistics.data.gov.uk/doc/local-authority/00DA,Leeds City Council,Childrens Services,Safeguarding Targeted & Specialist,Support Services,Legal Disbursements,411,12-Feb-14,1402-00047,21.45,R,Abacus Express Limited
http://statistics.data.gov.uk/doc/local-authority/00DA,Leeds City Council,City Development,Planning & Sustainable Development,Support Services,Legal Disbursements,411,14-Feb-14,1402-00048,238.66,R,Abacus Express Limited
http://statistics.data.gov.uk/doc/local-authority/00DA,Leeds City Council,Adult Social Care,Services For Older People - 65 And Over,Third Party Payments,Nursing Care Dementia,574,12-Feb-14,1402-00049,2305.64,R,Abbendon Nursing Home
http://statistics.data.gov.uk/doc/local-authority/00DA,Leeds City Council,Environment & Housing,Environmental Action (South),Supplies and Services,Other Hired And Contracted Services,265,05-Feb-14,1402-00050,73.26,R,Abbey House Veterinary Hospital
http://statistics.data.gov.uk/doc/local-authority/00DA,Leeds City Council,Environment & Housing,Environmental Action (South),Supplies and Services,Other Hired And Contracted Services,265,05-Feb-14,1402-00051,110.1,R,Abbey House Veterinary Hospital
http://statistics.data.gov.uk/doc/local-authority/00DA,Leeds City Council,Environment & Housing,Environmental Action (South),Supplies and Services,Other Hired And Contracted Services,265,05-Feb-14,1402-00052,56.39,R,Abbey House Veterinary Hospital
http://statistics.data.gov.uk/doc/local-authority/00DA,Leeds City Council,Environment & Housing,Environmental Action (South),Supplies and Services,Other Hired And Contracted Services,265,27-Feb-14,1402-00053,40.09,R,Abbey House Veterinary Hospital
http://statistics.data.gov.uk/doc/local-authority/00DA,Leeds City Council,Adult Social Care,Services For Older People - 65 And Over,Third Party Payments,Residential Care Dementia,571,12-Feb-14,1402-00054,1142.2,R,Abbey Lea Residential Care Home
http://statistics.data.gov.uk/doc/local-authority/00DA,Leeds City Council,Childrens Services,Safeguarding Targeted & Specialist,Third Party Payments,Leaving Care Allowances,555,12-Feb-14,1402-00055,360,R,Abbey Taxis (Boston) Ltd
http://statistics.data.gov.uk/doc/local-authority/00DA,Leeds City Council,Adult Social Care,Services For Older People - 65 And Over,Third Party Payments,Residential,580,12-Feb-14,1402-00056,306.13,R,Abbeyfield Grove House Residential
http://statistics.data.gov.uk/doc/local-authority/00DA,Leeds City Council,Childrens Services,Learning Skills & Universal,Third Party Payments,Services Rendered By Other Organisations,511,17-Feb-14,1402-00057,1080,R,Abc Daycare
http://statistics.data.gov.uk/doc/local-authority/00DA,Leeds City Council,Childrens Services,Learning Skills & Universal,Third Party Payments,Services Rendered By Other Organisations,511,03-Feb-14,1402-00058,145.5,R,Abc Nursery At Lufc
http://statistics.data.gov.uk/doc/local-authority/00DA,Leeds City Council,Childrens Services,Learning Skills & Universal,Third Party Payments,Services Rendered By Other Organisations,511,17-Feb-14,1402-00059,1144,R,Abc Nursery At Lufc
http://statistics.data.gov.uk/doc/local-authority/00DA,Leeds City Council,Central & Corporate,Customer Services,Supplies and Services,Other Hired And Contracted Services,265,04-Feb-14,1402-00060,51.5,R,Abdur Rahman Khan
http://statistics.data.gov.uk/doc/local-authority/00DA,Leeds City Council,Adult Social Care,Services For Older People - 65 And Over,Third Party Payments,Nursing Home,570,12-Feb-14,1402-00061,9662.32,R,Aberford Hall
http://statistics.data.gov.uk/doc/local-authority/00DA,Leeds City Council,Adult Social Care,Services For Older People - 65 And Over,Third Party Payments,Nursing Care Dementia,574,12-Feb-14,1402-00062,5528.88,R,Aberford Hall
http://statistics.data.gov.uk/doc/local-authority/00DA,Leeds City Council,Adult Social Care,Services For Older People - 65 And Over,Third Party Payments,Residential,580,12-Feb-14,1402-00063,2381.32,R,Aberford Hall
http://statistics.data.gov.uk/doc/local-authority/00DA,Leeds City Council,Central & Corporate,Commercial Services Trading Services,Supplies and Services,Operational Materials,205,27-Feb-14,1402-00064,10,R,Abi Garage Doors Ltd
http://statistics.data.gov.uk/doc/local-authority/00DA,Leeds City Council,Central & Corporate,Commercial Services Trading Services,Supplies and Services,Operational Materials,205,27-Feb-14,1402-00065,225,R,Abi Garage Doors Ltd
http://statistics.data.gov.uk/doc/local-authority/00DA,Leeds City Council,Childrens Services,Safeguarding Targeted & Specialist,Third Party Payments,Family Placements,562,27-Feb-14,1402-00066,8,R,REDACTED PERSONAL DATA
http://statistics.data.gov.uk/doc/local-authority/00DA,Leeds City Council as Accountable Body,Social Services Pooled Budgets,Jcs For People With Learning Disabilitie,Transfer Payments,Personal Budgets,627,12-Feb-14,1402-00067,913,R,REDACTED PERSONAL DATA
http://statistics.data.gov.uk/doc/local-authority/00DA,Leeds City Council,Central & Corporate,Commercial Services Trading Services,Supplies and Services,Other Hired And Contracted Services,265,14-Feb-14,1402-00068,3700,R,Able Bathing & Building Contractors Ltd
http://statistics.data.gov.uk/doc/local-authority/00DA,Leeds City Council,Environment & Housing,Environmental Health,Capital,Construction,3,06-Feb-14,1402-00069,2890,C,Able Bathing & Building Contractors Ltd
http://statistics.data.gov.uk/doc/local-authority/00DA,Leeds City Council,Environment & Housing,Environmental Health,Capital,Construction,3,27-Feb-14,1402-00070,4460,C,Able Bathing & Building Contractors Ltd
http://statistics.data.gov.uk/doc/local-authority/00DA,Leeds City Council,Environment & Housing,Environmental Health,Capital,Construction,3,07-Feb-14,1402-00071,4150,C,Able Bathing & Building Contractors Ltd
http://statistics.data.gov.uk/doc/local-authority/00DA,Leeds City Council,Environment & Housing,Environmental Health,Capital,Construction,3,26-Feb-14,1402-00072,4150,C,Able Bathing & Building Contractors Ltd
http://statistics.data.gov.uk/doc/local-authority/00DA,Leeds City Council,Environment & Housing,Environmental Health,Capital,Construction,3,26-Feb-14,1402-00073,4150,C,Able Bathing & Building Contractors Ltd
http://statistics.data.gov.uk/doc/local-authority/00DA,Leeds City Council,Environment & Housing,Environmental Health,Capital,Construction,3,12-Feb-14,1402-00074,4150,C,Able Bathing & Building Contractors Ltd
http://statistics.data.gov.uk/doc/local-authority/00DA,Leeds City Council,Environment & Housing,Environmental Health,Capital,Construction,3,05-Feb-14,1402-00075,4450,C,Able Bathing & Building Contractors Ltd
http://statistics.data.gov.uk/doc/local-authority/00DA,Leeds City Council,Environment & Housing,Environmental Health,Capital,Construction,3,12-Feb-14,1402-00076,4150,C,Able Bathing & Building Contractors Ltd
http://statistics.data.gov.uk/doc/local-authority/00DA,Leeds City Council,Environment & Housing,Environmental Health,Capital,Construction,3,27-Feb-14,1402-00077,4460.2,C,Able Bathing & Building Contractors Ltd
http://statistics.data.gov.uk/doc/local-authority/00DA,Leeds City Council,Environment & Housing,Environmental Health,Capital,Construction,3,27-Feb-14,1402-00078,4150,C,Able Bathing & Building Contractors Ltd
http://statistics.data.gov.uk/doc/local-authority/00DA,Leeds City Council,Environment & Housing,Environmental Health,Capital,Construction,3,12-Feb-14,1402-00079,4150,C,Able Bathing & Building Contractors Ltd
http://statistics.data.gov.uk/doc/local-authority/00DA,Leeds City Council,Environment & Housing,Environmental Health,Capital,Construction,3,26-Feb-14,1402-00080,2890,C,Able Bathing & Building Contractors Ltd
http://statistics.data.gov.uk/doc/local-authority/00DA,Leeds City Council,Environment & Housing,Environmental Health,Capital,Construction,3,27-Feb-14,1402-00081,4150,C,Able Bathing & Building Contractors Ltd
http://statistics.data.gov.uk/doc/local-authority/00DA,Leeds City Council,Environment & Housing,Environmental Health,Capital,Construction,3,26-Feb-14,1402-00082,2890,C,Able Bathing & Building Contractors Ltd
http://statistics.data.gov.uk/doc/local-authority/00DA,Leeds City Council,Environment & Housing,Environmental Health,Capital,Construction,3,12-Feb-14,1402-00083,4150,C,Able Bathing & Building Contractors Ltd
http://statistics.data.gov.uk/doc/local-authority/00DA,Leeds City Council,Environment & Housing,Environmental Health,Capital,Construction,3,27-Feb-14,1402-00084,4150,C,Able Bathing & Building Contractors Ltd
http://statistics.data.gov.uk/doc/local-authority/00DA,Leeds City Council,Environment & Housing,Environmental Health,Capital,Construction,3,26-Feb-14,1402-00085,2890,C,Able Bathing & Building Contractors Ltd
http://statistics.data.gov.uk/doc/local-authority/00DA,Leeds City Council,Environment & Housing,Environmental Health,Capital,Construction,3,27-Feb-14,1402-00086,4150,C,Able Bathing & Building Contractors Ltd
http://statistics.data.gov.uk/doc/local-authority/00DA,Leeds City Council,Environment & Housing,Environmental Health,Capital,Construction,3,12-Feb-14,1402-00087,1500,C,Able Bathing & Building Contractors Ltd
http://statistics.data.gov.uk/doc/local-authority/00DA,Leeds City Council,Environment & Housing,Environmental Health,Capital,Construction,3,12-Feb-14,1402-00088,4150,C,Able Bathing & Building Contractors Ltd
http://statistics.data.gov.uk/doc/local-authority/00DA,Leeds City Council,City Development,Economic Development,Supplies and Services,Publication And Promotion,267,21-Feb-14,1402-00089,1000,R,Absolute Design And Print Services Ltd
http://statistics.data.gov.uk/doc/local-authority/00DA,Leeds City Council,Childrens Services,Safeguarding Targeted & Specialist,Employees,Agency Staff,8,28-Feb-14,1402-00090,3414.8,R,Academic Appointments Ltd
http://statistics.data.gov.uk/doc/local-authority/00DA,Leeds City Council,Childrens Services,Safeguarding Targeted & Specialist,Employees,Agency Staff,8,21-Feb-14,1402-00091,2377.65,R,Academic Appointments Ltd
http://statistics.data.gov.uk/doc/local-authority/00DA,Leeds City Council,Childrens Services,Safeguarding Targeted & Specialist,Employees,Agency Staff,8,14-Feb-14,1402-00092,2932.5,R,Academic Appointments Ltd
http://statistics.data.gov.uk/doc/local-authority/00DA,Leeds City Council,Childrens Services,Safeguarding Targeted & Specialist,Employees,Agency Staff,8,07-Feb-14,1402-00093,253.2,R,Academic Appointments Ltd
http://statistics.data.gov.uk/doc/local-authority/00DA,Leeds City Council,Central & Corporate,Leeds Shared Services,Supplies and Services,Consultancy Services,259,06-Feb-14,1402-00094,5700,R,Accenture (Uk) Ltd
http://statistics.data.gov.uk/doc/local-authority/00DA,Leeds City Council,Central & Corporate,Commercial Services Trading Services,Supplies and Services,Operational Materials,205,27-Feb-14,1402-00095,33.1,R,Access Locksmiths (Leeds) Limited
http://statistics.data.gov.uk/doc/local-authority/00DA,Leeds City Council,Central & Corporate,Commercial Services Trading Services,Supplies and Services,Operational Materials,205,27-Feb-14,1402-00096,6.87,R,Access Locksmiths (Leeds) Limited
http://statistics.data.gov.uk/doc/local-authority/00DA,Leeds City Council,Central & Corporate,Commercial Services Trading Services,Supplies and Services,Operational Materials,205,27-Feb-14,1402-00097,22.3,R,Access Locksmiths (Leeds) Limited
http://statistics.data.gov.uk/doc/local-authority/00DA,Leeds City Council,Central & Corporate,Commercial Services Trading Services,Supplies and Services,Operational Materials,205,18-Feb-14,1402-00098,20.98,R,Access Locksmiths (Leeds) Limited
http://statistics.data.gov.uk/doc/local-authority/00DA,Leeds City Council,Central & Corporate,Commercial Services Trading Services,Supplies and Services,Operational Materials,205,18-Feb-14,1402-00099,151.25,R,Access Locksmiths (Leeds) Limited
http://statistics.data.gov.uk/doc/local-authority/00DA,Leeds City Council,Central & Corporate,Commercial Services Trading Services,Supplies and Services,Operational Materials,205,18-Feb-14,1402-00100,12.24,R,Access Locksmiths (Leeds) Limited
http://statistics.data.gov.uk/doc/local-authority/00DA,Leeds City Council,Central & Corporate,Commercial Services Trading Services,Supplies and Services,Operational Materials,205,11-Feb-14,1402-00101,160.96,R,Access Locksmiths (Leeds) Limited
http://statistics.data.gov.uk/doc/local-authority/00DA,Leeds City Council,Central & Corporate,Commercial Services Trading Services,Supplies and Services,Operational Materials,205,11-Feb-14,1402-00102,10.83,R,Access Locksmiths (Leeds) Limited
http://statistics.data.gov.uk/doc/local-authority/00DA,Leeds City Council,Central & Corporate,Commercial Services Trading Services,Supplies and Services,Operational Materials,205,11-Feb-14,1402-00103,124.45,R,Access Locksmiths (Leeds) Limited
http://statistics.data.gov.uk/doc/local-authority/00DA,Leeds City Council,Central & Corporate,Commercial Services Trading Services,Supplies and Services,Operational Materials,205,06-Feb-14,1402-00104,37.4,R,Access Locksmiths (Leeds) Limited
http://statistics.data.gov.uk/doc/local-authority/00DA,Leeds City Council,Central & Corporate,Commercial Services Trading Services,Supplies and Services,Operational Materials,205,06-Feb-14,1402-00105,15,R,Access Locksmiths (Leeds) Limited
http://statistics.data.gov.uk/doc/local-authority/00DA,Leeds City Council,Environment & Housing,Hra,Premises,General Maintenance,104,11-Feb-14,1402-00106,176.93,R,Access Locksmiths (Leeds) Limited
http://statistics.data.gov.uk/doc/local-authority/00DA,Leeds City Council,Environment & Housing,Hra,Premises,General Maintenance,104,11-Feb-14,1402-00107,50,R,Access Locksmiths (Leeds) Limited
http://statistics.data.gov.uk/doc/local-authority/00DA,Leeds City Council,Environment & Housing,Hra,Premises,General Maintenance,104,11-Feb-14,1402-00108,103.7,R,Access Locksmiths (Leeds) Limited
http://statistics.data.gov.uk/doc/local-authority/00DA,Leeds City Council,Environment & Housing,Hra,Premises,General Maintenance,104,11-Feb-14,1402-00109,207.4,R,Access Locksmiths (Leeds) Limited
http://statistics.data.gov.uk/doc/local-authority/00DA,Leeds City Council,Environment & Housing,Hra,Premises,General Maintenance,104,14-Feb-14,1402-00110,15,R,Access Locksmiths (Leeds) Limited
http://statistics.data.gov.uk/doc/local-authority/00DA,Leeds City Council,Environment & Housing,Hra,Premises,General Maintenance,104,18-Feb-14,1402-00111,311.1,R,Access Locksmiths (Leeds) Limited
http://statistics.data.gov.uk/doc/local-authority/00DA,Leeds City Council,Environment & Housing,Hra,Premises,General Maintenance,104,18-Feb-14,1402-00112,207.4,R,Access Locksmiths (Leeds) Limited
http://statistics.data.gov.uk/doc/local-authority/00DA,Leeds City Council,Environment & Housing,Hra,Supplies and Services,Operational Materials,205,11-Feb-14,1402-00113,51.85,R,Access Locksmiths (Leeds) Limited
http://statistics.data.gov.uk/doc/local-authority/00DA,Leeds City Council,Environment & Housing,Hra,Supplies and Services,Office Consumables,210,06-Feb-14,1402-00114,10,R,Access Locksmiths (Leeds) Limited
http://statistics.data.gov.uk/doc/local-authority/00DA,Leeds City Council,Central & Corporate,Commercial Services Trading Services,Supplies and Services,Operational Materials,205,07-Feb-14,1402-00115,380.8,R,Access Opening Systems Limited
http://statistics.data.gov.uk/doc/local-authority/00DA,Leeds City Council,Central & Corporate,Commercial Services Trading Services,Supplies and Services,Operational Materials,205,07-Feb-14,1402-00116,112,R,Access Opening Systems Limited
http://statistics.data.gov.uk/doc/local-authority/00DA,Leeds City Council,Central & Corporate,Commercial Services Trading Services,Supplies and Services,Operational Materials,205,14-Feb-14,1402-00117,85.5,R,Access Opening Systems Limited
http://statistics.data.gov.uk/doc/local-authority/00DA,Leeds City Council,Central & Corporate,Commercial Services Trading Services,Supplies and Services,Operational Materials,205,14-Feb-14,1402-00118,275.04,R,Access Opening Systems Limited
http://statistics.data.gov.uk/doc/local-authority/00DA,Leeds City Council,Central & Corporate,Commercial Services Trading Services,Supplies and Services,Operational Materials,205,26-Feb-14,1402-00119,85.5,R,Access Opening Systems Limited
http://statistics.data.gov.uk/doc/local-authority/00DA,Leeds City Council,City Development,Libraries  Arts & Heritage,Transport,Hire Of Movable Plant & Machinery,315,06-Feb-14,1402-00120,92,R,Ace Container Services Limited
http://statistics.data.gov.uk/doc/local-authority/00DA,Leeds City Council,City Development,Recreation,Supplies and Services,Other Hired And Contracted Services,265,05-Feb-14,1402-00121,139.5,R,Ace Container Services Limited
http://statistics.data.gov.uk/doc/local-authority/00DA,Leeds City Council,City Development,Recreation,Supplies and Services,Other Hired And Contracted Services,265,26-Feb-14,1402-00122,126,R,Ace Container Services Limited
http://statistics.data.gov.uk/doc/local-authority/00DA,Leeds City Council,City Development,Recreation,Transport,External Hire -Occasional,304,28-Feb-14,1402-00123,116.2,R,Ace Container Services Limited
http://statistics.data.gov.uk/doc/local-authority/00DA,Leeds City Council,Environment & Housing,Parks & Countryside,Supplies and Services,Operational Materials,205,14-Feb-14,1402-00124,350,R,Ace Engineers (Morley) Ltd
http://statistics.data.gov.uk/doc/local-authority/00DA,Leeds City Council,Environment & Housing,Parks & Countryside,Supplies and Services,Operational Materials,205,19-Feb-14,1402-00125,4158,R,Ace Engineers (Morley) Ltd
http://statistics.data.gov.uk/doc/local-authority/00DA,Leeds City Council,Environment & Housing,Parks & Countryside,Capital,Furniture And Equipment,5,14-Feb-14,1402-00126,350,C,Ace Engineers (Morley) Ltd
http://statistics.data.gov.uk/doc/local-authority/00DA,Leeds City Council,Childrens Services,Safeguarding Targeted & Specialist,Third Party Payments,Independent Fostering Agencies,509,27-Feb-14,1402-00127,5181.34,R,Acorn House (Fostering Services) Ltd
http://statistics.data.gov.uk/doc/local-authority/00DA,Leeds City Council,City Development,Libraries  Arts & Heritage,Supplies and Services,Operational Furniture And Equipment,203,14-Feb-14,1402-00128,27000,R,Acorn Scaffolding (Yorkshire) Ltd
http://statistics.data.gov.uk/doc/local-authority/00DA,Leeds City Council,City Development,Libraries  Arts & Heritage,Supplies and Services,Operational Furniture And Equipment,203,28-Feb-14,1402-00129,454,R,Acorn Scaffolding (Yorkshire) Ltd
http://statistics.data.gov.uk/doc/local-authority/00DA,Leeds City Council,City Development,Libraries  Arts & Heritage,Supplies and Services,Operational Furniture And Equipment,203,28-Feb-14,1402-00130,-454,R,Acorn Scaffolding (Yorkshire) Ltd
http://statistics.data.gov.uk/doc/local-authority/00DA,Leeds City Council,Childrens Services,Learning Skills & Universal,Third Party Payments,Services Rendered By Other Organisations,511,17-Feb-14,1402-00131,303,R,Acorns Nursery
http://statistics.data.gov.uk/doc/local-authority/00DA,Leeds City Council,Adult Social Care,Services For Adults Under 65 Mental/Dis,Third Party Payments,Residential,580,12-Feb-14,1402-00132,4258.12,R,Acre Green
http://statistics.data.gov.uk/doc/local-authority/00DA,Leeds City Council,Adult Social Care,Services For Older People - 65 And Over,Third Party Payments,Nursing Home,570,12-Feb-14,1402-00133,15933.61,R,Acre Green
http://statistics.data.gov.uk/doc/local-authority/00DA,Leeds City Council,Adult Social Care,Services For Older People - 65 And Over,Third Party Payments,Residential,580,12-Feb-14,1402-00134,27659.74,R,Acre Green
http://statistics.data.gov.uk/doc/local-authority/00DA,Leeds City Council,Adult Social Care,Services For Older People Under 65 P/Dis,Third Party Payments,Nursing Home,570,12-Feb-14,1402-00135,1350,R,Acre Green
http://statistics.data.gov.uk/doc/local-authority/00DA,Leeds City Council,Childrens Services,Learning Skills & Universal,Third Party Payments,Services Rendered By Other Organisations,511,17-Feb-14,1402-00136,135,R,Acre Wood Day Nursery
http://statistics.data.gov.uk/doc/local-authority/00DA,Leeds City Council,Civic Enterprise Leeds,Commercial Services  ,Supplies and Services,Office Consumables,210,16-Jan-14,1402-00137,20.29,R,Acs Business Supplies Lt
http://statistics.data.gov.uk/doc/local-authority/00DA,Leeds City Council,Central & Corporate,Executive Support,Supplies and Services,Schools Examination Entry Fees,269,28-Feb-14,1402-00138,3360,R,Acsca
http://statistics.data.gov.uk/doc/local-authority/00DA,Leeds City Council,Adult Social Care,Services For Adults Under 65 Mental/Dis,Third Party Payments,Payments To Voluntary Organisations,561,14-Feb-14,1402-00139,133284.5,R,Action For Blind People
http://statistics.data.gov.uk/doc/local-authority/00DA,Leeds City Council,Childrens Services,Safeguarding Targeted & Specialist,Third Party Payments,Independent Fostering Agencies,509,21-Feb-14,1402-00140,4776.48,R,Action For Children
http://statistics.data.gov.uk/doc/local-authority/00DA,Leeds City Council,Childrens Services,Safeguarding Targeted & Specialist,Third Party Payments,Independent Fostering Agencies,509,21-Feb-14,1402-00141,5163.67,R,Action For Children
http://statistics.data.gov.uk/doc/local-authority/00DA,Leeds City Council,Childrens Services,Safeguarding Targeted & Specialist,Third Party Payments,Independent Fostering Agencies,509,21-Feb-14,1402-00142,4649.38,R,Action For Children
http://statistics.data.gov.uk/doc/local-authority/00DA,Leeds City Council,Childrens Services,Safeguarding Targeted & Specialist,Third Party Payments,Interagency Adoptions,559,17-Feb-14,1402-00143,1194,R,Action For Children
http://statistics.data.gov.uk/doc/local-authority/00DA,Leeds City Council,Strategic Accounts,Miscellaneous,Supplies and Services,Non-Recurring Grants,227,10-Feb-14,1402-00144,300,R,Action For Gipton Elderly
http://statistics.data.gov.uk/doc/local-authority/00DA,Leeds City Council,City Development,Planning & Sustainable Development,Income,Planning Fees,939,06-Feb-14,1402-00145,95,R,Action Karts Ltd
http://statistics.data.gov.uk/doc/local-authority/00DA,Leeds City Council,Central & Corporate,Customer Services,Supplies and Services,Office Consumables,210,21-Feb-14,1402-00146,41,R,Action On Pain
http://statistics.data.gov.uk/doc/local-authority/00DA,Leeds City Council,Environment & Housing,Hra,Supplies and Services,Grant Related Expenditure,298,13-Feb-14,1402-00147,190,R,Active Cleaning Solutions Ltd
http://statistics.data.gov.uk/doc/local-authority/00DA,Leeds City Council,Environment & Housing,Hra,Supplies and Services,Grant Related Expenditure,298,19-Feb-14,1402-00148,650,R,Active Cleaning Solutions Ltd
http://statistics.data.gov.uk/doc/local-authority/00DA,Leeds City Council,Environment & Housing,Hra,Supplies and Services,Grant Related Expenditure,298,14-Feb-14,1402-00149,585,R,Active Cleaning Solutions Ltd
http://statistics.data.gov.uk/doc/local-authority/00DA,Leeds City Council,Childrens Services,Safeguarding Targeted & Specialist,Supplies and Services,General Amenity For Clients/Residents,285,17-Feb-14,1402-00150,245,R,Active Hire (Leeds) Ltd
http://statistics.data.gov.uk/doc/local-authority/00DA,Leeds City Council,Childrens Services,Safeguarding Targeted & Specialist,Supplies and Services,General Amenity For Clients/Residents,285,18-Feb-14,1402-00151,680,R,Active Hire (Leeds) Ltd
http://statistics.data.gov.uk/doc/local-authority/00DA,Leeds City Council,Childrens Services,Learning Skills & Universal,Third Party Payments,Services Rendered By Other Organisations,511,17-Feb-14,1402-00152,434,R,Active Kids Day Nursery
http://statistics.data.gov.uk/doc/local-authority/00DA,Leeds City Council,Environment & Housing,Parks & Countryside,Supplies and Services,Bought In Professional Services,277,06-Feb-14,1402-00153,3476.27,R,REDACTED COMMERCIAL CONFIDENTIALITY
http://statistics.data.gov.uk/doc/local-authority/00DA,Leeds City Council,Central & Corporate,Support And Facilities General Fund,Supplies and Services,Other Hired And Contracted Services,265,26-Feb-14,1402-00154,53.35,R,Ad3 Envelope Printers Limited
http://statistics.data.gov.uk/doc/local-authority/00DA,Leeds City Council,Central & Corporate,Support And Facilities General Fund,Supplies and Services,Other Hired And Contracted Services,265,12-Feb-14,1402-00155,107,R,Ad3 Envelope Printers Limited
http://statistics.data.gov.uk/doc/local-authority/00DA,Leeds City Council,Adult Social Care,Services For Older People Under 65 P/Dis,Transfer Payments,Personalised Budgets,627,12-Feb-14,1402-00156,713.88,R,REDACTED PERSONAL DATA
http://statistics.data.gov.uk/doc/local-authority/00DA,Leeds City Council as Accountable Body,Social Services Pooled Budgets,Jcs For People With Learning Disabilitie,Transfer Payments,Direct Payments,626,12-Feb-14,1402-00157,1570.68,R,REDACTED PERSONAL DATA
http://statistics.data.gov.uk/doc/local-authority/00DA,Leeds City Council,Adult Social Care,Services For Older People Under 65 P/Dis,Transfer Payments,Personalised Budgets,627,12-Feb-14,1402-00158,576,R,REDACTED PERSONAL DATA
http://statistics.data.gov.uk/doc/local-authority/00DA,Leeds City Council,Adult Social Care,Services For Adults Under 65 Mental/Dis,Transfer Payments,Direct Payments,626,12-Feb-14,1402-00159,444.4,R,REDACTED PERSONAL DATA
http://statistics.data.gov.uk/doc/local-authority/00DA,Leeds City Council,City Development,Recreation,Employees,Training Costs,71,27-Feb-14,1402-00160,40.75,R,REDACTED PERSONAL DATA
http://statistics.data.gov.uk/doc/local-authority/00DA,Leeds City Council as Accountable Body,Social Services Pooled Budgets,Jcs For People With Learning Disabilitie,Transfer Payments,Direct Payments,626,12-Feb-14,1402-00161,859.6,R,REDACTED PERSONAL DATA
http://statistics.data.gov.uk/doc/local-authority/00DA,Leeds City Council,Environment & Housing,Parks & Countryside,Supplies and Services,Other Hired And Contracted Services,265,18-Feb-14,1402-00162,5950,R,Addlestone Moumouris Orme Sixsmith
http://statistics.data.gov.uk/doc/local-authority/00DA,Leeds City Council,Childrens Services,Learning Skills & Universal,Employees,Agency Staff,8,21-Feb-14,1402-00163,159.96,R,Adecco Uk Ltd
http://statistics.data.gov.uk/doc/local-authority/00DA,Leeds City Council,Childrens Services,Learning Skills & Universal,Employees,Agency Staff,8,21-Feb-14,1402-00164,165.12,R,Adecco Uk Ltd
http://statistics.data.gov.uk/doc/local-authority/00DA,Leeds City Council,Childrens Services,Learning Skills & Universal,Employees,Agency Staff,8,21-Feb-14,1402-00165,376.68,R,Adecco Uk Ltd
http://statistics.data.gov.uk/doc/local-authority/00DA,Leeds City Council,Childrens Services,Learning Skills & Universal,Employees,Agency Staff,8,21-Feb-14,1402-00166,407.64,R,Adecco Uk Ltd
http://statistics.data.gov.uk/doc/local-authority/00DA,Leeds City Council,Childrens Services,Learning Skills & Universal,Employees,Agency Staff,8,21-Feb-14,1402-00167,322.5,R,Adecco Uk Ltd
http://statistics.data.gov.uk/doc/local-authority/00DA,Leeds City Council,Childrens Services,Learning Skills & Universal,Employees,Agency Staff,8,21-Feb-14,1402-00168,407.64,R,Adecco Uk Ltd
http://statistics.data.gov.uk/doc/local-authority/00DA,Leeds City Council,Childrens Services,Learning Skills & Universal,Employees,Agency Staff,8,21-Feb-14,1402-00169,392.16,R,Adecco Uk Ltd
http://statistics.data.gov.uk/doc/local-authority/00DA,Leeds City Council,Childrens Services,Learning Skills & Universal,Third Party Payments,Services Rendered By Voluntary Sector,505,17-Feb-14,1402-00170,512,R,Adel Pre School
http://statistics.data.gov.uk/doc/local-authority/00DA,Leeds City Council,Childrens Services,Learning Skills & Universal,Third Party Payments,Services Rendered By Voluntary Sector,505,18-Feb-14,1402-00171,1465.58,R,Adel Pre School
http://statistics.data.gov.uk/doc/local-authority/00DA,Leeds City Council,Children's Services,Safeguarding  Targeted & Specialist  ,Supplies and Services,Food & Drink,231,20-Jan-14,1402-00172,5.43,R,Adel Wood Stores
http://statistics.data.gov.uk/doc/local-authority/00DA,Leeds City Council,Adult Social Care,Services For Older People Under 65 P/Dis,Transfer Payments,Personalised Budgets,627,12-Feb-14,1402-00173,1866.32,R,REDACTED PERSONAL DATA
http://statistics.data.gov.uk/doc/local-authority/00DA,Leeds City Council,Adult Social Care,Services For Older People - 65 And Over,Third Party Payments,Nursing Home,570,12-Feb-14,1402-00174,1290,R,Aden House
http://statistics.data.gov.uk/doc/local-authority/00DA,Leeds City Council,Adult Social Care,Services For Older People - 65 And Over,Third Party Payments,Residential Care Dementia,571,12-Feb-14,1402-00175,1269.04,R,Aden House
http://statistics.data.gov.uk/doc/local-authority/00DA,Leeds City Council,Public Health,Public Health  ,Supplies and Services,Printing,215,24-Jan-14,1402-00176,86.39,R,Adfam
http://statistics.data.gov.uk/doc/local-authority/00DA,Leeds City Council,Central & Corporate,Commercial Services Trading Services,Supplies and Services,Operational Materials,205,28-Feb-14,1402-00177,44.72,R,Adi Global
http://statistics.data.gov.uk/doc/local-authority/00DA,Leeds City Council,Central & Corporate,Commercial Services Trading Services,Supplies and Services,Operational Materials,205,13-Feb-14,1402-00178,-74.44,R,Adi Global
http://statistics.data.gov.uk/doc/local-authority/00DA,Leeds City Council,Central & Corporate,Commercial Services Trading Services,Supplies and Services,Operational Materials,205,26-Feb-14,1402-00179,510,R,Adi Global
http://statistics.data.gov.uk/doc/local-authority/00DA,Leeds City Council,Central & Corporate,Commercial Services Trading Services,Supplies and Services,Operational Materials,205,19-Feb-14,1402-00180,129.41,R,Adi Global
http://statistics.data.gov.uk/doc/local-authority/00DA,Leeds City Council,Central & Corporate,Commercial Services Trading Services,Supplies and Services,Operational Materials,205,19-Feb-14,1402-00181,19.38,R,Adi Global
http://statistics.data.gov.uk/doc/local-authority/00DA,Leeds City Council,Central & Corporate,Commercial Services Trading Services,Supplies and Services,Operational Materials,205,13-Feb-14,1402-00182,832,R,Adi Global
http://statistics.data.gov.uk/doc/local-authority/00DA,Leeds City Council,Central & Corporate,Commercial Services Trading Services,Supplies and Services,Operational Materials,205,13-Feb-14,1402-00183,47.76,R,Adi Global
http://statistics.data.gov.uk/doc/local-authority/00DA,Leeds City Council,Central & Corporate,Commercial Services Trading Services,Supplies and Services,Operational Materials,205,13-Feb-14,1402-00184,30.94,R,Adi Global
http://statistics.data.gov.uk/doc/local-authority/00DA,Leeds City Council,Central & Corporate,Commercial Services Trading Services,Supplies and Services,Operational Materials,205,13-Feb-14,1402-00185,8.07,R,Adi Global
http://statistics.data.gov.uk/doc/local-authority/00DA,Leeds City Council,Central & Corporate,Commercial Services Trading Services,Supplies and Services,Operational Materials,205,07-Feb-14,1402-00186,152.08,R,Adi Global
http://statistics.data.gov.uk/doc/local-authority/00DA,Leeds City Council,Central & Corporate,Commercial Services Trading Services,Supplies and Services,Operational Materials,205,04-Feb-14,1402-00187,28.38,R,Adi Global
http://statistics.data.gov.uk/doc/local-authority/00DA,Leeds City Council,Central & Corporate,Commercial Services Trading Services,Supplies and Services,Operational Materials,205,04-Feb-14,1402-00188,372.2,R,Adi Global
http://statistics.data.gov.uk/doc/local-authority/00DA,Leeds City Council,Central & Corporate,Commercial Services Trading Services,Supplies and Services,Operational Materials,205,04-Feb-14,1402-00189,85.64,R,Adi Global
http://statistics.data.gov.uk/doc/local-authority/00DA,Leeds City Council,Central & Corporate,Commercial Services Trading Services,Supplies and Services,Operational Materials,205,04-Feb-14,1402-00190,5.4,R,Adi Global
http://statistics.data.gov.uk/doc/local-authority/00DA,Leeds City Council,Central & Corporate,Commercial Services Trading Services,Supplies and Services,Operational Materials,205,04-Feb-14,1402-00191,460.9,R,Adi Global
http://statistics.data.gov.uk/doc/local-authority/00DA,Leeds City Council,Central & Corporate,Commercial Services Trading Services,Supplies and Services,Operational Materials,205,04-Feb-14,1402-00192,10.8,R,Adi Global
http://statistics.data.gov.uk/doc/local-authority/00DA,Leeds City Council,Central & Corporate,Commercial Services Trading Services,Supplies and Services,Operational Materials,205,10-Feb-14,1402-00193,648.43,R,Adi Global
http://statistics.data.gov.uk/doc/local-authority/00DA,Leeds City Council,Children's Services,Safeguarding  Targeted & Specialist  ,Supplies and Services,CCTV,252,24-Jan-14,1402-00194,191.64,R,Adi-Gardiner Ltd
http://statistics.data.gov.uk/doc/local-authority/00DA,Leeds City Council,Central & Corporate,Commercial Services Trading Services,Supplies and Services,Other Hired And Contracted Services,265,20-Feb-14,1402-00195,195,R,Admas Limited
http://statistics.data.gov.uk/doc/local-authority/00DA,Leeds City Council,Central & Corporate,Commercial Services Trading Services,Supplies and Services,Other Hired And Contracted Services,265,18-Feb-14,1402-00196,180,R,Admas Limited
http://statistics.data.gov.uk/doc/local-authority/00DA,Leeds City Council,Childrens Services,Safeguarding Targeted & Specialist,Third Party Payments,Interagency Adoptions,559,07-Feb-14,1402-00197,1194.42,R,Adoption Matters Northwest
http://statistics.data.gov.uk/doc/local-authority/00DA,Leeds City Council,Childrens Services,Safeguarding Targeted & Specialist,Third Party Payments,Interagency Adoptions,559,07-Feb-14,1402-00198,750,R,Adoption Matters Northwest
http://statistics.data.gov.uk/doc/local-authority/00DA,Leeds City Council,Childrens Services,Safeguarding Targeted & Specialist,Third Party Payments,Adoptions - Allowances,560,12-Feb-14,1402-00199,286.5,R,Adoption Matters Northwest
http://statistics.data.gov.uk/doc/local-authority/00DA,Leeds City Council,Childrens Services,Safeguarding Targeted & Specialist,Third Party Payments,Adoptions - Allowances,560,14-Feb-14,1402-00200,558,R,Adoption Matters Northwest
http://statistics.data.gov.uk/doc/local-authority/00DA,Leeds City Council,Childrens Services,Safeguarding Targeted & Specialist,Third Party Payments,Placement Support,550,07-Feb-14,1402-00201,700,R,Adoption Uk
http://statistics.data.gov.uk/doc/local-authority/00DA,Leeds City Council,Childrens Services,Safeguarding Targeted & Specialist,Third Party Payments,Interagency Adoptions,559,07-Feb-14,1402-00202,685.13,R,Adoption Uk
http://statistics.data.gov.uk/doc/local-authority/00DA,Leeds City Council,Childrens Services,Safeguarding Targeted & Specialist,Third Party Payments,Payments To Voluntary Organisations,561,27-Feb-14,1402-00203,922.5,R,Adoption Uk
http://statistics.data.gov.uk/doc/local-authority/00DA,Leeds City Council,Childrens Services,Safeguarding Targeted & Specialist,Transfer Payments,Leaving Care Grants,635,20-Feb-14,1402-00204,313.4,R,Adrian Flux Insurance Services
http://statistics.data.gov.uk/doc/local-authority/00DA,Leeds City Council,Central & Corporate,Commercial Services Trading Services,Supplies and Services,Other Hired And Contracted Services,265,28-Feb-14,1402-00205,374,R,Adrian Freeman T/A Beacon
http://statistics.data.gov.uk/doc/local-authority/00DA,Leeds City Council,Central & Corporate,Commercial Services Trading Services,Supplies and Services,Other Hired And Contracted Services,265,28-Feb-14,1402-00206,374,R,Adrian Freeman T/A Beacon
http://statistics.data.gov.uk/doc/local-authority/00DA,Leeds City Council,Central & Corporate,Commercial Services Trading Services,Supplies and Services,Other Hired And Contracted Services,265,28-Feb-14,1402-00207,504,R,Adrian Freeman T/A Beacon
http://statistics.data.gov.uk/doc/local-authority/00DA,Leeds City Council,Central & Corporate,Commercial Services Trading Services,Supplies and Services,Other Hired And Contracted Services,265,28-Feb-14,1402-00208,537.2,R,Adrian Freeman T/A Beacon
http://statistics.data.gov.uk/doc/local-authority/00DA,Leeds City Council,Central & Corporate,Commercial Services Trading Services,Supplies and Services,Other Hired And Contracted Services,265,26-Feb-14,1402-00209,27150.45,R,Adrian Freeman T/A Beacon
http://statistics.data.gov.uk/doc/local-authority/00DA,Leeds City Council,Central & Corporate,Commercial Services Trading Services,Supplies and Services,Other Hired And Contracted Services,265,26-Feb-14,1402-00210,11158.45,R,Adrian Freeman T/A Beacon
http://statistics.data.gov.uk/doc/local-authority/00DA,Leeds City Council,Central & Corporate,Commercial Services Trading Services,Supplies and Services,Other Hired And Contracted Services,265,11-Feb-14,1402-00211,2300,R,Adrian Freeman T/A Beacon
http://statistics.data.gov.uk/doc/local-authority/00DA,Leeds City Council,Central & Corporate,Commercial Services Trading Services,Supplies and Services,Other Hired And Contracted Services,265,11-Feb-14,1402-00212,500,R,Adrian Freeman T/A Beacon
http://statistics.data.gov.uk/doc/local-authority/00DA,Leeds City Council,Central & Corporate,Commercial Services Trading Services,Supplies and Services,Other Hired And Contracted Services,265,11-Feb-14,1402-00213,-4.56,R,Adrian Freeman T/A Beacon
http://statistics.data.gov.uk/doc/local-authority/00DA,Leeds City Council,Central & Corporate,Commercial Services Trading Services,Supplies and Services,Other Hired And Contracted Services,265,11-Feb-14,1402-00214,-29.92,R,Adrian Freeman T/A Beacon
http://statistics.data.gov.uk/doc/local-authority/00DA,Leeds City Council,Central & Corporate,Commercial Services Trading Services,Supplies and Services,Other Hired And Contracted Services,265,28-Feb-14,1402-00215,84.5,R,Adrian Freeman T/A Beacon
http://statistics.data.gov.uk/doc/local-authority/00DA,Leeds City Council,Central & Corporate,Commercial Services Trading Services,Supplies and Services,Other Hired And Contracted Services,265,11-Feb-14,1402-00216,-53.6,R,Adrian Freeman T/A Beacon
http://statistics.data.gov.uk/doc/local-authority/00DA,Leeds City Council,Central & Corporate,Commercial Services Trading Services,Supplies and Services,Other Hired And Contracted Services,265,11-Feb-14,1402-00217,-53.56,R,Adrian Freeman T/A Beacon
http://statistics.data.gov.uk/doc/local-authority/00DA,Leeds City Council,Central & Corporate,Commercial Services Trading Services,Supplies and Services,Other Hired And Contracted Services,265,11-Feb-14,1402-00218,-4,R,Adrian Freeman T/A Beacon
http://statistics.data.gov.uk/doc/local-authority/00DA,Leeds City Council,Adult Social Care,Assessment And Care Management,Premises,Premises Security Services,162,28-Feb-14,1402-00219,442.66,R,Adt Fire And Security Plc
http://statistics.data.gov.uk/doc/local-authority/00DA,Leeds City Council,Central & Corporate,Support And Facilities General Fund,Supplies and Services,Operational Furniture And Equipment,203,07-Feb-14,1402-00220,241.09,R,Adt Fire And Security Plc
http://statistics.data.gov.uk/doc/local-authority/00DA,Leeds City Council,Central & Corporate,Support And Facilities General Fund,Supplies and Services,Operational Furniture And Equipment,203,07-Feb-14,1402-00221,282.92,R,Adt Fire And Security Plc
http://statistics.data.gov.uk/doc/local-authority/00DA,Leeds City Council,Central & Corporate,Support And Facilities General Fund,Supplies and Services,Operational Furniture And Equipment,203,07-Feb-14,1402-00222,208.75,R,Adt Fire And Security Plc
http://statistics.data.gov.uk/doc/local-authority/00DA,Leeds City Council,City Development,Asset Management Services,Premises,Maintenance Of Buildings,101,28-Feb-14,1402-00223,177,R,Adt Fire And Security Plc
http://statistics.data.gov.uk/doc/local-authority/00DA,Leeds City Council,City Development,Asset Management Services,Premises,Maintenance Of Buildings,101,26-Feb-14,1402-00224,1539.7,R,Adt Fire And Security Plc
http://statistics.data.gov.uk/doc/local-authority/00DA,Leeds City Council,City Development,Asset Management Services,Premises,Maintenance Of Buildings,101,14-Feb-14,1402-00225,331,R,Adt Fire And Security Plc
http://statistics.data.gov.uk/doc/local-authority/00DA,Leeds City Council,City Development,Asset Management Services,Premises,Maintenance Of Buildings,101,26-Feb-14,1402-00226,138.57,R,Adt Fire And Security Plc
http://statistics.data.gov.uk/doc/local-authority/00DA,Leeds City Council,City Development,Asset Management Services,Premises,Maintenance Of Buildings,101,26-Feb-14,1402-00227,314.9,R,Adt Fire And Security Plc
http://statistics.data.gov.uk/doc/local-authority/00DA,Leeds City Council,Environment & Housing,Hra,Premises,Premises Security Services,162,06-Feb-14,1402-00228,121.81,R,Adt Fire And Security Plc
http://statistics.data.gov.uk/doc/local-authority/00DA,Leeds City Council,Environment & Housing,Hra,Premises,Premises Security Services,162,05-Feb-14,1402-00229,126.68,R,Adt Fire And Security Plc
http://statistics.data.gov.uk/doc/local-authority/00DA,Leeds City Council as Accountable Body,Social Services Pooled Budgets,Jcs For People With Learning Disabilitie,Third Party Payments,Home Care,568,05-Feb-14,1402-00230,608.64,R,Adult Placement Services
http://statistics.data.gov.uk/doc/local-authority/00DA,Leeds City Council as Accountable Body,Social Services Pooled Budgets,Jcs For People With Learning Disabilitie,Third Party Payments,Home Care,568,19-Feb-14,1402-00231,608.64,R,Adult Placement Services
http://statistics.data.gov.uk/doc/local-authority/00DA,Leeds City Council as Accountable Body,Social Services Pooled Budgets,Jcs For People With Learning Disabilitie,Third Party Payments,Home Care,568,05-Feb-14,1402-00232,608.64,R,Adult Placement Services
http://statistics.data.gov.uk/doc/local-authority/00DA,Leeds City Council as Accountable Body,Social Services Pooled Budgets,Jcs For People With Learning Disabilitie,Third Party Payments,Home Care,568,28-Feb-14,1402-00233,395.5,R,Adult Placement Services
http://statistics.data.gov.uk/doc/local-authority/00DA,Leeds City Council as Accountable Body,Social Services Pooled Budgets,Jcs For People With Learning Disabilitie,Third Party Payments,Home Care,568,28-Feb-14,1402-00234,1332.2,R,Adult Placement Services
http://statistics.data.gov.uk/doc/local-authority/00DA,Leeds City Council as Accountable Body,Social Services Pooled Budgets,Jcs For People With Learning Disabilitie,Third Party Payments,Home Care,568,05-Feb-14,1402-00235,823.81,R,Adult Placement Services
http://statistics.data.gov.uk/doc/local-authority/00DA,Leeds City Council as Accountable Body,Social Services Pooled Budgets,Jcs For People With Learning Disabilitie,Third Party Payments,Home Care,568,05-Feb-14,1402-00236,1332.2,R,Adult Placement Services
http://statistics.data.gov.uk/doc/local-authority/00DA,Leeds City Council,Adult Social Care,Services For Adults Under 65 Mental/Dis,Third Party Payments,Nursing Home,570,12-Feb-14,1402-00237,1549.8,R,Adult Supported Living Ltd
http://statistics.data.gov.uk/doc/local-authority/00DA,Leeds City Council,City Development,Libraries  Arts & Heritage,Supplies and Services,External Audit Fees,261,11-Feb-14,1402-00238,85,R,Advance Stocks Ltd
http://statistics.data.gov.uk/doc/local-authority/00DA,Leeds City Council,City Development,Libraries  Arts & Heritage,Supplies and Services,External Audit Fees,261,13-Feb-14,1402-00239,85,R,Advance Stocks Ltd
http://statistics.data.gov.uk/doc/local-authority/00DA,Leeds City Council,City Development,Libraries  Arts & Heritage,Supplies and Services,External Audit Fees,261,28-Feb-14,1402-00240,85,R,Advance Stocks Ltd
http://statistics.data.gov.uk/doc/local-authority/00DA,Leeds City Council,City Development,Recreation,Supplies and Services,External Audit Fees,261,06-Feb-14,1402-00241,235,R,Advance Stocks Ltd
http://statistics.data.gov.uk/doc/local-authority/00DA,Leeds City Council,Childrens Services,Safeguarding Targeted & Specialist,Support Services,Legal Disbursements,411,14-Feb-14,1402-00242,67.21,R,Advanced Child Care Assessments Ltd
http://statistics.data.gov.uk/doc/local-authority/00DA,Leeds City Council,Central & Corporate,Commercial Services Trading Services,Supplies and Services,Operational Materials,205,19-Feb-14,1402-00243,215.7,R,Advanced Labelling Limited
http://statistics.data.gov.uk/doc/local-authority/00DA,Leeds City Council as Accountable Body,Social Services Pooled Budgets,Jcs For People With Learning Disabilitie,Third Party Payments,Home Care,568,27-Feb-14,1402-00244,3267.71,R,Advantage Healthcare Group Ltd
http://statistics.data.gov.uk/doc/local-authority/00DA,Leeds City Council as Accountable Body,Social Services Pooled Budgets,Jcs For People With Learning Disabilitie,Third Party Payments,Home Care,568,27-Feb-14,1402-00245,4081.26,R,Advantage Healthcare Group Ltd
http://statistics.data.gov.uk/doc/local-authority/00DA,Leeds City Council as Accountable Body,Social Services Pooled Budgets,Jcs For People With Learning Disabilitie,Third Party Payments,Home Care,568,27-Feb-14,1402-00246,498.24,R,Advantage Healthcare Group Ltd
http://statistics.data.gov.uk/doc/local-authority/00DA,Leeds City Council as Accountable Body,Social Services Pooled Budgets,Jcs For People With Learning Disabilitie,Third Party Payments,Home Care,568,27-Feb-14,1402-00247,646,R,Advantage Healthcare Group Ltd
http://statistics.data.gov.uk/doc/local-authority/00DA,Leeds City Council as Accountable Body,Social Services Pooled Budgets,Jcs For People With Learning Disabilitie,Third Party Payments,Home Care,568,21-Feb-14,1402-00248,3186.61,R,Advantage Healthcare Group Ltd
http://statistics.data.gov.uk/doc/local-authority/00DA,Leeds City Council as Accountable Body,Social Services Pooled Budgets,Jcs For People With Learning Disabilitie,Third Party Payments,Home Care,568,21-Feb-14,1402-00249,373.68,R,Advantage Healthcare Group Ltd
http://statistics.data.gov.uk/doc/local-authority/00DA,Leeds City Council as Accountable Body,Social Services Pooled Budgets,Jcs For People With Learning Disabilitie,Third Party Payments,Home Care,568,13-Feb-14,1402-00250,2816.29,R,Advantage Healthcare Group Ltd
http://statistics.data.gov.uk/doc/local-authority/00DA,Leeds City Council as Accountable Body,Social Services Pooled Budgets,Jcs For People With Learning Disabilitie,Third Party Payments,Home Care,568,19-Feb-14,1402-00251,760.6,R,Advantage Healthcare Group Ltd
http://statistics.data.gov.uk/doc/local-authority/00DA,Leeds City Council as Accountable Body,Social Services Pooled Budgets,Jcs For People With Learning Disabilitie,Third Party Payments,Home Care,568,13-Feb-14,1402-00252,2339.58,R,Advantage Healthcare Group Ltd
http://statistics.data.gov.uk/doc/local-authority/00DA,Leeds City Council as Accountable Body,Social Services Pooled Budgets,Jcs For People With Learning Disabilitie,Third Party Payments,Home Care,568,13-Feb-14,1402-00253,3973.39,R,Advantage Healthcare Group Ltd
http://statistics.data.gov.uk/doc/local-authority/00DA,Leeds City Council as Accountable Body,Social Services Pooled Budgets,Jcs For People With Learning Disabilitie,Third Party Payments,Home Care,568,13-Feb-14,1402-00254,186.84,R,Advantage Healthcare Group Ltd
http://statistics.data.gov.uk/doc/local-authority/00DA,Leeds City Council as Accountable Body,Social Services Pooled Budgets,Jcs For People With Learning Disabilitie,Third Party Payments,Home Care,568,27-Feb-14,1402-00255,783.52,R,Advantage Healthcare Group Ltd
http://statistics.data.gov.uk/doc/local-authority/00DA,Leeds City Council as Accountable Body,Social Services Pooled Budgets,Jcs For People With Learning Disabilitie,Third Party Payments,Home Care,568,13-Feb-14,1402-00256,1901.72,R,Advantage Healthcare Group Ltd
http://statistics.data.gov.uk/doc/local-authority/00DA,Leeds City Council as Accountable Body,Social Services Pooled Budgets,Jcs For People With Learning Disabilitie,Third Party Payments,Home Care,568,05-Feb-14,1402-00257,2601.46,R,Advantage Healthcare Group Ltd
http://statistics.data.gov.uk/doc/local-authority/00DA,Leeds City Council as Accountable Body,Social Services Pooled Budgets,Jcs For People With Learning Disabilitie,Third Party Payments,Home Care,568,05-Feb-14,1402-00258,342.54,R,Advantage Healthcare Group Ltd
http://statistics.data.gov.uk/doc/local-authority/00DA,Leeds City Council as Accountable Body,Social Services Pooled Budgets,Jcs For People With Learning Disabilitie,Third Party Payments,Home Care,568,05-Feb-14,1402-00259,969,R,Advantage Healthcare Group Ltd
http://statistics.data.gov.uk/doc/local-authority/00DA,Leeds City Council as Accountable Body,Social Services Pooled Budgets,Jcs For People With Learning Disabilitie,Third Party Payments,Residential,580,12-Feb-14,1402-00260,20332.4,R,Advitam Ltd
http://statistics.data.gov.uk/doc/local-authority/00DA,Leeds City Council,Adult Social Care,Services For Adults Under 65 Mental/Dis,Third Party Payments,Services Provided By Other NHS Bodies,522,28-Feb-14,1402-00261,543.2,R,Advoco Consultancy Services
http://statistics.data.gov.uk/doc/local-authority/00DA,Leeds City Council,Adult Social Care,Social Services Support Services,Third Party Payments,Payments To Voluntary Organisations,561,21-Feb-14,1402-00262,90446.46,R,Advonet
http://statistics.data.gov.uk/doc/local-authority/00DA,Leeds City Council,City Development,Recreation,Income,Sporting & Other Recreational Fees,928,10-Feb-14,1402-00263,26.6,R,REDACTED PERSONAL DATA
http://statistics.data.gov.uk/doc/local-authority/00DA,Leeds City Council,Central & Corporate,Customer Services,Supplies and Services,Other Hired And Contracted Services,265,04-Feb-14,1402-00264,59.52,R,Afbedel Ltd
http://statistics.data.gov.uk/doc/local-authority/00DA,Leeds City Council,Adult Social Care,Services For Adults Under 65 Mental/Dis,Third Party Payments,Home Care,568,07-Feb-14,1402-00265,399.5,R,Affinity Trust
http://statistics.data.gov.uk/doc/local-authority/00DA,Leeds City Council,Adult Social Care,Services For Adults Under 65 Mental/Dis,Third Party Payments,Home Care,568,19-Feb-14,1402-00266,63.92,R,Affinity Trust
http://statistics.data.gov.uk/doc/local-authority/00DA,Leeds City Council,Adult Social Care,Services For Adults Under 65 Mental/Dis,Third Party Payments,Home Care,568,19-Feb-14,1402-00267,255.68,R,Affinity Trust
http://statistics.data.gov.uk/doc/local-authority/00DA,Leeds City Council,Adult Social Care,Services For Adults Under 65 Mental/Dis,Third Party Payments,Home Care,568,19-Feb-14,1402-00268,295.63,R,Affinity Trust
http://statistics.data.gov.uk/doc/local-authority/00DA,Leeds City Council,Adult Social Care,Services For Adults Under 65 Mental/Dis,Third Party Payments,Home Care,568,19-Feb-14,1402-00269,255.68,R,Affinity Trust
http://statistics.data.gov.uk/doc/local-authority/00DA,Leeds City Council,Adult Social Care,Services For Adults Under 65 Mental/Dis,Third Party Payments,Home Care,568,26-Feb-14,1402-00270,255.68,R,Affinity Trust
http://statistics.data.gov.uk/doc/local-authority/00DA,Leeds City Council,Adult Social Care,Services For Adults Under 65 Mental/Dis,Third Party Payments,Home Care,568,19-Feb-14,1402-00271,403.5,R,Affinity Trust
http://statistics.data.gov.uk/doc/local-authority/00DA,Leeds City Council,Adult Social Care,Services For Older People - 65 And Over,Third Party Payments,Home Care,568,07-Feb-14,1402-00272,1278.32,R,Affinity Trust
http://statistics.data.gov.uk/doc/local-authority/00DA,Leeds City Council,Adult Social Care,Services For Older People - 65 And Over,Third Party Payments,Home Care,568,07-Feb-14,1402-00273,180,R,Affinity Trust
http://statistics.data.gov.uk/doc/local-authority/00DA,Leeds City Council,Adult Social Care,Services For Older People - 65 And Over,Third Party Payments,Home Care,568,20-Feb-14,1402-00274,-180,R,Affinity Trust
http://statistics.data.gov.uk/doc/local-authority/00DA,Leeds City Council,Adult Social Care,Services For Older People - 65 And Over,Third Party Payments,Residential,580,07-Feb-14,1402-00275,526.68,R,Affinity Trust
http://statistics.data.gov.uk/doc/local-authority/00DA,Leeds City Council,Adult Social Care,Services For Older People Under 65 P/Dis,Third Party Payments,Home Care,568,07-Feb-14,1402-00276,2415.32,R,Affinity Trust
http://statistics.data.gov.uk/doc/local-authority/00DA,Leeds City Council,Adult Social Care,Services For Older People Under 65 P/Dis,Third Party Payments,Home Care,568,07-Feb-14,1402-00277,168.2,R,Affinity Trust
http://statistics.data.gov.uk/doc/local-authority/00DA,Leeds City Council,Adult Social Care,Services For Older People Under 65 P/Dis,Third Party Payments,Home Care,568,07-Feb-14,1402-00278,399.5,R,Affinity Trust
http://statistics.data.gov.uk/doc/local-authority/00DA,Leeds City Council,Adult Social Care,Services For Older People Under 65 P/Dis,Third Party Payments,Home Care,568,07-Feb-14,1402-00279,504.6,R,Affinity Trust
http://statistics.data.gov.uk/doc/local-authority/00DA,Leeds City Council,Adult Social Care,Services For Older People Under 65 P/Dis,Third Party Payments,Home Care,568,19-Feb-14,1402-00280,396,R,Affinity Trust
http://statistics.data.gov.uk/doc/local-authority/00DA,Leeds City Council,Adult Social Care,Services For Older People Under 65 P/Dis,Third Party Payments,Home Care,568,07-Feb-14,1402-00281,955.69,R,Affinity Trust
http://statistics.data.gov.uk/doc/local-authority/00DA,Leeds City Council,Adult Social Care,Services For Older People Under 65 P/Dis,Third Party Payments,Home Care,568,07-Feb-14,1402-00282,328.02,R,Affinity Trust
http://statistics.data.gov.uk/doc/local-authority/00DA,Leeds City Council,Adult Social Care,Services For Older People Under 65 P/Dis,Third Party Payments,Home Care,568,07-Feb-14,1402-00283,511.36,R,Affinity Trust
http://statistics.data.gov.uk/doc/local-authority/00DA,Leeds City Council,Adult Social Care,Services For Older People Under 65 P/Dis,Third Party Payments,Home Care,568,07-Feb-14,1402-00284,1807.48,R,Affinity Trust
http://statistics.data.gov.uk/doc/local-authority/00DA,Leeds City Council,Adult Social Care,Services For Older People Under 65 P/Dis,Third Party Payments,Home Care,568,20-Feb-14,1402-00285,396,R,Affinity Trust
http://statistics.data.gov.uk/doc/local-authority/00DA,Leeds City Council,Adult Social Care,Services For Older People Under 65 P/Dis,Third Party Payments,Home Care,568,20-Feb-14,1402-00286,297,R,Affinity Trust
http://statistics.data.gov.uk/doc/local-authority/00DA,Leeds City Council,Adult Social Care,Services For Older People Under 65 P/Dis,Third Party Payments,Home Care,568,28-Feb-14,1402-00287,944.87,R,Affinity Trust
http://statistics.data.gov.uk/doc/local-authority/00DA,Leeds City Council,Adult Social Care,Services For Older People Under 65 P/Dis,Third Party Payments,Home Care,568,07-Feb-14,1402-00288,526.68,R,Affinity Trust
http://statistics.data.gov.uk/doc/local-authority/00DA,Leeds City Council,Adult Social Care,Services For Older People Under 65 P/Dis,Third Party Payments,Home Care,568,13-Feb-14,1402-00289,658.35,R,Affinity Trust
http://statistics.data.gov.uk/doc/local-authority/00DA,Leeds City Council,Adult Social Care,Services For Older People Under 65 P/Dis,Third Party Payments,Home Care,568,12-Feb-14,1402-00290,403.68,R,Affinity Trust
http://statistics.data.gov.uk/doc/local-authority/00DA,Leeds City Council,Adult Social Care,Services For Older People Under 65 P/Dis,Third Party Payments,Home Care,568,12-Feb-14,1402-00291,526.68,R,Affinity Trust
http://statistics.data.gov.uk/doc/local-authority/00DA,Leeds City Council,Adult Social Care,Services For Older People Under 65 P/Dis,Third Party Payments,Home Care,568,07-Feb-14,1402-00292,134.56,R,Affinity Trust
http://statistics.data.gov.uk/doc/local-authority/00DA,Leeds City Council,Adult Social Care,Services For Older People Under 65 P/Dis,Third Party Payments,Home Care,568,07-Feb-14,1402-00293,403.68,R,Affinity Trust
http://statistics.data.gov.uk/doc/local-authority/00DA,Leeds City Council,Adult Social Care,Services For Older People Under 65 P/Dis,Third Party Payments,Home Care,568,20-Feb-14,1402-00294,134.56,R,Affinity Trust
http://statistics.data.gov.uk/doc/local-authority/00DA,Leeds City Council,Adult Social Care,Services For Older People Under 65 P/Dis,Third Party Payments,Home Care,568,20-Feb-14,1402-00295,403.68,R,Affinity Trust
http://statistics.data.gov.uk/doc/local-authority/00DA,Leeds City Council,Adult Social Care,Services For Older People Under 65 P/Dis,Third Party Payments,Home Care,568,07-Feb-14,1402-00296,526.68,R,Affinity Trust
http://statistics.data.gov.uk/doc/local-authority/00DA,Leeds City Council,Adult Social Care,Services For Older People Under 65 P/Dis,Third Party Payments,Home Care,568,07-Feb-14,1402-00297,671.16,R,Affinity Trust
http://statistics.data.gov.uk/doc/local-authority/00DA,Leeds City Council,Adult Social Care,Services For Older People Under 65 P/Dis,Third Party Payments,Home Care,568,07-Feb-14,1402-00298,38.35,R,Affinity Trust
http://statistics.data.gov.uk/doc/local-authority/00DA,Leeds City Council as Accountable Body,Social Services Pooled Budgets,Jcs For People With Learning Disabilitie,Third Party Payments,Day Centre,564,19-Feb-14,1402-00299,-1823.04,R,Affinity Trust
http://statistics.data.gov.uk/doc/local-authority/00DA,Leeds City Council as Accountable Body,Social Services Pooled Budgets,Jcs For People With Learning Disabilitie,Third Party Payments,Day Centre,564,19-Feb-14,1402-00300,270,R,Affinity Trust
http://statistics.data.gov.uk/doc/local-authority/00DA,Leeds City Council as Accountable Body,Social Services Pooled Budgets,Jcs For People With Learning Disabilitie,Third Party Payments,Day Centre,564,13-Feb-14,1402-00301,1053.36,R,Affinity Trust
http://statistics.data.gov.uk/doc/local-authority/00DA,Leeds City Council as Accountable Body,Social Services Pooled Budgets,Jcs For People With Learning Disabilitie,Third Party Payments,Day Centre,564,19-Feb-14,1402-00302,1823.04,R,Affinity Trust
http://statistics.data.gov.uk/doc/local-authority/00DA,Leeds City Council as Accountable Body,Social Services Pooled Budgets,Jcs For People With Learning Disabilitie,Third Party Payments,Day Centre,564,19-Feb-14,1402-00303,4052.48,R,Affinity Trust
http://statistics.data.gov.uk/doc/local-authority/00DA,Leeds City Council as Accountable Body,Social Services Pooled Budgets,Jcs For People With Learning Disabilitie,Third Party Payments,Day Centre,564,13-Feb-14,1402-00304,714.78,R,Affinity Trust
http://statistics.data.gov.uk/doc/local-authority/00DA,Leeds City Council as Accountable Body,Social Services Pooled Budgets,Jcs For People With Learning Disabilitie,Third Party Payments,Day Centre,564,13-Feb-14,1402-00305,2346.4,R,Affinity Trust
http://statistics.data.gov.uk/doc/local-authority/00DA,Leeds City Council as Accountable Body,Social Services Pooled Budgets,Jcs For People With Learning Disabilitie,Third Party Payments,Day Centre,564,13-Feb-14,1402-00306,518.72,R,Affinity Trust
http://statistics.data.gov.uk/doc/local-authority/00DA,Leeds City Council as Accountable Body,Social Services Pooled Budgets,Jcs For People With Learning Disabilitie,Third Party Payments,Day Centre,564,21-Feb-14,1402-00307,2175,R,Affinity Trust
http://statistics.data.gov.uk/doc/local-authority/00DA,Leeds City Council as Accountable Body,Social Services Pooled Budgets,Jcs For People With Learning Disabilitie,Third Party Payments,Home Care,568,13-Feb-14,1402-00308,597,R,Affinity Trust
http://statistics.data.gov.uk/doc/local-authority/00DA,Leeds City Council as Accountable Body,Social Services Pooled Budgets,Jcs For People With Learning Disabilitie,Third Party Payments,Home Care,568,13-Feb-14,1402-00309,807.36,R,Affinity Trust
http://statistics.data.gov.uk/doc/local-authority/00DA,Leeds City Council as Accountable Body,Social Services Pooled Budgets,Jcs For People With Learning Disabilitie,Third Party Payments,Home Care,568,07-Feb-14,1402-00310,1625.25,R,Affinity Trust
http://statistics.data.gov.uk/doc/local-authority/00DA,Leeds City Council as Accountable Body,Social Services Pooled Budgets,Jcs For People With Learning Disabilitie,Third Party Payments,Home Care,568,13-Feb-14,1402-00311,1006.74,R,Affinity Trust
http://statistics.data.gov.uk/doc/local-authority/00DA,Leeds City Council as Accountable Body,Social Services Pooled Budgets,Jcs For People With Learning Disabilitie,Third Party Payments,Home Care,568,13-Feb-14,1402-00312,527.34,R,Affinity Trust
http://statistics.data.gov.uk/doc/local-authority/00DA,Leeds City Council as Accountable Body,Social Services Pooled Budgets,Jcs For People With Learning Disabilitie,Third Party Payments,Home Care,568,13-Feb-14,1402-00313,1933.6,R,Affinity Trust
http://statistics.data.gov.uk/doc/local-authority/00DA,Leeds City Council as Accountable Body,Social Services Pooled Budgets,Jcs For People With Learning Disabilitie,Third Party Payments,Home Care,568,13-Feb-14,1402-00314,1798.5,R,Affinity Trust
http://statistics.data.gov.uk/doc/local-authority/00DA,Leeds City Council as Accountable Body,Social Services Pooled Budgets,Jcs For People With Learning Disabilitie,Third Party Payments,Home Care,568,19-Feb-14,1402-00315,135.83,R,Affinity Trust
http://statistics.data.gov.uk/doc/local-authority/00DA,Leeds City Council as Accountable Body,Social Services Pooled Budgets,Jcs For People With Learning Disabilitie,Third Party Payments,Home Care,568,13-Feb-14,1402-00316,255.68,R,Affinity Trust
http://statistics.data.gov.uk/doc/local-authority/00DA,Leeds City Council as Accountable Body,Social Services Pooled Budgets,Jcs For People With Learning Disabilitie,Third Party Payments,Home Care,568,13-Feb-14,1402-00317,244.88,R,Affinity Trust
http://statistics.data.gov.uk/doc/local-authority/00DA,Leeds City Council as Accountable Body,Social Services Pooled Budgets,Jcs For People With Learning Disabilitie,Third Party Payments,Home Care,568,13-Feb-14,1402-00318,918,R,Affinity Trust
http://statistics.data.gov.uk/doc/local-authority/00DA,Leeds City Council as Accountable Body,Social Services Pooled Budgets,Jcs For People With Learning Disabilitie,Third Party Payments,Home Care,568,13-Feb-14,1402-00319,191.76,R,Affinity Trust
http://statistics.data.gov.uk/doc/local-authority/00DA,Leeds City Council as Accountable Body,Social Services Pooled Budgets,Jcs For People With Learning Disabilitie,Third Party Payments,Home Care,568,13-Feb-14,1402-00320,420.5,R,Affinity Trust
http://statistics.data.gov.uk/doc/local-authority/00DA,Leeds City Council as Accountable Body,Social Services Pooled Budgets,Jcs For People With Learning Disabilitie,Third Party Payments,Home Care,568,13-Feb-14,1402-00321,1566.04,R,Affinity Trust
http://statistics.data.gov.uk/doc/local-authority/00DA,Leeds City Council as Accountable Body,Social Services Pooled Budgets,Jcs For People With Learning Disabilitie,Third Party Payments,Home Care,568,13-Feb-14,1402-00322,671.16,R,Affinity Trust
http://statistics.data.gov.uk/doc/local-authority/00DA,Leeds City Council as Accountable Body,Social Services Pooled Budgets,Jcs For People With Learning Disabilitie,Third Party Payments,Home Care,568,21-Feb-14,1402-00323,799,R,Affinity Trust
http://statistics.data.gov.uk/doc/local-authority/00DA,Leeds City Council as Accountable Body,Social Services Pooled Budgets,Jcs For People With Learning Disabilitie,Third Party Payments,Home Care,568,13-Feb-14,1402-00324,3435.7,R,Affinity Trust
http://statistics.data.gov.uk/doc/local-authority/00DA,Leeds City Council as Accountable Body,Social Services Pooled Budgets,Jcs For People With Learning Disabilitie,Third Party Payments,Home Care,568,13-Feb-14,1402-00325,639.2,R,Affinity Trust
http://statistics.data.gov.uk/doc/local-authority/00DA,Leeds City Council as Accountable Body,Social Services Pooled Budgets,Jcs For People With Learning Disabilitie,Third Party Payments,Home Care,568,13-Feb-14,1402-00326,271.66,R,Affinity Trust
http://statistics.data.gov.uk/doc/local-authority/00DA,Leeds City Council as Accountable Body,Social Services Pooled Budgets,Jcs For People With Learning Disabilitie,Third Party Payments,Home Care,568,13-Feb-14,1402-00327,33,R,Affinity Trust
http://statistics.data.gov.uk/doc/local-authority/00DA,Leeds City Council as Accountable Body,Social Services Pooled Budgets,Jcs For People With Learning Disabilitie,Third Party Payments,Home Care,568,13-Feb-14,1402-00328,408.64,R,Affinity Trust
http://statistics.data.gov.uk/doc/local-authority/00DA,Leeds City Council as Accountable Body,Social Services Pooled Budgets,Jcs For People With Learning Disabilitie,Third Party Payments,Home Care,568,13-Feb-14,1402-00329,874.64,R,Affinity Trust
http://statistics.data.gov.uk/doc/local-authority/00DA,Leeds City Council as Accountable Body,Social Services Pooled Budgets,Jcs For People With Learning Disabilitie,Third Party Payments,Home Care,568,13-Feb-14,1402-00330,1607.8,R,Affinity Trust
http://statistics.data.gov.uk/doc/local-authority/00DA,Leeds City Council as Accountable Body,Social Services Pooled Budgets,Jcs For People With Learning Disabilitie,Third Party Payments,Home Care,568,21-Feb-14,1402-00331,639.2,R,Affinity Trust
http://statistics.data.gov.uk/doc/local-authority/00DA,Leeds City Council as Accountable Body,Social Services Pooled Budgets,Jcs For People With Learning Disabilitie,Third Party Payments,Home Care,568,21-Feb-14,1402-00332,639.2,R,Affinity Trust
http://statistics.data.gov.uk/doc/local-authority/00DA,Leeds City Council as Accountable Body,Social Services Pooled Budgets,Jcs For People With Learning Disabilitie,Third Party Payments,Home Care,568,19-Feb-14,1402-00333,383.52,R,Affinity Trust
http://statistics.data.gov.uk/doc/local-authority/00DA,Leeds City Council as Accountable Body,Social Services Pooled Budgets,Jcs For People With Learning Disabilitie,Third Party Payments,Home Care,568,19-Feb-14,1402-00334,-7741.65,R,Affinity Trust
http://statistics.data.gov.uk/doc/local-authority/00DA,Leeds City Council as Accountable Body,Social Services Pooled Budgets,Jcs For People With Learning Disabilitie,Third Party Payments,Home Care,568,03-Feb-14,1402-00335,2338.56,R,Affinity Trust
http://statistics.data.gov.uk/doc/local-authority/00DA,Leeds City Council as Accountable Body,Social Services Pooled Budgets,Jcs For People With Learning Disabilitie,Third Party Payments,Home Care,568,19-Feb-14,1402-00336,3316.88,R,Affinity Trust
http://statistics.data.gov.uk/doc/local-authority/00DA,Leeds City Council as Accountable Body,Social Services Pooled Budgets,Jcs For People With Learning Disabilitie,Third Party Payments,Home Care,568,13-Feb-14,1402-00337,1560,R,Affinity Trust
http://statistics.data.gov.uk/doc/local-authority/00DA,Leeds City Council as Accountable Body,Social Services Pooled Budgets,Jcs For People With Learning Disabilitie,Third Party Payments,Home Care,568,13-Feb-14,1402-00338,360,R,Affinity Trust
http://statistics.data.gov.uk/doc/local-authority/00DA,Leeds City Council as Accountable Body,Social Services Pooled Budgets,Jcs For People With Learning Disabilitie,Third Party Payments,Home Care,568,19-Feb-14,1402-00339,525.72,R,Affinity Trust
http://statistics.data.gov.uk/doc/local-authority/00DA,Leeds City Council as Accountable Body,Social Services Pooled Budgets,Jcs For People With Learning Disabilitie,Third Party Payments,Home Care,568,19-Feb-14,1402-00340,191.28,R,Affinity Trust
http://statistics.data.gov.uk/doc/local-authority/00DA,Leeds City Council as Accountable Body,Social Services Pooled Budgets,Jcs For People With Learning Disabilitie,Third Party Payments,Home Care,568,13-Feb-14,1402-00341,1608.96,R,Affinity Trust
http://statistics.data.gov.uk/doc/local-authority/00DA,Leeds City Council as Accountable Body,Social Services Pooled Budgets,Jcs For People With Learning Disabilitie,Third Party Payments,Home Care,568,19-Feb-14,1402-00342,1599.98,R,Affinity Trust
http://statistics.data.gov.uk/doc/local-authority/00DA,Leeds City Council as Accountable Body,Social Services Pooled Budgets,Jcs For People With Learning Disabilitie,Third Party Payments,Home Care,568,19-Feb-14,1402-00343,804.48,R,Affinity Trust
http://statistics.data.gov.uk/doc/local-authority/00DA,Leeds City Council as Accountable Body,Social Services Pooled Budgets,Jcs For People With Learning Disabilitie,Third Party Payments,Home Care,568,19-Feb-14,1402-00344,1035.44,R,Affinity Trust
http://statistics.data.gov.uk/doc/local-authority/00DA,Leeds City Council as Accountable Body,Social Services Pooled Budgets,Jcs For People With Learning Disabilitie,Third Party Payments,Home Care,568,13-Feb-14,1402-00345,1005.6,R,Affinity Trust
http://statistics.data.gov.uk/doc/local-authority/00DA,Leeds City Council as Accountable Body,Social Services Pooled Budgets,Jcs For People With Learning Disabilitie,Third Party Payments,Home Care,568,19-Feb-14,1402-00346,2011.2,R,Affinity Trust
http://statistics.data.gov.uk/doc/local-authority/00DA,Leeds City Council as Accountable Body,Social Services Pooled Budgets,Jcs For People With Learning Disabilitie,Third Party Payments,Home Care,568,13-Feb-14,1402-00347,1177.28,R,Affinity Trust
http://statistics.data.gov.uk/doc/local-authority/00DA,Leeds City Council as Accountable Body,Social Services Pooled Budgets,Jcs For People With Learning Disabilitie,Third Party Payments,Home Care,568,13-Feb-14,1402-00348,960,R,Affinity Trust
http://statistics.data.gov.uk/doc/local-authority/00DA,Leeds City Council as Accountable Body,Social Services Pooled Budgets,Jcs For People With Learning Disabilitie,Third Party Payments,Home Care,568,13-Feb-14,1402-00349,804.48,R,Affinity Trust
http://statistics.data.gov.uk/doc/local-authority/00DA,Leeds City Council as Accountable Body,Social Services Pooled Budgets,Jcs For People With Learning Disabilitie,Third Party Payments,Home Care,568,19-Feb-14,1402-00350,3402.88,R,Affinity Trust
http://statistics.data.gov.uk/doc/local-authority/00DA,Leeds City Council as Accountable Body,Social Services Pooled Budgets,Jcs For People With Learning Disabilitie,Third Party Payments,Home Care,568,13-Feb-14,1402-00351,4810.1,R,Affinity Trust
http://statistics.data.gov.uk/doc/local-authority/00DA,Leeds City Council as Accountable Body,Social Services Pooled Budgets,Jcs For People With Learning Disabilitie,Third Party Payments,Home Care,568,04-Feb-14,1402-00352,3726.4,R,Affinity Trust
http://statistics.data.gov.uk/doc/local-authority/00DA,Leeds City Council as Accountable Body,Social Services Pooled Budgets,Jcs For People With Learning Disabilitie,Third Party Payments,Residential,580,13-Feb-14,1402-00353,4355.79,R,Affinity Trust
http://statistics.data.gov.uk/doc/local-authority/00DA,Leeds City Council as Accountable Body,Social Services Pooled Budgets,Jcs For People With Learning Disabilitie,Third Party Payments,Sheltered Accommodation,569,12-Feb-14,1402-00354,101313.76,R,Affinity Trust North Divisional Office
http://statistics.data.gov.uk/doc/local-authority/00DA,Leeds City Council as Accountable Body,Social Services Pooled Budgets,Jcs For People With Learning Disabilitie,Third Party Payments,Residential,580,12-Feb-14,1402-00355,-9090.39,R,Affinity Trust North Divisional Office
http://statistics.data.gov.uk/doc/local-authority/00DA,Leeds City Council,City Development,Highways,Capital,Other Costs,7,28-Feb-14,1402-00356,376,C,Afi Uplift Ltd
http://statistics.data.gov.uk/doc/local-authority/00DA,Leeds City Council,Environment & Housing,Parks & Countryside,Employees,Training Costs,71,19-Feb-14,1402-00357,612,R,Afi Uplift Ltd
http://statistics.data.gov.uk/doc/local-authority/00DA,Leeds City Council,Environment & Housing,Parks & Countryside,Employees,Training Costs,71,19-Feb-14,1402-00358,56,R,Afi Uplift Ltd
http://statistics.data.gov.uk/doc/local-authority/00DA,Leeds City Council,Environment & Housing,Parks & Countryside,Employees,Training Costs,71,18-Feb-14,1402-00359,612,R,Afi Uplift Ltd
http://statistics.data.gov.uk/doc/local-authority/00DA,Leeds City Council,Environment & Housing,Parks & Countryside,Transport,Hire Of Movable Plant & Machinery,315,20-Feb-14,1402-00360,300,R,Afi Uplift Ltd
http://statistics.data.gov.uk/doc/local-authority/00DA,Leeds City Council,Environment & Housing,Parks & Countryside,Transport,Hire Of Movable Plant & Machinery,315,20-Feb-14,1402-00361,-300,R,Afi Uplift Ltd
http://statistics.data.gov.uk/doc/local-authority/00DA,Leeds City Council,Environment & Housing,Statutory Housing,Supplies and Services,Market Research,260,13-Feb-14,1402-00362,440,R,Afk Estates
http://statistics.data.gov.uk/doc/local-authority/00DA,Leeds City Council,Childrens Services,Safeguarding Targeted & Specialist,Third Party Payments,Adoptions - Allowances,560,07-Feb-14,1402-00363,20000,R,After Adoption
http://statistics.data.gov.uk/doc/local-authority/00DA,Leeds City Council,Environment & Housing,Strategy & Commissioning,Third Party Payments,Supporting Ppl - Block Gross Chargeable,514,21-Feb-14,1402-00364,3957.68,R,Age Uk Leeds
http://statistics.data.gov.uk/doc/local-authority/00DA,Leeds City Council,Adult Social Care,Services For Older People Under 65 P/Dis,Transfer Payments,Personalised Budgets,627,12-Feb-14,1402-00365,1001.48,R,REDACTED PERSONAL DATA
http://statistics.data.gov.uk/doc/local-authority/00DA,Leeds City Council,Adult Social Care,Services For Older People Under 65 P/Dis,Third Party Payments,Residential,580,12-Feb-14,1402-00366,5612.16,R,Agricola House
http://statistics.data.gov.uk/doc/local-authority/00DA,Leeds City Council,Central & Corporate,Executive Support,Supplies and Services,'Well Being' Large Grants Projects,230,26-Feb-14,1402-00367,2524,R,Ahead Partnership Ltd
http://statistics.data.gov.uk/doc/local-authority/00DA,Leeds City Council,Central & Corporate,Executive Support,Supplies and Services,'Well Being' Large Grants Projects,230,26-Feb-14,1402-00368,2524,R,Ahead Partnership Ltd
http://statistics.data.gov.uk/doc/local-authority/00DA,Leeds City Council,Adult Social Care,Services For Older People Under 65 P/Dis,Transfer Payments,Personalised Budgets,627,12-Feb-14,1402-00369,531.2,R,REDACTED PERSONAL DATA
http://statistics.data.gov.uk/doc/local-authority/00DA,Leeds City Council,Adult Social Care,Services For Older People - 65 And Over,Supplies and Services,Operational Furniture And Equipment,203,28-Feb-14,1402-00370,29,R,Aidapt Bathrooms Ltd
http://statistics.data.gov.uk/doc/local-authority/00DA,Leeds City Council as Accountable Body,Social Services Pooled Budgets,Leeds Community Equip Store Pooled Budgt,Supplies and Services,Other Equipment,203,28-Feb-14,1402-00371,400,R,Aidapt Bathrooms Ltd
http://statistics.data.gov.uk/doc/local-authority/00DA,Leeds City Council as Accountable Body,Social Services Pooled Budgets,Leeds Community Equip Store Pooled Budgt,Supplies and Services,Other Equipment,203,27-Feb-14,1402-00372,1290,R,Aidapt Bathrooms Ltd
http://statistics.data.gov.uk/doc/local-authority/00DA,Leeds City Council as Accountable Body,Social Services Pooled Budgets,Leeds Community Equip Store Pooled Budgt,Supplies and Services,Other Equipment,203,27-Feb-14,1402-00373,1350,R,Aidapt Bathrooms Ltd
http://statistics.data.gov.uk/doc/local-authority/00DA,Leeds City Council as Accountable Body,Social Services Pooled Budgets,Leeds Community Equip Store Pooled Budgt,Supplies and Services,Other Equipment,203,21-Feb-14,1402-00374,400,R,Aidapt Bathrooms Ltd
http://statistics.data.gov.uk/doc/local-authority/00DA,Leeds City Council as Accountable Body,Social Services Pooled Budgets,Leeds Community Equip Store Pooled Budgt,Supplies and Services,Other Equipment,203,25-Feb-14,1402-00375,645,R,Aidapt Bathrooms Ltd
http://statistics.data.gov.uk/doc/local-authority/00DA,Leeds City Council as Accountable Body,Social Services Pooled Budgets,Leeds Community Equip Store Pooled Budgt,Supplies and Services,Other Equipment,203,14-Feb-14,1402-00376,1816.5,R,Aidapt Bathrooms Ltd
http://statistics.data.gov.uk/doc/local-authority/00DA,Leeds City Council as Accountable Body,Social Services Pooled Budgets,Leeds Community Equip Store Pooled Budgt,Supplies and Services,Other Equipment,203,25-Feb-14,1402-00377,675,R,Aidapt Bathrooms Ltd
http://statistics.data.gov.uk/doc/local-authority/00DA,Leeds City Council as Accountable Body,Social Services Pooled Budgets,Leeds Community Equip Store Pooled Budgt,Supplies and Services,Other Equipment,203,12-Feb-14,1402-00378,675,R,Aidapt Bathrooms Ltd
http://statistics.data.gov.uk/doc/local-authority/00DA,Leeds City Council as Accountable Body,Social Services Pooled Budgets,Leeds Community Equip Store Pooled Budgt,Supplies and Services,Other Equipment,203,12-Feb-14,1402-00379,545,R,Aidapt Bathrooms Ltd
http://statistics.data.gov.uk/doc/local-authority/00DA,Leeds City Council as Accountable Body,Social Services Pooled Budgets,Leeds Community Equip Store Pooled Budgt,Supplies and Services,Other Equipment,203,07-Feb-14,1402-00380,1811.2,R,Aidapt Bathrooms Ltd
http://statistics.data.gov.uk/doc/local-authority/00DA,Leeds City Council as Accountable Body,Social Services Pooled Budgets,Leeds Community Equip Store Pooled Budgt,Supplies and Services,Other Equipment,203,07-Feb-14,1402-00381,645,R,Aidapt Bathrooms Ltd
http://statistics.data.gov.uk/doc/local-authority/00DA,Leeds City Council as Accountable Body,Social Services Pooled Budgets,Leeds Community Equip Store Pooled Budgt,Supplies and Services,Other Equipment,203,07-Feb-14,1402-00382,3295,R,Aidapt Bathrooms Ltd
http://statistics.data.gov.uk/doc/local-authority/00DA,Leeds City Council as Accountable Body,Social Services Pooled Budgets,Jcs For People With Learning Disabilitie,Transfer Payments,Personal Budgets,627,12-Feb-14,1402-00383,2839.32,R,REDACTED PERSONAL DATA
http://statistics.data.gov.uk/doc/local-authority/00DA,Leeds City Council,Childrens Services,Safeguarding Targeted & Specialist,Supplies and Services,Operational Furniture And Equipment,203,28-Feb-14,1402-00384,172,R,Aidservice Ltd
http://statistics.data.gov.uk/doc/local-authority/00DA,Leeds City Council,Adult Social Care,Services For Older People - 65 And Over,Transfer Payments,Personalised Budgets,627,12-Feb-14,1402-00385,336.6,R,REDACTED PERSONAL DATA
http://statistics.data.gov.uk/doc/local-authority/00DA,Leeds City Council,City Development,Recreation,Supplies and Services,Other Hired And Contracted Services,265,05-Feb-14,1402-00386,185.83,R,Aim Education Leeds Limited
http://statistics.data.gov.uk/doc/local-authority/00DA,Leeds City Council,Civic Enterprise Leeds,Commercial Services  ,Supplies and Services,Operational Materials,205,14-Jan-14,1402-00387,91,R,Air Force Pneumati
http://statistics.data.gov.uk/doc/local-authority/00DA,Leeds City Council,Civic Enterprise Leeds,Commercial Services  ,Supplies and Services,Operational Materials,205,15-Jan-14,1402-00388,37.29,R,Air Force Pneumati
http://statistics.data.gov.uk/doc/local-authority/00DA,Leeds City Council,Central & Corporate,Commercial Services Trading Services,Supplies and Services,Operational Materials,205,25-Feb-14,1402-00389,26.63,R,Air Force Pneumatics & Hydraulics
http://statistics.data.gov.uk/doc/local-authority/00DA,Leeds City Council,Central & Corporate,Commercial Services Trading Services,Supplies and Services,Operational Materials,205,20-Feb-14,1402-00390,197.35,R,Air Liquide Uk
http://statistics.data.gov.uk/doc/local-authority/00DA,Leeds City Council,Central & Corporate,Commercial Services Trading Services,Supplies and Services,Operational Materials,205,20-Feb-14,1402-00391,38.09,R,Air Liquide Uk
http://statistics.data.gov.uk/doc/local-authority/00DA,Leeds City Council,Environment & Housing,Environmental Health,Supplies and Services,Operational Furniture And Equipment,203,06-Feb-14,1402-00392,62.58,R,Air Liquide Uk
http://statistics.data.gov.uk/doc/local-authority/00DA,Leeds City Council,Environment & Housing,Environmental Health,Supplies and Services,Other Hired And Contracted Services,265,26-Feb-14,1402-00393,81.78,R,Air Liquide Uk
http://statistics.data.gov.uk/doc/local-authority/00DA,Leeds City Council,Environment & Housing,Environmental Health,Supplies and Services,Other Hired And Contracted Services,265,21-Feb-14,1402-00394,27.26,R,Air Liquide Uk
http://statistics.data.gov.uk/doc/local-authority/00DA,Leeds City Council,Environment & Housing,Environmental Health,Supplies and Services,Other Hired And Contracted Services,265,21-Feb-14,1402-00395,62.58,R,Air Liquide Uk
http://statistics.data.gov.uk/doc/local-authority/00DA,Leeds City Council,Environment & Housing,Environmental Health,Supplies and Services,Other Hired And Contracted Services,265,21-Feb-14,1402-00396,13.63,R,Air Liquide Uk
http://statistics.data.gov.uk/doc/local-authority/00DA,Leeds City Council,Environment & Housing,Environmental Health,Supplies and Services,Other Hired And Contracted Services,265,21-Feb-14,1402-00397,40.89,R,Air Liquide Uk
http://statistics.data.gov.uk/doc/local-authority/00DA,Leeds City Council,Environment & Housing,Parks & Countryside,Transport,Repair & Maintenance of  Plant,342,07-Feb-14,1402-00398,199.8,R,Air Solutions (Leeds) Ltd
http://statistics.data.gov.uk/doc/local-authority/00DA,Leeds City Council,Central & Corporate,Commercial Services Trading Services,Supplies and Services,Other Hired And Contracted Services,265,12-Feb-14,1402-00399,155.91,R,Aire Body Care Limited
http://statistics.data.gov.uk/doc/local-authority/00DA,Leeds City Council,Adult Social Care,Services For Adults Under 65 Mental/Dis,Third Party Payments,Residential,580,12-Feb-14,1402-00400,6028.4,R,Aire House
http://statistics.data.gov.uk/doc/local-authority/00DA,Leeds City Council as Accountable Body,Social Services Pooled Budgets,Jcs For People With Learning Disabilitie,Third Party Payments,Residential,580,12-Feb-14,1402-00401,12737.04,R,Aire House
http://statistics.data.gov.uk/doc/local-authority/00DA,Leeds City Council,Environment & Housing,Hra,Premises,Grounds Maintenance Work,111,06-Feb-14,1402-00402,1825,R,Aire Valley Tree Services Ltd
http://statistics.data.gov.uk/doc/local-authority/00DA,Leeds City Council,Adult Social Care,Services For Older People - 65 And Over,Third Party Payments,Residential Care Dementia,571,12-Feb-14,1402-00403,45740.63,R,Aire View Residential Home
http://statistics.data.gov.uk/doc/local-authority/00DA,Leeds City Council,Adult Social Care,Services For Older People - 65 And Over,Third Party Payments,Residential,580,12-Feb-14,1402-00404,15180.83,R,Aire View Residential Home
http://statistics.data.gov.uk/doc/local-authority/00DA,Leeds City Council,Adult Social Care,Services For Older People - 65 And Over,Third Party Payments,Residential,580,12-Feb-14,1402-00405,25171.8,R,Airedale (Goldsborough)
http://statistics.data.gov.uk/doc/local-authority/00DA,Leeds City Council as Accountable Body,Social Services Pooled Budgets,Jcs For People With Learning Disabilitie,Third Party Payments,Residential,580,12-Feb-14,1402-00406,6179.84,R,Aitch Care Homes
http://statistics.data.gov.uk/doc/local-authority/00DA,Leeds City Council,City Development,Recreation,Supplies and Services,Operational Materials,205,21-Feb-14,1402-00407,578.4,R,Aitkens Sportsturf Ltd
http://statistics.data.gov.uk/doc/local-authority/00DA,Leeds City Council,Adult Social Care,Services For Older People - 65 And Over,Third Party Payments,Home Care,568,07-Feb-14,1402-00408,7414.4,R,Aj Social Care
http://statistics.data.gov.uk/doc/local-authority/00DA,Leeds City Council,Adult Social Care,Services For Older People - 65 And Over,Third Party Payments,Home Care,568,07-Feb-14,1402-00409,310,R,Aj Social Care
http://statistics.data.gov.uk/doc/local-authority/00DA,Leeds City Council,Adult Social Care,Services For Older People Under 65 P/Dis,Third Party Payments,Home Care,568,07-Feb-14,1402-00410,2614.4,R,Aj Social Care
http://statistics.data.gov.uk/doc/local-authority/00DA,Leeds City Council,Adult Social Care,Services For Older People Under 65 P/Dis,Third Party Payments,Home Care,568,07-Feb-14,1402-00411,1013,R,Aj Social Care
http://statistics.data.gov.uk/doc/local-authority/00DA,Leeds City Council,Central & Corporate,Commercial Services Trading Services,Supplies and Services,Operational Materials,205,07-Feb-14,1402-00412,145.5,R,Ajm Fixings & Power Tools Ltd
http://statistics.data.gov.uk/doc/local-authority/00DA,Leeds City Council,Central & Corporate,Commercial Services Trading Services,Supplies and Services,Operational Materials,205,07-Feb-14,1402-00413,354.82,R,Ajm Fixings & Power Tools Ltd
http://statistics.data.gov.uk/doc/local-authority/00DA,Leeds City Council,Central & Corporate,Commercial Services Trading Services,Supplies and Services,Operational Materials,205,11-Feb-14,1402-00414,96,R,Ajm Fixings & Power Tools Ltd
http://statistics.data.gov.uk/doc/local-authority/00DA,Leeds City Council,Environment & Housing,Hra,Supplies and Services,Operational Materials,205,14-Feb-14,1402-00415,1218,R,Ajm Fixings & Power Tools Ltd
http://statistics.data.gov.uk/doc/local-authority/00DA,Leeds City Council,Adult Social Care,Services For Older People - 65 And Over,Third Party Payments,Nursing Home,570,12-Feb-14,1402-00416,1298.84,R,Akari Care Ltd
http://statistics.data.gov.uk/doc/local-authority/00DA,Leeds City Council,Adult Social Care,Social Services Support Services,Employees,Tuition & Course Fees,73,27-Feb-14,1402-00417,4500,R,Akd Training Solutions Ltd
http://statistics.data.gov.uk/doc/local-authority/00DA,Leeds City Council as Accountable Body,Social Services Pooled Budgets,Jcs For People With Learning Disabilitie,Transfer Payments,Personal Budgets,627,12-Feb-14,1402-00418,1371.96,R,REDACTED PERSONAL DATA
http://statistics.data.gov.uk/doc/local-authority/00DA,Leeds City Council,Central & Corporate,Commercial Services Trading Services,Supplies and Services,Operational Materials,205,26-Feb-14,1402-00419,193.18,R,Akw Medicare Ltd
http://statistics.data.gov.uk/doc/local-authority/00DA,Leeds City Council,Central & Corporate,Commercial Services Trading Services,Supplies and Services,Operational Materials,205,19-Feb-14,1402-00420,108.22,R,Akw Medicare Ltd
http://statistics.data.gov.uk/doc/local-authority/00DA,Leeds City Council,Central & Corporate,Commercial Services Trading Services,Supplies and Services,Operational Materials,205,14-Feb-14,1402-00421,295.34,R,Akw Medicare Ltd
http://statistics.data.gov.uk/doc/local-authority/00DA,Leeds City Council,Childrens Services,Safeguarding Targeted & Specialist,Support Services,Legal Disbursements,411,20-Feb-14,1402-00422,287.16,R,Alan Bradley
http://statistics.data.gov.uk/doc/local-authority/00DA,Leeds City Council,Children's Services,Safeguarding  Targeted & Specialist  ,Third Party Payments,Fees to Carers,563,03-Jan-14,1402-00423,35,R,Alan Brown Flowers
http://statistics.data.gov.uk/doc/local-authority/00DA,Leeds City Council,Children's Services,Safeguarding  Targeted & Specialist  ,Third Party Payments,Fees to Carers,563,06-Jan-14,1402-00424,111.99,R,Alan Brown Flowers
http://statistics.data.gov.uk/doc/local-authority/00DA,Leeds City Council,Children's Services,Safeguarding  Targeted & Specialist  ,Third Party Payments,Fees to Carers,563,29-Jan-14,1402-00425,35,R,Alan Brown Flowers
http://statistics.data.gov.uk/doc/local-authority/00DA,Leeds City Council,Legal And Democratic Services,Democratic Services  ,Premises,Grounds Maintenance Work,111,31-Jan-14,1402-00426,15,R,Alan Brown Flowers
http://statistics.data.gov.uk/doc/local-authority/00DA,Leeds City Council,Adult Social Care,Services For Older People Under 65 P/Dis,Transfer Payments,Personalised Budgets,627,12-Feb-14,1402-00427,2038.96,R,REDACTED PERSONAL DATA
http://statistics.data.gov.uk/doc/local-authority/00DA,Leeds City Council,Environment & Housing,Streetscene Environmental Services,Transport,External Hire -Occasional,304,07-Feb-14,1402-00428,594,R,Alan Thompson Transport
http://statistics.data.gov.uk/doc/local-authority/00DA,Leeds City Council,Adult Social Care,Services For Older People - 65 And Over,Transfer Payments,Personalised Budgets,627,12-Feb-14,1402-00429,1756.8,R,REDACTED PERSONAL DATA
http://statistics.data.gov.uk/doc/local-authority/00DA,Leeds City Council,Central & Corporate,Audit And Risk,Supplies and Services,Memberships,226,06-Feb-14,1402-00430,295,R,Alarm
http://statistics.data.gov.uk/doc/local-authority/00DA,Leeds City Council,Adult Social Care,Services For Older People - 65 And Over,Transfer Payments,Personalised Budgets,627,12-Feb-14,1402-00431,263.6,R,REDACTED PERSONAL DATA
http://statistics.data.gov.uk/doc/local-authority/00DA,Leeds City Council,Central & Corporate,Commercial Services Trading Services,Transport,Vehicle Spares,345,14-Feb-14,1402-00432,40.64,R,Albert Jagger Limited
http://statistics.data.gov.uk/doc/local-authority/00DA,Leeds City Council,Central & Corporate,Commercial Services Trading Services,Transport,Vehicle Spares,345,21-Feb-14,1402-00433,52.25,R,Albert Jagger Limited
http://statistics.data.gov.uk/doc/local-authority/00DA,Leeds City Council,Environment & Housing,Environmental Health,Supplies and Services,Other Hired And Contracted Services,265,06-Feb-14,1402-00434,174.27,R,Alcontrol Uk Ltd
http://statistics.data.gov.uk/doc/local-authority/00DA,Leeds City Council,Environment & Housing,Streetscene Environmental Services,Supplies and Services,Other Hired And Contracted Services,265,05-Feb-14,1402-00435,48,R,Alcontrol Uk Ltd
http://statistics.data.gov.uk/doc/local-authority/00DA,Leeds City Council,Environment & Housing,Streetscene Environmental Services,Supplies and Services,Other Hired And Contracted Services,265,05-Feb-14,1402-00436,24,R,Alcontrol Uk Ltd
http://statistics.data.gov.uk/doc/local-authority/00DA,Leeds City Council,City Development,Libraries  Arts & Heritage,Supplies and Services,Art Galleries Total Stores,3,13-Feb-14,1402-00437,204,R,Alessi Uk Ltd
http://statistics.data.gov.uk/doc/local-authority/00DA,Leeds City Council,City Development,Libraries  Arts & Heritage,Supplies and Services,Art Galleries Total Stores,3,13-Feb-14,1402-00438,-188,R,Alessi Uk Ltd
http://statistics.data.gov.uk/doc/local-authority/00DA,Leeds City Council,Adult Social Care,Services For Older People Under 65 P/Dis,Transfer Payments,Personalised Budgets,627,12-Feb-14,1402-00439,185.8,R,REDACTED PERSONAL DATA
http://statistics.data.gov.uk/doc/local-authority/00DA,Leeds City Council as Accountable Body,Social Services Pooled Budgets,Jcs For People With Learning Disabilitie,Transfer Payments,Direct Payments,626,12-Feb-14,1402-00440,1383.4,R,REDACTED PERSONAL DATA
http://statistics.data.gov.uk/doc/local-authority/00DA,Leeds City Council,Adult Social Care,Services For Older People Under 65 P/Dis,Transfer Payments,Personalised Budgets,627,12-Feb-14,1402-00441,985.44,R,REDACTED PERSONAL DATA
http://statistics.data.gov.uk/doc/local-authority/00DA,Leeds City Council,Adult Social Care,Services For Older People Under 65 P/Dis,Transfer Payments,Direct Payments,626,12-Feb-14,1402-00442,775.04,R,REDACTED PERSONAL DATA
http://statistics.data.gov.uk/doc/local-authority/00DA,Leeds City Council,Adult Social Care,Services For Older People - 65 And Over,Third Party Payments,Nursing Home,570,13-Feb-14,1402-00443,1614.76,R,Alexander Court Care Home
http://statistics.data.gov.uk/doc/local-authority/00DA,Leeds City Council,Adult Social Care,Services For Older People Under 65 P/Dis,Transfer Payments,Personalised Budgets,627,12-Feb-14,1402-00444,726.32,R,REDACTED PERSONAL DATA
http://statistics.data.gov.uk/doc/local-authority/00DA,Leeds City Council,Adult Social Care,Services For Adults Under 65 Mental/Dis,Transfer Payments,Personalised Budgets,627,12-Feb-14,1402-00445,640,R,REDACTED PERSONAL DATA
http://statistics.data.gov.uk/doc/local-authority/00DA,Leeds City Council,Adult Social Care,Services For Adults Under 65 Mental/Dis,Third Party Payments,Residential,580,12-Feb-14,1402-00446,1768,R,Alexander Residential Home
http://statistics.data.gov.uk/doc/local-authority/00DA,Leeds City Council,Adult Social Care,Services For Older People - 65 And Over,Third Party Payments,Residential Care Dementia,571,12-Feb-14,1402-00447,14268.03,R,Alexander Residential Home
http://statistics.data.gov.uk/doc/local-authority/00DA,Leeds City Council,Adult Social Care,Services For Older People - 65 And Over,Third Party Payments,Residential,580,12-Feb-14,1402-00448,12057,R,Alexander Residential Home
http://statistics.data.gov.uk/doc/local-authority/00DA,Leeds City Council as Accountable Body,Social Services Pooled Budgets,Jcs For People With Learning Disabilitie,Third Party Payments,Residential,580,12-Feb-14,1402-00449,1230,R,Alexander Residential Home
http://statistics.data.gov.uk/doc/local-authority/00DA,Leeds City Council as Accountable Body,Social Services Pooled Budgets,Jcs For People With Learning Disabilitie,Transfer Payments,Personal Budgets,627,12-Feb-14,1402-00450,583.32,R,REDACTED PERSONAL DATA
http://statistics.data.gov.uk/doc/local-authority/00DA,Leeds City Council as Accountable Body,Social Services Pooled Budgets,Jcs For People With Learning Disabilitie,Transfer Payments,Direct Payments,626,12-Feb-14,1402-00451,266.72,R,REDACTED PERSONAL DATA
http://statistics.data.gov.uk/doc/local-authority/00DA,Leeds City Council,Adult Social Care,Services For Older People - 65 And Over,Third Party Payments,Residential,580,12-Feb-14,1402-00452,11310.09,R,Alexandra Court
http://statistics.data.gov.uk/doc/local-authority/00DA,Leeds City Council,Central & Corporate,Customer Services,Supplies and Services,Other Hired And Contracted Services,265,04-Feb-14,1402-00453,450,R,Alexandra Hirst
http://statistics.data.gov.uk/doc/local-authority/00DA,Leeds City Council,Environment & Housing,Health & Environmental Action,Supplies and Services,Other Hired And Contracted Services,265,05-Feb-14,1402-00454,548.25,R,Alexia Blohm-Pain
http://statistics.data.gov.uk/doc/local-authority/00DA,Leeds City Council,Environment & Housing,Health & Environmental Action,Supplies and Services,Other Hired And Contracted Services,265,19-Feb-14,1402-00455,688.75,R,Alexia Blohm-Pain
http://statistics.data.gov.uk/doc/local-authority/00DA,Leeds City Council,Environment & Housing,Environmental Action (South),Supplies and Services,Bought In Professional Services,277,28-Feb-14,1402-00456,165.9,R,Alfies Boarding Kennels
http://statistics.data.gov.uk/doc/local-authority/00DA,Leeds City Council,Environment & Housing,Environmental Action (South),Supplies and Services,Bought In Professional Services,277,21-Feb-14,1402-00457,113.4,R,Alfies Boarding Kennels
http://statistics.data.gov.uk/doc/local-authority/00DA,Leeds City Council,Environment & Housing,Environmental Action (South),Supplies and Services,Bought In Professional Services,277,14-Feb-14,1402-00458,379.3,R,Alfies Boarding Kennels
http://statistics.data.gov.uk/doc/local-authority/00DA,Leeds City Council,Environment & Housing,Environmental Action (South),Supplies and Services,Bought In Professional Services,277,07-Feb-14,1402-00459,478.4,R,Alfies Boarding Kennels
http://statistics.data.gov.uk/doc/local-authority/00DA,Leeds City Council,Environment & Housing,Environmental Action (South),Supplies and Services,Bought In Professional Services,277,07-Feb-14,1402-00460,268.4,R,Alfies Boarding Kennels
http://statistics.data.gov.uk/doc/local-authority/00DA,Leeds City Council,Environment & Housing,Environmental Action (South),Supplies and Services,Bought In Professional Services,277,07-Feb-14,1402-00461,148.4,R,Alfies Boarding Kennels
http://statistics.data.gov.uk/doc/local-authority/00DA,Leeds City Council,Environment & Housing,Environmental Action (South),Supplies and Services,Bought In Professional Services,277,21-Feb-14,1402-00462,700,R,Alfies Boarding Kennels
http://statistics.data.gov.uk/doc/local-authority/00DA,Leeds City Council,Environment & Housing,Environmental Action (South),Supplies and Services,Bought In Professional Services,277,07-Feb-14,1402-00463,-434.3,R,Alfies Boarding Kennels
http://statistics.data.gov.uk/doc/local-authority/00DA,Leeds City Council,Childrens Services,Learning Skills & Universal,Premises,Repairs & Adapts - Buildings,191,26-Feb-14,1402-00464,2500,R,Alfred Bagnall & Sons (Leeds) Ltd
http://statistics.data.gov.uk/doc/local-authority/00DA,Leeds City Council,City Development,Asset Management Services,Premises,Maintenance Of Buildings,101,05-Feb-14,1402-00465,13149.8,R,Alfred Bagnall & Sons (Leeds) Ltd
http://statistics.data.gov.uk/doc/local-authority/00DA,Leeds City Council,City Development,Asset Management Services,Premises,Maintenance Of Buildings,101,19-Feb-14,1402-00466,4486.25,R,Alfred Bagnall & Sons (Leeds) Ltd
http://statistics.data.gov.uk/doc/local-authority/00DA,Leeds City Council,City Development,Asset Management Services,Premises,Maintenance Of Buildings,101,26-Feb-14,1402-00467,22021.5,R,Alfred Bagnall & Sons (Leeds) Ltd
http://statistics.data.gov.uk/doc/local-authority/00DA,Leeds City Council,Adult Social Care,Services For Older People Under 65 P/Dis,Transfer Payments,Personalised Budgets,627,12-Feb-14,1402-00468,525.36,R,REDACTED PERSONAL DATA
http://statistics.data.gov.uk/doc/local-authority/00DA,Leeds City Council,Childrens Services,Safeguarding Targeted & Specialist,Third Party Payments,Family Placements,562,27-Feb-14,1402-00469,8,R,REDACTED PERSONAL DATA
http://statistics.data.gov.uk/doc/local-authority/00DA,Leeds City Council as Accountable Body,Social Services Pooled Budgets,Jcs For People With Learning Disabilitie,Transfer Payments,Personal Budgets,627,12-Feb-14,1402-00470,947.96,R,REDACTED PERSONAL DATA
http://statistics.data.gov.uk/doc/local-authority/00DA,Leeds City Council,Adult Social Care,Services For Older People Under 65 P/Dis,Transfer Payments,Personalised Budgets,627,12-Feb-14,1402-00471,192,R,REDACTED PERSONAL DATA
http://statistics.data.gov.uk/doc/local-authority/00DA,Leeds City Council,City Development,Libraries  Arts & Heritage,Supplies and Services,Other Hired And Contracted Services,265,14-Feb-14,1402-00472,900,R,Alison Glew
http://statistics.data.gov.uk/doc/local-authority/00DA,Leeds City Council,City Development,Libraries  Arts & Heritage,Supplies and Services,Bought In Professional Services,277,07-Feb-14,1402-00473,1776.64,R,Alison Glew
http://statistics.data.gov.uk/doc/local-authority/00DA,Leeds City Council,Childrens Services,Strategy Policy Planning & Participation,Transport,Private Hire,360,06-Feb-14,1402-00474,92.7,R,REDACTED PERSONAL DATA
http://statistics.data.gov.uk/doc/local-authority/00DA,Leeds City Council,City Development,Libraries  Arts & Heritage,Supplies and Services,Other Hired And Contracted Services,265,25-Feb-14,1402-00475,400,R,Alison Rhind
http://statistics.data.gov.uk/doc/local-authority/00DA,Leeds City Council,Adult Social Care,Services For Older People Under 65 P/Dis,Transfer Payments,Personalised Budgets,627,12-Feb-14,1402-00476,156.5,R,REDACTED PERSONAL DATA
http://statistics.data.gov.uk/doc/local-authority/00DA,Leeds City Council,Childrens Services,Learning Skills & Universal,Third Party Payments,Services Rendered By Voluntary Sector,505,18-Feb-14,1402-00477,1674.95,R,All Stars Childcare
http://statistics.data.gov.uk/doc/local-authority/00DA,Leeds City Council,Childrens Services,Learning Skills & Universal,Third Party Payments,Services Rendered By Other Organisations,511,03-Feb-14,1402-00478,257.05,R,All Stars Childcare
http://statistics.data.gov.uk/doc/local-authority/00DA,Leeds City Council,City Development,Economic Development,Supplies and Services,Resaleable Materials,204,10-Feb-14,1402-00479,132,R,Allan Radcliffe
http://statistics.data.gov.uk/doc/local-authority/00DA,Leeds City Council,Central & Corporate,Support And Facilities General Fund,Supplies and Services,Other Hired And Contracted Services,265,10-Feb-14,1402-00480,150,R,Allansound Communications
http://statistics.data.gov.uk/doc/local-authority/00DA,Leeds City Council,City Development,Asset Management Services,Premises,Lifts,103,14-Feb-14,1402-00481,1594.45,R,Allegion (Uk) Ltd
http://statistics.data.gov.uk/doc/local-authority/00DA,Leeds City Council,Central & Corporate,Human Resources,Employees,Occupational Health,85,07-Feb-14,1402-00482,64,R,Allen Stanley & Hide
http://statistics.data.gov.uk/doc/local-authority/00DA,Leeds City Council as Accountable Body,Social Services Pooled Budgets,Jcs For People With Learning Disabilitie,Third Party Payments,Sheltered Accommodation,569,12-Feb-14,1402-00483,16596.04,R,Allerton Avenue
http://statistics.data.gov.uk/doc/local-authority/00DA,Leeds City Council,Central & Corporate,Benefits,Supplies and Services,Bank Charges,263,05-Feb-14,1402-00484,4.7,R,Alliance & Leicester Commercial Bank
http://statistics.data.gov.uk/doc/local-authority/00DA,Leeds City Council,Central & Corporate,Benefits,Supplies and Services,Bank Charges,263,05-Feb-14,1402-00485,304.09,R,Alliance & Leicester Commercial Bank
http://statistics.data.gov.uk/doc/local-authority/00DA,Leeds City Council,Central & Corporate,Benefits,Supplies and Services,Bank Charges,263,05-Feb-14,1402-00486,1286.94,R,Alliance & Leicester Commercial Bank
http://statistics.data.gov.uk/doc/local-authority/00DA,Leeds City Council,Central & Corporate,Benefits,Supplies and Services,Bank Charges,263,05-Feb-14,1402-00487,130.24,R,Alliance & Leicester Commercial Bank
http://statistics.data.gov.uk/doc/local-authority/00DA,Leeds City Council,Central & Corporate,Benefits,Supplies and Services,Bank Charges,263,03-Feb-14,1402-00488,-133.39,R,Alliance & Leicester Commercial Bank
http://statistics.data.gov.uk/doc/local-authority/00DA,Leeds City Council,Environment & Housing,Hra,Supplies and Services,Other Hired And Contracted Services,265,05-Feb-14,1402-00489,300.48,R,Alliance & Leicester Commercial Bank
http://statistics.data.gov.uk/doc/local-authority/00DA,Leeds City Council,Adult Social Care,Other Generic Services,Third Party Payments,Home Care,568,21-Feb-14,1402-00490,16415.7,R,Allied Healthcare Group Ltd
http://statistics.data.gov.uk/doc/local-authority/00DA,Leeds City Council,Adult Social Care,Other Generic Services,Third Party Payments,Home Care,568,21-Feb-14,1402-00491,6323.6,R,Allied Healthcare Group Ltd
http://statistics.data.gov.uk/doc/local-authority/00DA,Leeds City Council,Adult Social Care,Other Generic Services,Third Party Payments,Home Care,568,21-Feb-14,1402-00492,47.8,R,Allied Healthcare Group Ltd
http://statistics.data.gov.uk/doc/local-authority/00DA,Leeds City Council,Adult Social Care,Other Generic Services,Third Party Payments,Home Care,568,21-Feb-14,1402-00493,71.7,R,Allied Healthcare Group Ltd
http://statistics.data.gov.uk/doc/local-authority/00DA,Leeds City Council,Adult Social Care,Services For Adults Under 65 Mental/Dis,Third Party Payments,Home Care,568,05-Feb-14,1402-00494,181.67,R,Allied Healthcare Group Ltd
http://statistics.data.gov.uk/doc/local-authority/00DA,Leeds City Council,Adult Social Care,Services For Older People - 65 And Over,Third Party Payments,Home Care,568,05-Feb-14,1402-00495,122.4,R,Allied Healthcare Group Ltd
http://statistics.data.gov.uk/doc/local-authority/00DA,Leeds City Council,Adult Social Care,Services For Older People - 65 And Over,Third Party Payments,Home Care,568,21-Feb-14,1402-00496,458.47,R,Allied Healthcare Group Ltd
http://statistics.data.gov.uk/doc/local-authority/00DA,Leeds City Council,Adult Social Care,Services For Older People - 65 And Over,Third Party Payments,Home Care,568,21-Feb-14,1402-00497,1432.11,R,Allied Healthcare Group Ltd
http://statistics.data.gov.uk/doc/local-authority/00DA,Leeds City Council,Adult Social Care,Services For Older People - 65 And Over,Third Party Payments,Home Care,568,27-Feb-14,1402-00498,9.19,R,Allied Healthcare Group Ltd
http://statistics.data.gov.uk/doc/local-authority/00DA,Leeds City Council,Adult Social Care,Services For Older People - 65 And Over,Third Party Payments,Home Care,568,05-Feb-14,1402-00499,501.9,R,Allied Healthcare Group Ltd
http://statistics.data.gov.uk/doc/local-authority/00DA,Leeds City Council,Adult Social Care,Services For Older People - 65 And Over,Third Party Payments,Home Care,568,05-Feb-14,1402-00500,6703.11,R,Allied Healthcare Group Ltd
http://statistics.data.gov.uk/doc/local-authority/00DA,Leeds City Council,Adult Social Care,Services For Older People - 65 And Over,Third Party Payments,Home Care,568,05-Feb-14,1402-00501,2806.33,R,Allied Healthcare Group Ltd
http://statistics.data.gov.uk/doc/local-authority/00DA,Leeds City Council,Adult Social Care,Services For Older People - 65 And Over,Third Party Payments,Home Care,568,05-Feb-14,1402-00502,2397.89,R,Allied Healthcare Group Ltd
http://statistics.data.gov.uk/doc/local-authority/00DA,Leeds City Council,Adult Social Care,Services For Older People - 65 And Over,Third Party Payments,Home Care,568,05-Feb-14,1402-00503,5109.46,R,Allied Healthcare Group Ltd
http://statistics.data.gov.uk/doc/local-authority/00DA,Leeds City Council,Adult Social Care,Services For Older People - 65 And Over,Third Party Payments,Home Care,568,05-Feb-14,1402-00504,288.84,R,Allied Healthcare Group Ltd
http://statistics.data.gov.uk/doc/local-authority/00DA,Leeds City Council,Adult Social Care,Services For Older People - 65 And Over,Third Party Payments,Home Care,568,05-Feb-14,1402-00505,11910.07,R,Allied Healthcare Group Ltd
http://statistics.data.gov.uk/doc/local-authority/00DA,Leeds City Council,Adult Social Care,Services For Older People - 65 And Over,Third Party Payments,Home Care,568,05-Feb-14,1402-00506,15939.45,R,Allied Healthcare Group Ltd
http://statistics.data.gov.uk/doc/local-authority/00DA,Leeds City Council,Adult Social Care,Services For Older People - 65 And Over,Third Party Payments,Home Care,568,05-Feb-14,1402-00507,6909.25,R,Allied Healthcare Group Ltd
http://statistics.data.gov.uk/doc/local-authority/00DA,Leeds City Council,Adult Social Care,Services For Older People - 65 And Over,Third Party Payments,Home Care,568,17-Feb-14,1402-00508,890.63,R,Allied Healthcare Group Ltd
http://statistics.data.gov.uk/doc/local-authority/00DA,Leeds City Council,Adult Social Care,Services For Older People - 65 And Over,Third Party Payments,Home Care,568,18-Feb-14,1402-00509,658.25,R,Allied Healthcare Group Ltd
http://statistics.data.gov.uk/doc/local-authority/00DA,Leeds City Council,Adult Social Care,Services For Older People - 65 And Over,Third Party Payments,Home Care,568,18-Feb-14,1402-00510,75.68,R,Allied Healthcare Group Ltd
http://statistics.data.gov.uk/doc/local-authority/00DA,Leeds City Council,Adult Social Care,Services For Older People - 65 And Over,Third Party Payments,Home Care,568,18-Feb-14,1402-00511,159.35,R,Allied Healthcare Group Ltd
http://statistics.data.gov.uk/doc/local-authority/00DA,Leeds City Council,Adult Social Care,Services For Older People - 65 And Over,Third Party Payments,Home Care,568,18-Feb-14,1402-00512,6.13,R,Allied Healthcare Group Ltd
http://statistics.data.gov.uk/doc/local-authority/00DA,Leeds City Council,Adult Social Care,Services For Older People - 65 And Over,Third Party Payments,Home Care,568,18-Feb-14,1402-00513,52.75,R,Allied Healthcare Group Ltd
http://statistics.data.gov.uk/doc/local-authority/00DA,Leeds City Council,Adult Social Care,Services For Older People - 65 And Over,Third Party Payments,Home Care,568,05-Feb-14,1402-00514,153,R,Allied Healthcare Group Ltd
http://statistics.data.gov.uk/doc/local-authority/00DA,Leeds City Council,Adult Social Care,Services For Older People - 65 And Over,Third Party Payments,Home Care,568,05-Feb-14,1402-00515,664.03,R,Allied Healthcare Group Ltd
http://statistics.data.gov.uk/doc/local-authority/00DA,Leeds City Council,Adult Social Care,Services For Older People - 65 And Over,Third Party Payments,Home Care,568,05-Feb-14,1402-00516,561,R,Allied Healthcare Group Ltd
http://statistics.data.gov.uk/doc/local-authority/00DA,Leeds City Council,Adult Social Care,Services For Older People - 65 And Over,Third Party Payments,Home Care,568,18-Feb-14,1402-00517,30.65,R,Allied Healthcare Group Ltd
http://statistics.data.gov.uk/doc/local-authority/00DA,Leeds City Council,Adult Social Care,Services For Older People - 65 And Over,Third Party Payments,Home Care,568,05-Feb-14,1402-00518,7.69,R,Allied Healthcare Group Ltd
http://statistics.data.gov.uk/doc/local-authority/00DA,Leeds City Council,Adult Social Care,Services For Older People - 65 And Over,Third Party Payments,Home Care,568,18-Feb-14,1402-00519,12.61,R,Allied Healthcare Group Ltd
http://statistics.data.gov.uk/doc/local-authority/00DA,Leeds City Council,Adult Social Care,Services For Older People - 65 And Over,Third Party Payments,Home Care,568,18-Feb-14,1402-00520,6.13,R,Allied Healthcare Group Ltd
http://statistics.data.gov.uk/doc/local-authority/00DA,Leeds City Council,Adult Social Care,Services For Older People - 65 And Over,Third Party Payments,Home Care,568,18-Feb-14,1402-00521,41,R,Allied Healthcare Group Ltd
http://statistics.data.gov.uk/doc/local-authority/00DA,Leeds City Council,Adult Social Care,Services For Older People Under 65 P/Dis,Third Party Payments,Home Care,568,05-Feb-14,1402-00522,6610.77,R,Allied Healthcare Group Ltd
http://statistics.data.gov.uk/doc/local-authority/00DA,Leeds City Council,Adult Social Care,Services For Older People Under 65 P/Dis,Third Party Payments,Home Care,568,05-Feb-14,1402-00523,856.8,R,Allied Healthcare Group Ltd
http://statistics.data.gov.uk/doc/local-authority/00DA,Leeds City Council,Adult Social Care,Services For Older People Under 65 P/Dis,Third Party Payments,Home Care,568,21-Feb-14,1402-00524,1070.09,R,Allied Healthcare Group Ltd
http://statistics.data.gov.uk/doc/local-authority/00DA,Leeds City Council,Adult Social Care,Services For Older People Under 65 P/Dis,Third Party Payments,Home Care,568,27-Feb-14,1402-00525,9.94,R,Allied Healthcare Group Ltd
http://statistics.data.gov.uk/doc/local-authority/00DA,Leeds City Council,Adult Social Care,Services For Older People Under 65 P/Dis,Third Party Payments,Home Care,568,05-Feb-14,1402-00526,1171.1,R,Allied Healthcare Group Ltd
http://statistics.data.gov.uk/doc/local-authority/00DA,Leeds City Council,Adult Social Care,Services For Older People Under 65 P/Dis,Third Party Payments,Home Care,568,05-Feb-14,1402-00527,246.17,R,Allied Healthcare Group Ltd
http://statistics.data.gov.uk/doc/local-authority/00DA,Leeds City Council,Adult Social Care,Services For Older People Under 65 P/Dis,Third Party Payments,Home Care,568,05-Feb-14,1402-00528,250.95,R,Allied Healthcare Group Ltd
http://statistics.data.gov.uk/doc/local-authority/00DA,Leeds City Council,Adult Social Care,Services For Older People Under 65 P/Dis,Third Party Payments,Home Care,568,05-Feb-14,1402-00529,1457.87,R,Allied Healthcare Group Ltd
http://statistics.data.gov.uk/doc/local-authority/00DA,Leeds City Council,Adult Social Care,Services For Older People Under 65 P/Dis,Third Party Payments,Home Care,568,05-Feb-14,1402-00530,110.25,R,Allied Healthcare Group Ltd
http://statistics.data.gov.uk/doc/local-authority/00DA,Leeds City Council,Adult Social Care,Services For Older People Under 65 P/Dis,Third Party Payments,Home Care,568,05-Feb-14,1402-00531,1289.8,R,Allied Healthcare Group Ltd
http://statistics.data.gov.uk/doc/local-authority/00DA,Leeds City Council,Adult Social Care,Services For Older People Under 65 P/Dis,Third Party Payments,Home Care,568,25-Feb-14,1402-00532,832.87,R,Allied Healthcare Group Ltd
http://statistics.data.gov.uk/doc/local-authority/00DA,Leeds City Council,Adult Social Care,Services For Older People Under 65 P/Dis,Third Party Payments,Home Care,568,25-Feb-14,1402-00533,163.2,R,Allied Healthcare Group Ltd
http://statistics.data.gov.uk/doc/local-authority/00DA,Leeds City Council,Adult Social Care,Services For Older People Under 65 P/Dis,Third Party Payments,Home Care,568,05-Feb-14,1402-00534,1448.4,R,Allied Healthcare Group Ltd
http://statistics.data.gov.uk/doc/local-authority/00DA,Leeds City Council,Adult Social Care,Services For Older People Under 65 P/Dis,Third Party Payments,Home Care,568,05-Feb-14,1402-00535,20.4,R,Allied Healthcare Group Ltd
http://statistics.data.gov.uk/doc/local-authority/00DA,Leeds City Council,Adult Social Care,Services For Older People Under 65 P/Dis,Third Party Payments,Home Care,568,05-Feb-14,1402-00536,411.26,R,Allied Healthcare Group Ltd
http://statistics.data.gov.uk/doc/local-authority/00DA,Leeds City Council,Adult Social Care,Services For Older People Under 65 P/Dis,Third Party Payments,Home Care,568,05-Feb-14,1402-00537,1428,R,Allied Healthcare Group Ltd
http://statistics.data.gov.uk/doc/local-authority/00DA,Leeds City Council,Adult Social Care,Services For Older People Under 65 P/Dis,Third Party Payments,Home Care,568,18-Feb-14,1402-00538,12.61,R,Allied Healthcare Group Ltd
http://statistics.data.gov.uk/doc/local-authority/00DA,Leeds City Council,Central & Corporate,Commercial Services General Fund,Employees,Agency Staff,8,03-Feb-14,1402-00539,213.97,R,Allied Healthcare Group Ltd
http://statistics.data.gov.uk/doc/local-authority/00DA,Leeds City Council,Central & Corporate,Commercial Services General Fund,Employees,Agency Staff,8,03-Feb-14,1402-00540,213.97,R,Allied Healthcare Group Ltd
http://statistics.data.gov.uk/doc/local-authority/00DA,Leeds City Council,Central & Corporate,Commercial Services General Fund,Employees,Agency Staff,8,03-Feb-14,1402-00541,213.97,R,Allied Healthcare Group Ltd
http://statistics.data.gov.uk/doc/local-authority/00DA,Leeds City Council,Central & Corporate,Commercial Services General Fund,Employees,Agency Staff,8,03-Feb-14,1402-00542,213.97,R,Allied Healthcare Group Ltd
http://statistics.data.gov.uk/doc/local-authority/00DA,Leeds City Council,Central & Corporate,Commercial Services General Fund,Employees,Agency Staff,8,26-Feb-14,1402-00543,199.77,R,Allied Healthcare Group Ltd
http://statistics.data.gov.uk/doc/local-authority/00DA,Leeds City Council,Central & Corporate,Commercial Services General Fund,Employees,Agency Staff,8,03-Feb-14,1402-00544,213.97,R,Allied Healthcare Group Ltd
http://statistics.data.gov.uk/doc/local-authority/00DA,Leeds City Council,Childrens Services,Safeguarding Targeted & Specialist,Third Party Payments,Services Rendered By Voluntary Sector,505,28-Feb-14,1402-00545,668.61,R,Allied Healthcare Group Ltd
http://statistics.data.gov.uk/doc/local-authority/00DA,Leeds City Council,Childrens Services,Safeguarding Targeted & Specialist,Third Party Payments,Services Rendered By Voluntary Sector,505,25-Feb-14,1402-00546,645.76,R,Allied Healthcare Group Ltd
http://statistics.data.gov.uk/doc/local-authority/00DA,Leeds City Council,Childrens Services,Safeguarding Targeted & Specialist,Third Party Payments,Services Rendered By Voluntary Sector,505,18-Feb-14,1402-00547,311.08,R,Allied Healthcare Group Ltd
http://statistics.data.gov.uk/doc/local-authority/00DA,Leeds City Council,Childrens Services,Safeguarding Targeted & Specialist,Third Party Payments,Services Rendered By Voluntary Sector,505,12-Feb-14,1402-00548,652.84,R,Allied Healthcare Group Ltd
http://statistics.data.gov.uk/doc/local-authority/00DA,Leeds City Council,Childrens Services,Safeguarding Targeted & Specialist,Third Party Payments,Services Rendered By Voluntary Sector,505,05-Feb-14,1402-00549,493.76,R,Allied Healthcare Group Ltd
http://statistics.data.gov.uk/doc/local-authority/00DA,Leeds City Council,Childrens Services,Safeguarding Targeted & Specialist,Third Party Payments,Section 17,551,28-Feb-14,1402-00550,159.32,R,Allied Healthcare Group Ltd
http://statistics.data.gov.uk/doc/local-authority/00DA,Leeds City Council,Childrens Services,Safeguarding Targeted & Specialist,Third Party Payments,Section 17,551,25-Feb-14,1402-00551,94.9,R,Allied Healthcare Group Ltd
http://statistics.data.gov.uk/doc/local-authority/00DA,Leeds City Council,Childrens Services,Safeguarding Targeted & Specialist,Third Party Payments,Section 17,551,05-Feb-14,1402-00552,53.12,R,Allied Healthcare Group Ltd
http://statistics.data.gov.uk/doc/local-authority/00DA,Leeds City Council as Accountable Body,Social Services Pooled Budgets,Jcs For People With Learning Disabilitie,Third Party Payments,Home Care,568,20-Feb-14,1402-00553,3365.26,R,Allied Healthcare Group Ltd
http://statistics.data.gov.uk/doc/local-authority/00DA,Leeds City Council as Accountable Body,Social Services Pooled Budgets,Jcs For People With Learning Disabilitie,Third Party Payments,Home Care,568,13-Feb-14,1402-00554,4136.23,R,Allied Healthcare Group Ltd
http://statistics.data.gov.uk/doc/local-authority/00DA,Leeds City Council as Accountable Body,Social Services Pooled Budgets,Jcs For People With Learning Disabilitie,Third Party Payments,Home Care,568,13-Feb-14,1402-00555,18.83,R,Allied Healthcare Group Ltd
http://statistics.data.gov.uk/doc/local-authority/00DA,Leeds City Council as Accountable Body,Social Services Pooled Budgets,Jcs For People With Learning Disabilitie,Third Party Payments,Home Care,568,12-Feb-14,1402-00556,338.85,R,Allied Healthcare Group Ltd
http://statistics.data.gov.uk/doc/local-authority/00DA,Leeds City Council as Accountable Body,Social Services Pooled Budgets,Jcs For People With Learning Disabilitie,Third Party Payments,Home Care,568,13-Feb-14,1402-00557,3706.77,R,Allied Healthcare Group Ltd
http://statistics.data.gov.uk/doc/local-authority/00DA,Leeds City Council as Accountable Body,Social Services Pooled Budgets,Jcs For People With Learning Disabilitie,Third Party Payments,Home Care,568,20-Feb-14,1402-00558,3874.01,R,Allied Healthcare Group Ltd
http://statistics.data.gov.uk/doc/local-authority/00DA,Leeds City Council as Accountable Body,Social Services Pooled Budgets,Jcs For People With Learning Disabilitie,Third Party Payments,Home Care,568,17-Feb-14,1402-00559,25.1,R,Allied Healthcare Group Ltd
http://statistics.data.gov.uk/doc/local-authority/00DA,Leeds City Council as Accountable Body,Social Services Pooled Budgets,Jcs For People With Learning Disabilitie,Third Party Payments,Home Care,568,17-Feb-14,1402-00560,451.8,R,Allied Healthcare Group Ltd
http://statistics.data.gov.uk/doc/local-authority/00DA,Leeds City Council as Accountable Body,Social Services Pooled Budgets,Jcs For People With Learning Disabilitie,Third Party Payments,Home Care,568,20-Feb-14,1402-00561,3453.47,R,Allied Healthcare Group Ltd
http://statistics.data.gov.uk/doc/local-authority/00DA,Leeds City Council as Accountable Body,Social Services Pooled Budgets,Jcs For People With Learning Disabilitie,Third Party Payments,Home Care,568,28-Feb-14,1402-00562,1311.67,R,Allied Healthcare Group Ltd
http://statistics.data.gov.uk/doc/local-authority/00DA,Leeds City Council as Accountable Body,Social Services Pooled Budgets,Jcs For People With Learning Disabilitie,Third Party Payments,Home Care,568,27-Feb-14,1402-00563,192.3,R,Allied Healthcare Group Ltd
http://statistics.data.gov.uk/doc/local-authority/00DA,Leeds City Council as Accountable Body,Social Services Pooled Budgets,Jcs For People With Learning Disabilitie,Third Party Payments,Home Care,568,27-Feb-14,1402-00564,37.65,R,Allied Healthcare Group Ltd
http://statistics.data.gov.uk/doc/local-authority/00DA,Leeds City Council as Accountable Body,Social Services Pooled Budgets,Jcs For People With Learning Disabilitie,Third Party Payments,Home Care,568,27-Feb-14,1402-00565,552.2,R,Allied Healthcare Group Ltd
http://statistics.data.gov.uk/doc/local-authority/00DA,Leeds City Council as Accountable Body,Social Services Pooled Budgets,Jcs For People With Learning Disabilitie,Third Party Payments,Home Care,568,28-Feb-14,1402-00566,3263.12,R,Allied Healthcare Group Ltd
http://statistics.data.gov.uk/doc/local-authority/00DA,Leeds City Council as Accountable Body,Social Services Pooled Budgets,Jcs For People With Learning Disabilitie,Third Party Payments,Home Care,568,19-Feb-14,1402-00567,577.2,R,Allied Healthcare Group Ltd
http://statistics.data.gov.uk/doc/local-authority/00DA,Leeds City Council as Accountable Body,Social Services Pooled Budgets,Jcs For People With Learning Disabilitie,Third Party Payments,Home Care,568,28-Feb-14,1402-00568,124.21,R,Allied Healthcare Group Ltd
http://statistics.data.gov.uk/doc/local-authority/00DA,Leeds City Council as Accountable Body,Social Services Pooled Budgets,Jcs For People With Learning Disabilitie,Third Party Payments,Home Care,568,05-Feb-14,1402-00569,3374.79,R,Allied Healthcare Group Ltd
http://statistics.data.gov.uk/doc/local-authority/00DA,Leeds City Council as Accountable Body,Social Services Pooled Budgets,Jcs For People With Learning Disabilitie,Third Party Payments,Home Care,568,05-Feb-14,1402-00570,3517.74,R,Allied Healthcare Group Ltd
http://statistics.data.gov.uk/doc/local-authority/00DA,Leeds City Council as Accountable Body,Social Services Pooled Budgets,Jcs For People With Learning Disabilitie,Third Party Payments,Home Care,568,05-Feb-14,1402-00571,1365.7,R,Allied Healthcare Group Ltd
http://statistics.data.gov.uk/doc/local-authority/00DA,Leeds City Council as Accountable Body,Social Services Pooled Budgets,Jcs For People With Learning Disabilitie,Third Party Payments,Home Care,568,05-Feb-14,1402-00572,1169.51,R,Allied Healthcare Group Ltd
http://statistics.data.gov.uk/doc/local-authority/00DA,Leeds City Council as Accountable Body,Social Services Pooled Budgets,Jcs For People With Learning Disabilitie,Third Party Payments,Home Care,568,05-Feb-14,1402-00573,230.76,R,Allied Healthcare Group Ltd
http://statistics.data.gov.uk/doc/local-authority/00DA,Leeds City Council as Accountable Body,Social Services Pooled Budgets,Jcs For People With Learning Disabilitie,Third Party Payments,Home Care,568,05-Feb-14,1402-00574,33.51,R,Allied Healthcare Group Ltd
http://statistics.data.gov.uk/doc/local-authority/00DA,Leeds City Council as Accountable Body,Social Services Pooled Budgets,Jcs For People With Learning Disabilitie,Third Party Payments,Home Care,568,05-Feb-14,1402-00575,3338.49,R,Allied Healthcare Group Ltd
http://statistics.data.gov.uk/doc/local-authority/00DA,Leeds City Council as Accountable Body,Social Services Pooled Budgets,Jcs For People With Learning Disabilitie,Third Party Payments,Home Care,568,05-Feb-14,1402-00576,102,R,Allied Healthcare Group Ltd
http://statistics.data.gov.uk/doc/local-authority/00DA,Leeds City Council as Accountable Body,Social Services Pooled Budgets,Jcs For People With Learning Disabilitie,Third Party Payments,Home Care,568,05-Feb-14,1402-00577,214.2,R,Allied Healthcare Group Ltd
http://statistics.data.gov.uk/doc/local-authority/00DA,Leeds City Council as Accountable Body,Social Services Pooled Budgets,Jcs For People With Learning Disabilitie,Third Party Payments,Home Care,568,05-Feb-14,1402-00578,3612.67,R,Allied Healthcare Group Ltd
http://statistics.data.gov.uk/doc/local-authority/00DA,Leeds City Council as Accountable Body,Social Services Pooled Budgets,Jcs For People With Learning Disabilitie,Third Party Payments,Home Care,568,05-Feb-14,1402-00579,37.65,R,Allied Healthcare Group Ltd
http://statistics.data.gov.uk/doc/local-authority/00DA,Leeds City Council as Accountable Body,Social Services Pooled Budgets,Jcs For People With Learning Disabilitie,Third Party Payments,Home Care,568,03-Feb-14,1402-00580,564.75,R,Allied Healthcare Group Ltd
http://statistics.data.gov.uk/doc/local-authority/00DA,Leeds City Council,City Development,Libraries  Arts & Heritage,Supplies and Services,Art Galleries Total Stores,3,27-Feb-14,1402-00581,882,R,Allison Wiffen
http://statistics.data.gov.uk/doc/local-authority/00DA,Leeds City Council,Central & Corporate,Commercial Services Trading Services,Transport,Fuel (Non LCC Supplies),321,28-Feb-14,1402-00582,63.22,R,Allstar Business Solutions Ltd
http://statistics.data.gov.uk/doc/local-authority/00DA,Leeds City Council,Central & Corporate,Commercial Services Trading Services,Transport,Fuel (Non LCC Supplies),321,12-Feb-14,1402-00583,97.03,R,Allstar Business Solutions Ltd
http://statistics.data.gov.uk/doc/local-authority/00DA,Leeds City Council,Central & Corporate,Support And Facilities General Fund,Transport,Fuel (Non LCC Supplies),321,07-Feb-14,1402-00584,207.64,R,Allstar Business Solutions Ltd
http://statistics.data.gov.uk/doc/local-authority/00DA,Leeds City Council,Childrens Services,Learning Skills & Universal,Transport,Fuel (Non LCC Supplies),321,07-Feb-14,1402-00585,3077.27,R,Allstar Business Solutions Ltd
http://statistics.data.gov.uk/doc/local-authority/00DA,Leeds City Council,City Development,Highways,Transport,Fuel (Non LCC Supplies),321,07-Feb-14,1402-00586,271.18,R,Allstar Business Solutions Ltd
http://statistics.data.gov.uk/doc/local-authority/00DA,Leeds City Council,Environment & Housing,Parks & Countryside,Transport,Fuel (Non LCC Supplies),321,07-Feb-14,1402-00587,129.73,R,Allstar Business Solutions Ltd
http://statistics.data.gov.uk/doc/local-authority/00DA,East - North East     ,East - North East,Housing Services,Premises,General Maintenance,104,10-Feb-14,1402-00588,83.34,R,Al-Murad Diy Ltd
http://statistics.data.gov.uk/doc/local-authority/00DA,East - North East     ,East - North East,Housing Services,Premises,General Maintenance,104,10-Feb-14,1402-00589,125,R,Al-Murad Diy Ltd
http://statistics.data.gov.uk/doc/local-authority/00DA,East - North East     ,East - North East,Housing Services,Premises,General Maintenance,104,10-Feb-14,1402-00590,45.84,R,Al-Murad Diy Ltd
http://statistics.data.gov.uk/doc/local-authority/00DA,East - North East     ,East - North East,Housing Services,Premises,General Maintenance,104,10-Feb-14,1402-00591,16.67,R,Al-Murad Diy Ltd
http://statistics.data.gov.uk/doc/local-authority/00DA,East - North East     ,East - North East,Housing Services,Premises,General Maintenance,104,10-Feb-14,1402-00592,83.34,R,Al-Murad Diy Ltd
http://statistics.data.gov.uk/doc/local-authority/00DA,East - North East     ,East - North East,Housing Services,Premises,General Maintenance,104,10-Feb-14,1402-00593,125,R,Al-Murad Diy Ltd
http://statistics.data.gov.uk/doc/local-authority/00DA,East - North East     ,East - North East,Housing Services,Premises,General Maintenance,104,10-Feb-14,1402-00594,16.67,R,Al-Murad Diy Ltd
http://statistics.data.gov.uk/doc/local-authority/00DA,East - North East     ,East - North East,Housing Services,Premises,General Maintenance,104,10-Feb-14,1402-00595,83.34,R,Al-Murad Diy Ltd
http://statistics.data.gov.uk/doc/local-authority/00DA,Leeds City Council,Environment & Housing,Hra,Premises,General Maintenance,104,07-Feb-14,1402-00596,125,R,Al-Murad Diy Ltd
http://statistics.data.gov.uk/doc/local-authority/00DA,Leeds City Council,Environment & Housing,Hra,Premises,General Maintenance,104,07-Feb-14,1402-00597,41.67,R,Al-Murad Diy Ltd
http://statistics.data.gov.uk/doc/local-authority/00DA,Leeds City Council,Environment & Housing,Hra,Premises,General Maintenance,104,07-Feb-14,1402-00598,41.67,R,Al-Murad Diy Ltd
http://statistics.data.gov.uk/doc/local-authority/00DA,Leeds City Council,Environment & Housing,Hra,Premises,General Maintenance,104,07-Feb-14,1402-00599,41.67,R,Al-Murad Diy Ltd
http://statistics.data.gov.uk/doc/local-authority/00DA,Leeds City Council,Environment & Housing,Hra,Premises,General Maintenance,104,21-Feb-14,1402-00600,145.84,R,Al-Murad Diy Ltd
http://statistics.data.gov.uk/doc/local-authority/00DA,Leeds City Council,Environment & Housing,Hra,Premises,General Maintenance,104,07-Feb-14,1402-00601,125,R,Al-Murad Diy Ltd
http://statistics.data.gov.uk/doc/local-authority/00DA,Leeds City Council,Environment & Housing,Hra,Premises,General Maintenance,104,07-Feb-14,1402-00602,116.67,R,Al-Murad Diy Ltd
http://statistics.data.gov.uk/doc/local-authority/00DA,Leeds City Council,Environment & Housing,Hra,Premises,General Maintenance,104,07-Feb-14,1402-00603,4.17,R,Al-Murad Diy Ltd
http://statistics.data.gov.uk/doc/local-authority/00DA,Leeds City Council,Environment & Housing,Hra,Premises,General Maintenance,104,07-Feb-14,1402-00604,16.67,R,Al-Murad Diy Ltd
http://statistics.data.gov.uk/doc/local-authority/00DA,Leeds City Council,Environment & Housing,Hra,Premises,General Maintenance,104,07-Feb-14,1402-00605,41.67,R,Al-Murad Diy Ltd
http://statistics.data.gov.uk/doc/local-authority/00DA,Leeds City Council,Environment & Housing,Hra,Premises,General Maintenance,104,07-Feb-14,1402-00606,50,R,Al-Murad Diy Ltd
http://statistics.data.gov.uk/doc/local-authority/00DA,Leeds City Council,Environment & Housing,Hra,Premises,General Maintenance,104,07-Feb-14,1402-00607,33.34,R,Al-Murad Diy Ltd
http://statistics.data.gov.uk/doc/local-authority/00DA,West - North West  ,West - North West,Property And Maintenance,Premises,General Maintenance,104,07-Feb-14,1402-00608,125,R,Al-Murad Diy Ltd
http://statistics.data.gov.uk/doc/local-authority/00DA,Leeds City Council,Childrens Services,Safeguarding Targeted & Specialist,Support Services,Legal Disbursements,411,14-Feb-14,1402-00609,140,R,Alpha Biolabs
http://statistics.data.gov.uk/doc/local-authority/00DA,Leeds City Council,Childrens Services,Safeguarding Targeted & Specialist,Support Services,Legal Disbursements,411,26-Feb-14,1402-00610,160,R,Alpha Biolabs
http://statistics.data.gov.uk/doc/local-authority/00DA,Leeds City Council,Childrens Services,Safeguarding Targeted & Specialist,Support Services,Legal Disbursements,411,27-Feb-14,1402-00611,649,R,Alpha Biolabs
http://statistics.data.gov.uk/doc/local-authority/00DA,Leeds City Council,Childrens Services,Safeguarding Targeted & Specialist,Support Services,Legal Disbursements,411,27-Feb-14,1402-00612,40,R,Alpha Biolabs
http://statistics.data.gov.uk/doc/local-authority/00DA,Leeds City Council,Central & Corporate,Public Health,Supplies and Services,Teaching Materials,202,28-Feb-14,1402-00613,49.99,R,Alpha Films
http://statistics.data.gov.uk/doc/local-authority/00DA,Leeds City Council,Central & Corporate,Public Health,Supplies and Services,Postages,212,28-Feb-14,1402-00614,1.5,R,Alpha Films
http://statistics.data.gov.uk/doc/local-authority/00DA,Leeds City Council,Children's Services,Learning  Skills & Universal Services  ,Supplies and Services,Educational Visits,282,23-Jan-14,1402-00615,540,R,Alton Towers Park
http://statistics.data.gov.uk/doc/local-authority/00DA,Leeds City Council,Childrens Services,Safeguarding Targeted & Specialist,Supplies and Services,Teaching Materials,202,03-Feb-14,1402-00616,315,R,Altru Drama Ltd
http://statistics.data.gov.uk/doc/local-authority/00DA,Leeds City Council,Central & Corporate,Commercial Services Trading Services,Supplies and Services,Operational Materials,205,06-Feb-14,1402-00617,84.98,R,Alvin Morris Ltd
http://statistics.data.gov.uk/doc/local-authority/00DA,Leeds City Council,Strategic Accounts,Miscellaneous,Supplies and Services,Non-Recurring Grants,227,10-Feb-14,1402-00618,200,R,Alwoodley In Bloom
http://statistics.data.gov.uk/doc/local-authority/00DA,Leeds City Council,Adult Social Care,Services For Older People - 65 And Over,Third Party Payments,Nursing Home,570,12-Feb-14,1402-00619,2717.48,R,Alwoodley Nursing Home
http://statistics.data.gov.uk/doc/local-authority/00DA,Leeds City Council,Adult Social Care,Services For Older People - 65 And Over,Third Party Payments,Residential,580,12-Feb-14,1402-00620,1172.32,R,Alwoodley Nursing Home
http://statistics.data.gov.uk/doc/local-authority/00DA,Leeds City Council,Adult Social Care,Other Generic Services,Third Party Payments,Payments To Voluntary Organisations,561,27-Feb-14,1402-00621,35862.5,R,Alzheimers Society
http://statistics.data.gov.uk/doc/local-authority/00DA,Leeds City Council,Adult Social Care,Social Services Support Services,Third Party Payments,Payments To Voluntary Organisations,561,27-Feb-14,1402-00622,73125,R,Alzheimers Society
http://statistics.data.gov.uk/doc/local-authority/00DA,Leeds City Council,City Development,Recreation,Supplies and Services,Publication And Promotion,267,10-Feb-14,1402-00623,160,R,Ama Ltd
http://statistics.data.gov.uk/doc/local-authority/00DA,Leeds City Council,Childrens Services,Safeguarding Targeted & Specialist,Third Party Payments,Placement Support,550,13-Feb-14,1402-00624,3113,R,Amadudu
http://statistics.data.gov.uk/doc/local-authority/00DA,Leeds City Council,Childrens Services,Safeguarding Targeted & Specialist,Third Party Payments,Placement Support,550,27-Feb-14,1402-00625,2424.36,R,Amadudu
http://statistics.data.gov.uk/doc/local-authority/00DA,Leeds City Council,City Development,Libraries  Arts & Heritage,Supplies and Services,Bought In Professional Services,277,12-Feb-14,1402-00626,100,R,Amanda Duke
http://statistics.data.gov.uk/doc/local-authority/00DA,Leeds City Council,City Development,Libraries  Arts & Heritage,Supplies and Services,Bought In Professional Services,277,12-Feb-14,1402-00627,90,R,Amanda Duke
http://statistics.data.gov.uk/doc/local-authority/00DA,Leeds City Council,Adult Social Care,Services For Older People Under 65 P/Dis,Transfer Payments,Personalised Budgets,627,12-Feb-14,1402-00628,1475,R,REDACTED PERSONAL DATA
http://statistics.data.gov.uk/doc/local-authority/00DA,Leeds City Council,Environment & Housing,South South East,Capital,Other Costs,7,07-Feb-14,1402-00629,290,C,REDACTED PERSONAL DATA
http://statistics.data.gov.uk/doc/local-authority/00DA,Leeds City Council as Accountable Body,Social Services Pooled Budgets,Jcs For People With Learning Disabilitie,Transfer Payments,Personal Budgets,627,12-Feb-14,1402-00630,1073.2,R,REDACTED PERSONAL DATA
http://statistics.data.gov.uk/doc/local-authority/00DA,Leeds City Council,Adult Social Care,Services For Adults Under 65 Mental/Dis,Transfer Payments,Personalised Budgets,627,12-Feb-14,1402-00631,2082.56,R,REDACTED PERSONAL DATA
http://statistics.data.gov.uk/doc/local-authority/00DA,Leeds City Council,Adult Social Care,Services For Older People Under 65 P/Dis,Transfer Payments,Personalised Budgets,627,12-Feb-14,1402-00632,3649.85,R,REDACTED PERSONAL DATA
http://statistics.data.gov.uk/doc/local-authority/00DA,Leeds City Council,Adult Social Care,Services For Older People Under 65 P/Dis,Transfer Payments,Direct Payments,626,12-Feb-14,1402-00633,761.44,R,REDACTED PERSONAL DATA
http://statistics.data.gov.uk/doc/local-authority/00DA,Leeds City Council,Central & Corporate,Support And Facilities General Fund,Supplies and Services,Operational Materials,205,14-Feb-14,1402-00634,214.52,R,Amari Plastics Plc
http://statistics.data.gov.uk/doc/local-authority/00DA,Leeds City Council,Central & Corporate,Support And Facilities General Fund,Supplies and Services,Operational Materials,205,14-Feb-14,1402-00635,162.5,R,Amari Plastics Plc
http://statistics.data.gov.uk/doc/local-authority/00DA,Leeds City Council,Central & Corporate,Support And Facilities General Fund,Supplies and Services,Operational Materials,205,19-Feb-14,1402-00636,77.7,R,Amari Plastics Plc
http://statistics.data.gov.uk/doc/local-authority/00DA,Leeds City Council,Central & Corporate,Support And Facilities General Fund,Supplies and Services,Operational Materials,205,28-Feb-14,1402-00637,87,R,Amari Plastics Plc
http://statistics.data.gov.uk/doc/local-authority/00DA,Leeds City Council,Childrens Services,Learning Skills & Universal,Third Party Payments,Services Rendered By Other Organisations,511,17-Feb-14,1402-00638,3096,R,Amazing Grace Early Years Childcare
http://statistics.data.gov.uk/doc/local-authority/00DA,Leeds City Council,Adult Social Care,Access & Care  ,Supplies and Services,Books & Audio-Visual Materials,206,03-Jan-14,1402-00639,6.6,R,Amazon *mktplce Eu-Uk
http://statistics.data.gov.uk/doc/local-authority/00DA,Leeds City Council,Adult Social Care,Access & Care  ,Supplies and Services,Books & Audio-Visual Materials,206,08-Jan-14,1402-00640,4.99,R,Amazon *mktplce Eu-Uk
http://statistics.data.gov.uk/doc/local-authority/00DA,Leeds City Council,Adult Social Care,Resources  ,Supplies and Services,Telephones,213,27-Jan-14,1402-00641,6.19,R,Amazon *mktplce Eu-Uk
http://statistics.data.gov.uk/doc/local-authority/00DA,Leeds City Council,Adult Social Care,Strategic Commissioning  ,Supplies and Services,Books & Audio-Visual Materials,206,06-Jan-14,1402-00642,6.24,R,Amazon *mktplce Eu-Uk
http://statistics.data.gov.uk/doc/local-authority/00DA,Leeds City Council,Children's Services,Learning  Skills & Universal Services  ,Supplies and Services,Books & Audio-Visual Materials,206,09-Jan-14,1402-00643,9.99,R,Amazon *mktplce Eu-Uk
http://statistics.data.gov.uk/doc/local-authority/00DA,Leeds City Council,Children's Services,Learning  Skills & Universal Services  ,Supplies and Services,Books & Audio-Visual Materials,206,09-Jan-14,1402-00644,26.39,R,Amazon *mktplce Eu-Uk
http://statistics.data.gov.uk/doc/local-authority/00DA,Leeds City Council,Children's Services,Learning  Skills & Universal Services  ,Supplies and Services,Books & Audio-Visual Materials,206,10-Jan-14,1402-00645,5.79,R,Amazon *mktplce Eu-Uk
http://statistics.data.gov.uk/doc/local-authority/00DA,Leeds City Council,Children's Services,Learning  Skills & Universal Services  ,Supplies and Services,Books & Audio-Visual Materials,206,10-Jan-14,1402-00646,7.5,R,Amazon *mktplce Eu-Uk
http://statistics.data.gov.uk/doc/local-authority/00DA,Leeds City Council,Children's Services,Learning  Skills & Universal Services  ,Supplies and Services,Books & Audio-Visual Materials,206,13-Jan-14,1402-00647,4.48,R,Amazon *mktplce Eu-Uk
http://statistics.data.gov.uk/doc/local-authority/00DA,Leeds City Council,Children's Services,Learning  Skills & Universal Services  ,Supplies and Services,Books & Audio-Visual Materials,206,13-Jan-14,1402-00648,7.49,R,Amazon *mktplce Eu-Uk
http://statistics.data.gov.uk/doc/local-authority/00DA,Leeds City Council,Children's Services,Learning  Skills & Universal Services  ,Supplies and Services,Books & Audio-Visual Materials,206,13-Jan-14,1402-00649,8.7,R,Amazon *mktplce Eu-Uk
http://statistics.data.gov.uk/doc/local-authority/00DA,Leeds City Council,Children's Services,Learning  Skills & Universal Services  ,Supplies and Services,Books & Audio-Visual Materials,206,13-Jan-14,1402-00650,27.81,R,Amazon *mktplce Eu-Uk
http://statistics.data.gov.uk/doc/local-authority/00DA,Leeds City Council,Children's Services,Learning  Skills & Universal Services  ,Supplies and Services,Books & Audio-Visual Materials,206,13-Jan-14,1402-00651,14.12,R,Amazon *mktplce Eu-Uk
http://statistics.data.gov.uk/doc/local-authority/00DA,Leeds City Council,Children's Services,Learning  Skills & Universal Services  ,Supplies and Services,Books & Audio-Visual Materials,206,14-Jan-14,1402-00652,2.81,R,Amazon *mktplce Eu-Uk
http://statistics.data.gov.uk/doc/local-authority/00DA,Leeds City Council,Children's Services,Learning  Skills & Universal Services  ,Supplies and Services,Books & Audio-Visual Materials,206,14-Jan-14,1402-00653,3.35,R,Amazon *mktplce Eu-Uk
http://statistics.data.gov.uk/doc/local-authority/00DA,Leeds City Council,Children's Services,Safeguarding Targeted & Specialist  ,Supplies and Services,Books & Audio-Visual Materials,206,09-Jan-14,1402-00654,15.52,R,Amazon *mktplce Eu-Uk
http://statistics.data.gov.uk/doc/local-authority/00DA,Leeds City Council,Children's Services,Safeguarding  Targeted & Specialist  ,Premises,First Aid Requisites,128,27-Jan-14,1402-00655,22.02,R,Amazon *mktplce Eu-Uk
http://statistics.data.gov.uk/doc/local-authority/00DA,Leeds City Council,Children's Services,Safeguarding  Targeted & Specialist  ,Premises,First Aid Requisites,128,27-Jan-14,1402-00656,5.85,R,Amazon *mktplce Eu-Uk
http://statistics.data.gov.uk/doc/local-authority/00DA,Leeds City Council,Children's Services,Safeguarding  Targeted & Specialist  ,Supplies and Services,Teaching Materials,202,17-Jan-14,1402-00657,18.74,R,Amazon *mktplce Eu-Uk
http://statistics.data.gov.uk/doc/local-authority/00DA,Leeds City Council,Children's Services,Safeguarding  Targeted & Specialist  ,Supplies and Services,Teaching Materials,202,23-Jan-14,1402-00658,-16.99,R,Amazon *mktplce Eu-Uk
http://statistics.data.gov.uk/doc/local-authority/00DA,Leeds City Council,Children's Services,Safeguarding  Targeted & Specialist  ,Supplies and Services,Books & Audio-Visual Materials,206,07-Jan-14,1402-00659,-23.99,R,Amazon *mktplce Eu-Uk
http://statistics.data.gov.uk/doc/local-authority/00DA,Leeds City Council,Children's Services,Safeguarding  Targeted & Specialist  ,Supplies and Services,Books & Audio-Visual Materials,206,09-Jan-14,1402-00660,19.95,R,Amazon *mktplce Eu-Uk
http://statistics.data.gov.uk/doc/local-authority/00DA,Leeds City Council,Children's Services,Safeguarding  Targeted & Specialist  ,Supplies and Services,Books & Audio-Visual Materials,206,09-Jan-14,1402-00661,11.29,R,Amazon *mktplce Eu-Uk
http://statistics.data.gov.uk/doc/local-authority/00DA,Leeds City Council,Children's Services,Safeguarding  Targeted & Specialist  ,Supplies and Services,Books & Audio-Visual Materials,206,10-Jan-14,1402-00662,9.47,R,Amazon *mktplce Eu-Uk
http://statistics.data.gov.uk/doc/local-authority/00DA,Leeds City Council,Children's Services,Safeguarding  Targeted & Specialist  ,Supplies and Services,Books & Audio-Visual Materials,206,13-Jan-14,1402-00663,16.31,R,Amazon *mktplce Eu-Uk
http://statistics.data.gov.uk/doc/local-authority/00DA,Leeds City Council,Children's Services,Safeguarding  Targeted & Specialist  ,Supplies and Services,Books & Audio-Visual Materials,206,15-Jan-14,1402-00664,19.01,R,Amazon *mktplce Eu-Uk
http://statistics.data.gov.uk/doc/local-authority/00DA,Leeds City Council,Children's Services,Safeguarding  Targeted & Specialist  ,Supplies and Services,Books & Audio-Visual Materials,206,17-Jan-14,1402-00665,2.76,R,Amazon *mktplce Eu-Uk
http://statistics.data.gov.uk/doc/local-authority/00DA,Leeds City Council,Children's Services,Safeguarding  Targeted & Specialist  ,Supplies and Services,Office Consumables,210,23-Jan-14,1402-00666,9.49,R,Amazon *mktplce Eu-Uk
http://statistics.data.gov.uk/doc/local-authority/00DA,Leeds City Council,Children's Services,Safeguarding  Targeted & Specialist  ,Supplies and Services,Telephones,213,29-Jan-14,1402-00667,8.19,R,Amazon *mktplce Eu-Uk
http://statistics.data.gov.uk/doc/local-authority/00DA,Leeds City Council,Children's Services,Safeguarding  Targeted & Specialist  ,Supplies and Services,Computer Software & Equipment,214,07-Jan-14,1402-00668,22.59,R,Amazon *mktplce Eu-Uk
http://statistics.data.gov.uk/doc/local-authority/00DA,Leeds City Council,Children's Services,Safeguarding  Targeted & Specialist  ,Transfer Payments,Payments to Residents,622,13-Jan-14,1402-00669,23.42,R,Amazon *mktplce Eu-Uk
http://statistics.data.gov.uk/doc/local-authority/00DA,Leeds City Council,Citizens And Communities,Benefits  Welfare And Poverty  ,Supplies and Services,Office Furniture & Equipment,201,15-Jan-14,1402-00670,2.19,R,Amazon *mktplce Eu-Uk
http://statistics.data.gov.uk/doc/local-authority/00DA,Leeds City Council,Citizens And Communities,Benefits  Welfare And Poverty  ,Supplies and Services,Office Furniture & Equipment,201,28-Jan-14,1402-00671,15.9,R,Amazon *mktplce Eu-Uk
http://statistics.data.gov.uk/doc/local-authority/00DA,Leeds City Council,Citizens And Communities,Customer Access  ,Supplies and Services,Operational Materials,205,10-Jan-14,1402-00672,4.14,R,Amazon *mktplce Eu-Uk
http://statistics.data.gov.uk/doc/local-authority/00DA,Leeds City Council,Citizens And Communities,Customer Access  ,Supplies and Services,Operational Materials,205,16-Jan-14,1402-00673,20.7,R,Amazon *mktplce Eu-Uk
http://statistics.data.gov.uk/doc/local-authority/00DA,Leeds City Council,Citizens And Communities,Locality Leadership  ,Supplies and Services,Computer Software & Equipment,214,31-Jan-14,1402-00674,6.25,R,Amazon *mktplce Eu-Uk
http://statistics.data.gov.uk/doc/local-authority/00DA,Leeds City Council,City Development,Highways  ,Supplies and Services,Other Hired And Contracted Services,265,09-Jan-14,1402-00675,92.7,R,Amazon *mktplce Eu-Uk
http://statistics.data.gov.uk/doc/local-authority/00DA,Leeds City Council,City Development,Libraries  Arts And Heritage  ,Supplies and Services,Teaching Materials,202,29-Jan-14,1402-00676,19.98,R,Amazon *mktplce Eu-Uk
http://statistics.data.gov.uk/doc/local-authority/00DA,Leeds City Council,City Development,Libraries  Arts And Heritage  ,Supplies and Services,Teaching Materials,203,01-Jan-14,1402-00677,25.36,R,Amazon *mktplce Eu-Uk
http://statistics.data.gov.uk/doc/local-authority/00DA,Leeds City Council,City Development,Libraries  Arts And Heritage  ,Supplies and Services,Teaching Materials,203,27-Jan-14,1402-00678,13.95,R,Amazon *mktplce Eu-Uk
http://statistics.data.gov.uk/doc/local-authority/00DA,Leeds City Council,City Development,Libraries  Arts And Heritage  ,Supplies and Services,Operational Materials,205,10-Jan-14,1402-00679,7.2,R,Amazon *mktplce Eu-Uk
http://statistics.data.gov.uk/doc/local-authority/00DA,Leeds City Council,City Development,Libraries  Arts And Heritage  ,Supplies and Services,Operational Materials,205,10-Jan-14,1402-00680,16.49,R,Amazon *mktplce Eu-Uk
http://statistics.data.gov.uk/doc/local-authority/00DA,Leeds City Council,City Development,Libraries  Arts And Heritage  ,Supplies and Services,Operational Materials,205,10-Jan-14,1402-00681,3.68,R,Amazon *mktplce Eu-Uk
http://statistics.data.gov.uk/doc/local-authority/00DA,Leeds City Council,City Development,Libraries  Arts And Heritage  ,Supplies and Services,Operational Materials,205,13-Jan-14,1402-00682,11.99,R,Amazon *mktplce Eu-Uk
http://statistics.data.gov.uk/doc/local-authority/00DA,Leeds City Council,City Development,Libraries  Arts And Heritage  ,Supplies and Services,Operational Materials,205,13-Jan-14,1402-00683,2.35,R,Amazon *mktplce Eu-Uk
http://statistics.data.gov.uk/doc/local-authority/00DA,Leeds City Council,City Development,Libraries  Arts And Heritage  ,Supplies and Services,Operational Materials,205,13-Jan-14,1402-00684,1.97,R,Amazon *mktplce Eu-Uk
http://statistics.data.gov.uk/doc/local-authority/00DA,Leeds City Council,City Development,Libraries  Arts And Heritage  ,Supplies and Services,Operational Materials,205,21-Jan-14,1402-00685,5.82,R,Amazon *mktplce Eu-Uk
http://statistics.data.gov.uk/doc/local-authority/00DA,Leeds City Council,City Development,Libraries  Arts And Heritage  ,Supplies and Services,Operational Materials,205,21-Jan-14,1402-00686,16.1,R,Amazon *mktplce Eu-Uk
http://statistics.data.gov.uk/doc/local-authority/00DA,Leeds City Council,City Development,Libraries  Arts And Heritage  ,Supplies and Services,Operational Materials,205,23-Jan-14,1402-00687,49.69,R,Amazon *mktplce Eu-Uk
http://statistics.data.gov.uk/doc/local-authority/00DA,Leeds City Council,City Development,Libraries  Arts And Heritage  ,Supplies and Services,Operational Materials,205,23-Jan-14,1402-00688,7.74,R,Amazon *mktplce Eu-Uk
http://statistics.data.gov.uk/doc/local-authority/00DA,Leeds City Council,City Development,Libraries  Arts And Heritage  ,Supplies and Services,Operational Materials,205,23-Jan-14,1402-00689,20.76,R,Amazon *mktplce Eu-Uk
http://statistics.data.gov.uk/doc/local-authority/00DA,Leeds City Council,City Development,Libraries  Arts And Heritage  ,Supplies and Services,Operational Materials,205,28-Jan-14,1402-00690,8.37,R,Amazon *mktplce Eu-Uk
http://statistics.data.gov.uk/doc/local-authority/00DA,Leeds City Council,City Development,Libraries  Arts And Heritage  ,Supplies and Services,Operational Materials,205,29-Jan-14,1402-00691,14.29,R,Amazon *mktplce Eu-Uk
http://statistics.data.gov.uk/doc/local-authority/00DA,Leeds City Council,City Development,Libraries  Arts And Heritage  ,Supplies and Services,Operational Materials,205,30-Jan-14,1402-00692,11.48,R,Amazon *mktplce Eu-Uk
http://statistics.data.gov.uk/doc/local-authority/00DA,Leeds City Council,City Development,Libraries  Arts And Heritage  ,Supplies and Services,Operational Materials,205,31-Jan-14,1402-00693,18.34,R,Amazon *mktplce Eu-Uk
http://statistics.data.gov.uk/doc/local-authority/00DA,Leeds City Council,City Development,Libraries  Arts And Heritage  ,Supplies and Services,Books & Audio-Visual Materials,206,06-Jan-14,1402-00694,-2.8,R,Amazon *mktplce Eu-Uk
http://statistics.data.gov.uk/doc/local-authority/00DA,Leeds City Council,City Development,Libraries  Arts And Heritage  ,Supplies and Services,Books & Audio-Visual Materials,206,10-Jan-14,1402-00695,2.8,R,Amazon *mktplce Eu-Uk
http://statistics.data.gov.uk/doc/local-authority/00DA,Leeds City Council,City Development,Libraries  Arts And Heritage  ,Supplies and Services,Books & Audio-Visual Materials,206,13-Jan-14,1402-00696,5.72,R,Amazon *mktplce Eu-Uk
http://statistics.data.gov.uk/doc/local-authority/00DA,Leeds City Council,City Development,Libraries  Arts And Heritage  ,Supplies and Services,Books & Audio-Visual Materials,206,13-Jan-14,1402-00697,10.78,R,Amazon *mktplce Eu-Uk
http://statistics.data.gov.uk/doc/local-authority/00DA,Leeds City Council,City Development,Libraries  Arts And Heritage  ,Supplies and Services,Books & Audio-Visual Materials,206,16-Jan-14,1402-00698,3.74,R,Amazon *mktplce Eu-Uk
http://statistics.data.gov.uk/doc/local-authority/00DA,Leeds City Council,City Development,Libraries  Arts And Heritage  ,Supplies and Services,Books & Audio-Visual Materials,206,17-Jan-14,1402-00699,17.38,R,Amazon *mktplce Eu-Uk
http://statistics.data.gov.uk/doc/local-authority/00DA,Leeds City Council,City Development,Libraries  Arts And Heritage  ,Supplies and Services,Books & Audio-Visual Materials,206,20-Jan-14,1402-00700,6.75,R,Amazon *mktplce Eu-Uk
http://statistics.data.gov.uk/doc/local-authority/00DA,Leeds City Council,City Development,Libraries  Arts And Heritage  ,Supplies and Services,Books & Audio-Visual Materials,206,31-Jan-14,1402-00701,13.7,R,Amazon *mktplce Eu-Uk
http://statistics.data.gov.uk/doc/local-authority/00DA,Leeds City Council,City Development,Libraries  Arts And Heritage  ,Supplies and Services,Office Consumables,210,13-Jan-14,1402-00702,4.86,R,Amazon *mktplce Eu-Uk
http://statistics.data.gov.uk/doc/local-authority/00DA,Leeds City Council,City Development,Libraries  Arts And Heritage  ,Supplies and Services,Office Consumables,210,13-Jan-14,1402-00703,3.04,R,Amazon *mktplce Eu-Uk
http://statistics.data.gov.uk/doc/local-authority/00DA,Leeds City Council,City Development,Sport And Active Recreation  ,Supplies and Services,Operational Materials,205,14-Jan-14,1402-00704,48.99,R,Amazon *mktplce Eu-Uk
http://statistics.data.gov.uk/doc/local-authority/00DA,Leeds City Council,City Development,Sport And Active Recreation  ,Supplies and Services,Books & Audio-Visual Materials,206,13-Jan-14,1402-00705,10.4,R,Amazon *mktplce Eu-Uk
http://statistics.data.gov.uk/doc/local-authority/00DA,Leeds City Council,Civic Enterprise Leeds,Commercial Services  ,Supplies and Services,Teaching Materials,203,17-Jan-14,1402-00706,61.97,R,Amazon *mktplce Eu-Uk
http://statistics.data.gov.uk/doc/local-authority/00DA,Leeds City Council,Civic Enterprise Leeds,Commercial Services  ,Supplies and Services,Teaching Materials,203,22-Jan-14,1402-00707,23.1,R,Amazon *mktplce Eu-Uk
http://statistics.data.gov.uk/doc/local-authority/00DA,Leeds City Council,Civic Enterprise Leeds,Commercial Services  ,Supplies and Services,Operational Materials,205,09-Jan-14,1402-00708,15.31,R,Amazon *mktplce Eu-Uk
http://statistics.data.gov.uk/doc/local-authority/00DA,Leeds City Council,Civic Enterprise Leeds,Commercial Services  ,Supplies and Services,Operational Materials,205,09-Jan-14,1402-00709,16.18,R,Amazon *mktplce Eu-Uk
http://statistics.data.gov.uk/doc/local-authority/00DA,Leeds City Council,Civic Enterprise Leeds,Facilities Management  ,Supplies and Services,Books & Audio-Visual Materials,206,10-Jan-14,1402-00710,17.37,R,Amazon *mktplce Eu-Uk
http://statistics.data.gov.uk/doc/local-authority/00DA,Leeds City Council,Environment & Housing,Environmental Action (West North West)  ,Supplies and Services,Teaching Materials,203,22-Jan-14,1402-00711,1.74,R,Amazon *mktplce Eu-Uk
http://statistics.data.gov.uk/doc/local-authority/00DA,Leeds City Council,Environment & Housing,Environmental Health  ,Supplies and Services,Teaching Materials,203,21-Jan-14,1402-00712,3.99,R,Amazon *mktplce Eu-Uk
http://statistics.data.gov.uk/doc/local-authority/00DA,Leeds City Council,Environment & Housing,Environmental Health  ,Supplies and Services,Books & Audio-Visual Materials,206,31-Jan-14,1402-00713,4.99,R,Amazon *mktplce Eu-Uk
http://statistics.data.gov.uk/doc/local-authority/00DA,Leeds City Council,Environment & Housing,HRA  ,Supplies and Services,Office Furniture & Equipment,201,03-Jan-14,1402-00714,57.99,R,Amazon *mktplce Eu-Uk
http://statistics.data.gov.uk/doc/local-authority/00DA,Leeds City Council,Environment & Housing,HRA  ,Supplies and Services,Office Furniture & Equipment,201,15-Jan-14,1402-00715,4.74,R,Amazon *mktplce Eu-Uk
http://statistics.data.gov.uk/doc/local-authority/00DA,Leeds City Council,Environment & Housing,HRA  ,Supplies and Services,Books & Audio-Visual Materials,206,21-Jan-14,1402-00716,57.99,R,Amazon *mktplce Eu-Uk
http://statistics.data.gov.uk/doc/local-authority/00DA,Leeds City Council,Environment & Housing,HRA  ,Supplies and Services,Office Consumables,210,17-Jan-14,1402-00717,1.69,R,Amazon *mktplce Eu-Uk
http://statistics.data.gov.uk/doc/local-authority/00DA,Leeds City Council,Environment & Housing,Parks And Countryside  ,Supplies and Services,Books & Audio-Visual Materials,206,13-Jan-14,1402-00718,35.22,R,Amazon *mktplce Eu-Uk
http://statistics.data.gov.uk/doc/local-authority/00DA,Leeds City Council,Environment & Housing,Parks And Countryside  ,Supplies and Services,Books & Audio-Visual Materials,206,13-Jan-14,1402-00719,38.79,R,Amazon *mktplce Eu-Uk
http://statistics.data.gov.uk/doc/local-authority/00DA,Leeds City Council,Environment & Housing,Parks And Countryside  ,Supplies and Services,Books & Audio-Visual Materials,206,17-Jan-14,1402-00720,10.79,R,Amazon *mktplce Eu-Uk
http://statistics.data.gov.uk/doc/local-authority/00DA,Leeds City Council,Environment & Housing,Parks And Countryside  ,Supplies and Services,Books & Audio-Visual Materials,206,22-Jan-14,1402-00721,20.59,R,Amazon *mktplce Eu-Uk
http://statistics.data.gov.uk/doc/local-authority/00DA,Leeds City Council,Legal And Democratic Services,Legal Services  ,Supplies and Services,Office Consumables,210,15-Jan-14,1402-00722,84.99,R,Amazon *mktplce Eu-Uk
http://statistics.data.gov.uk/doc/local-authority/00DA,Leeds City Council,Public Health,Child And Maternal Health  ,Supplies and Services,Office Consumables,210,22-Jan-14,1402-00723,17.92,R,Amazon *mktplce Eu-Uk
http://statistics.data.gov.uk/doc/local-authority/00DA,Leeds City Council,Strategy And Resources,Finance  ,Supplies and Services,Office Furniture & Equipment,201,03-Jan-14,1402-00724,65.98,R,Amazon *mktplce Eu-Uk
http://statistics.data.gov.uk/doc/local-authority/00DA,Leeds City Council,Strategy And Resources,Finance  ,Supplies and Services,Books & Audio-Visual Materials,206,24-Jan-14,1402-00725,297.59,R,Amazon *mktplce Eu-Uk
http://statistics.data.gov.uk/doc/local-authority/00DA,Leeds City Council,Strategy And Resources,Public Private Partnership Unit  ,Supplies and Services,Books & Audio-Visual Materials,206,08-Jan-14,1402-00726,41.25,R,Amazon *mktplce Eu-Uk
http://statistics.data.gov.uk/doc/local-authority/00DA,Leeds City Council,Strategy And Resources,Strategy And Improvement  ,Supplies and Services,Books & Audio-Visual Materials,206,14-Jan-14,1402-00727,72,R,Amazon *mktplce Eu-Uk
http://statistics.data.gov.uk/doc/local-authority/00DA,Leeds City Council,Strategy And Resources,Strategy And Improvement  ,Supplies and Services,Books & Audio-Visual Materials,206,31-Jan-14,1402-00728,3,R,Amazon *mktplce Eu-Uk
http://statistics.data.gov.uk/doc/local-authority/00DA,Leeds City Council,Strategy And Resources,Technology  ,Supplies and Services,Office Furniture & Equipment,201,15-Jan-14,1402-00729,29.58,R,Amazon *mktplce Eu-Uk
http://statistics.data.gov.uk/doc/local-authority/00DA,Leeds City Council,Strategy And Resources,Technology  ,Supplies and Services,Office Consumables,210,17-Jan-14,1402-00730,31.8,R,Amazon *mktplce Eu-Uk
http://statistics.data.gov.uk/doc/local-authority/00DA,Leeds City Council,Strategy And Resources,Technology  ,Supplies and Services,Office Consumables,210,21-Jan-14,1402-00731,14.34,R,Amazon *mktplce Eu-Uk
http://statistics.data.gov.uk/doc/local-authority/00DA,Leeds City Council,Strategy And Resources,Technology  ,Supplies and Services,Office Consumables,210,31-Jan-14,1402-00732,23.54,R,Amazon *mktplce Eu-Uk
http://statistics.data.gov.uk/doc/local-authority/00DA,Leeds City Council,Strategy And Resources,Technology  ,Supplies and Services,Computer Software & Equipment,214,14-Jan-14,1402-00733,38.34,R,Amazon *mktplce Eu-Uk
http://statistics.data.gov.uk/doc/local-authority/00DA,Leeds City Council,Strategy And Resources,Technology  ,Supplies and Services,Computer Software & Equipment,214,16-Jan-14,1402-00734,124.88,R,Amazon *mktplce Eu-Uk
http://statistics.data.gov.uk/doc/local-authority/00DA,Leeds City Council,Strategy And Resources,Technology  ,Supplies and Services,Computer Software & Equipment,214,31-Jan-14,1402-00735,14.95,R,Amazon *mktplce Eu-Uk
http://statistics.data.gov.uk/doc/local-authority/00DA,Leeds City Council,Children's Services,Learning  Skills & Universal Services  ,Supplies and Services,Teaching Materials,202,13-Jan-14,1402-00736,-2.49,R,Amazon Digital Dwnlds
http://statistics.data.gov.uk/doc/local-authority/00DA,Leeds City Council,Children's Services,Learning  Skills & Universal Services  ,Supplies and Services,Teaching Materials,202,13-Jan-14,1402-00737,2.49,R,Amazon Digital Dwnlds
http://statistics.data.gov.uk/doc/local-authority/00DA,Leeds City Council,Children's Services,Learning  Skills & Universal Services  ,Supplies and Services,Teaching Materials,202,06-Jan-14,1402-00738,27.54,R,Amazon Eu
http://statistics.data.gov.uk/doc/local-authority/00DA,Leeds City Council,Children's Services,Learning  Skills & Universal Services  ,Supplies and Services,Teaching Materials,202,13-Jan-14,1402-00739,13.48,R,Amazon Eu
http://statistics.data.gov.uk/doc/local-authority/00DA,Leeds City Council,Children's Services,Learning  Skills & Universal Services  ,Supplies and Services,Teaching Materials,202,13-Jan-14,1402-00740,6.47,R,Amazon Eu
http://statistics.data.gov.uk/doc/local-authority/00DA,Leeds City Council,Children's Services,Learning  Skills & Universal Services  ,Supplies and Services,Teaching Materials,202,13-Jan-14,1402-00741,5.89,R,Amazon Eu
http://statistics.data.gov.uk/doc/local-authority/00DA,Leeds City Council,Children's Services,Learning  Skills & Universal Services  ,Supplies and Services,Teaching Materials,202,13-Jan-14,1402-00742,5.89,R,Amazon Eu
http://statistics.data.gov.uk/doc/local-authority/00DA,Leeds City Council,Children's Services,Learning  Skills & Universal Services  ,Supplies and Services,Teaching Materials,202,17-Jan-14,1402-00743,11.58,R,Amazon Eu
http://statistics.data.gov.uk/doc/local-authority/00DA,Leeds City Council,Children's Services,Safeguarding Targeted & Specialist  ,Supplies and Services,Books & Audio-Visual Materials,206,29-Jan-14,1402-00744,21.49,R,Amazon Eu
http://statistics.data.gov.uk/doc/local-authority/00DA,Leeds City Council,Children's Services,Safeguarding  Targeted & Specialist  ,Supplies and Services,Teaching Materials,202,10-Jan-14,1402-00745,16.25,R,Amazon Eu
http://statistics.data.gov.uk/doc/local-authority/00DA,Leeds City Council,Children's Services,Safeguarding  Targeted & Specialist  ,Supplies and Services,Books & Audio-Visual Materials,206,10-Jan-14,1402-00746,11.14,R,Amazon Eu
http://statistics.data.gov.uk/doc/local-authority/00DA,Leeds City Council,Children's Services,Safeguarding  Targeted & Specialist  ,Supplies and Services,Books & Audio-Visual Materials,206,29-Jan-14,1402-00747,16.44,R,Amazon Eu
http://statistics.data.gov.uk/doc/local-authority/00DA,Leeds City Council,Children's Services,Safeguarding  Targeted & Specialist  ,Supplies and Services,Office Consumables,210,22-Jan-14,1402-00748,22.41,R,Amazon Eu
http://statistics.data.gov.uk/doc/local-authority/00DA,Leeds City Council,Children's Services,Safeguarding  Targeted & Specialist  ,Supplies and Services,Office Consumables,210,23-Jan-14,1402-00749,12.92,R,Amazon Eu
http://statistics.data.gov.uk/doc/local-authority/00DA,Leeds City Council,Children's Services,Safeguarding  Targeted & Specialist  ,Supplies and Services,Crockery  Cutlery & Utensils,221,21-Jan-14,1402-00750,13.84,R,Amazon Eu
http://statistics.data.gov.uk/doc/local-authority/00DA,Leeds City Council,Children's Services,Safeguarding  Targeted & Specialist  ,Supplies and Services,General Amenity for Client/Residents,285,08-Jan-14,1402-00751,-1.49,R,Amazon Eu
http://statistics.data.gov.uk/doc/local-authority/00DA,Leeds City Council,Citizens And Communities,Benefits  Welfare And Poverty  ,Supplies and Services,Office Furniture & Equipment,201,23-Jan-14,1402-00752,21.48,R,Amazon Eu
http://statistics.data.gov.uk/doc/local-authority/00DA,Leeds City Council,Citizens And Communities,Benefits  Welfare And Poverty  ,Supplies and Services,Computer Software & Equipment,214,07-Jan-14,1402-00753,53.94,R,Amazon Eu
http://statistics.data.gov.uk/doc/local-authority/00DA,Leeds City Council,Citizens And Communities,Locality Leadership  ,Supplies and Services,Office Consumables,210,08-Jan-14,1402-00754,23.05,R,Amazon Eu
http://statistics.data.gov.uk/doc/local-authority/00DA,Leeds City Council,City Development,Libraries  Arts And Heritage  ,Supplies and Services,Teaching Materials,202,21-Jan-14,1402-00755,67.59,R,Amazon Eu
http://statistics.data.gov.uk/doc/local-authority/00DA,Leeds City Council,City Development,Libraries  Arts And Heritage  ,Supplies and Services,Teaching Materials,203,20-Jan-14,1402-00756,278.98,R,Amazon Eu
http://statistics.data.gov.uk/doc/local-authority/00DA,Leeds City Council,City Development,Libraries  Arts And Heritage  ,Supplies and Services,Operational Materials,205,14-Jan-14,1402-00757,13.28,R,Amazon Eu
http://statistics.data.gov.uk/doc/local-authority/00DA,Leeds City Council,City Development,Libraries  Arts And Heritage  ,Supplies and Services,Books & Audio-Visual Materials,206,16-Jan-14,1402-00758,3.99,R,Amazon Eu
http://statistics.data.gov.uk/doc/local-authority/00DA,Leeds City Council,City Development,Libraries  Arts And Heritage  ,Supplies and Services,Books & Audio-Visual Materials,206,28-Jan-14,1402-00759,8.99,R,Amazon Eu
http://statistics.data.gov.uk/doc/local-authority/00DA,Leeds City Council,City Development,Libraries  Arts And Heritage  ,Supplies and Services,Books & Audio-Visual Materials,206,29-Jan-14,1402-00760,5.29,R,Amazon Eu
http://statistics.data.gov.uk/doc/local-authority/00DA,Leeds City Council,City Development,Libraries  Arts And Heritage  ,Supplies and Services,Books & Audio-Visual Materials,206,30-Jan-14,1402-00761,3.74,R,Amazon Eu
http://statistics.data.gov.uk/doc/local-authority/00DA,Leeds City Council,City Development,Libraries  Arts And Heritage  ,Supplies and Services,Office Consumables,210,13-Jan-14,1402-00762,16.49,R,Amazon Eu
http://statistics.data.gov.uk/doc/local-authority/00DA,Leeds City Council,City Development,Sport And Active Recreation  ,Premises,Cleaning Maintenance & Toiletries,127,06-Jan-14,1402-00763,89.99,R,Amazon Eu
http://statistics.data.gov.uk/doc/local-authority/00DA,Leeds City Council,Civic Enterprise Leeds,Facilities Management  ,Premises,Cleaning Maintenance & Toiletries,127,10-Jan-14,1402-00764,13.95,R,Amazon Eu
http://statistics.data.gov.uk/doc/local-authority/00DA,Leeds City Council,Environment & Housing,HRA  ,Supplies and Services,Office Consumables,210,03-Jan-14,1402-00765,29.4,R,Amazon Eu
http://statistics.data.gov.uk/doc/local-authority/00DA,Leeds City Council,Strategy And Resources,Strategy And Improvement  ,Supplies and Services,Office Consumables,210,09-Jan-14,1402-00766,30.11,R,Amazon Eu
http://statistics.data.gov.uk/doc/local-authority/00DA,Leeds City Council,Strategy And Resources,Strategy And Improvement  ,Supplies and Services,Office Consumables,210,09-Jan-14,1402-00767,44.3,R,Amazon Eu
http://statistics.data.gov.uk/doc/local-authority/00DA,Leeds City Council,Strategy And Resources,Strategy And Improvement  ,Supplies and Services,Office Consumables,210,24-Jan-14,1402-00768,21.28,R,Amazon Eu
http://statistics.data.gov.uk/doc/local-authority/00DA,Leeds City Council,Strategy And Resources,Strategy And Improvement  ,Supplies and Services,Office Consumables,210,31-Jan-14,1402-00769,69.99,R,Amazon Eu
http://statistics.data.gov.uk/doc/local-authority/00DA,Leeds City Council,Strategy And Resources,Technology  ,Supplies and Services,Computer Software & Equipment,214,29-Jan-14,1402-00770,67.98,R,Amazon Eu
http://statistics.data.gov.uk/doc/local-authority/00DA,Leeds City Council,Children's Services,Partnership Dev. & Business Support  ,Supplies and Services,Office Consumables,210,20-Jan-14,1402-00771,49,R,Amazon Prime
http://statistics.data.gov.uk/doc/local-authority/00DA,Leeds City Council,Strategy And Resources,Technology  ,Supplies and Services,Books & Audio-Visual Materials,206,02-Jan-14,1402-00772,49,R,Amazon Prime
http://statistics.data.gov.uk/doc/local-authority/00DA,Leeds City Council,Strategy And Resources,Technology  ,Supplies and Services,Books & Audio-Visual Materials,206,06-Jan-14,1402-00773,-49,R,Amazon Prime
http://statistics.data.gov.uk/doc/local-authority/00DA,Leeds City Council,City Development,Libraries  Arts & Heritage,Supplies and Services,Operational Materials,205,17-Feb-14,1402-00774,896.66,R,Ambius
http://statistics.data.gov.uk/doc/local-authority/00DA,Leeds City Council,Central & Corporate,Customer Services,Supplies and Services,Bought In Professional Services,277,10-Feb-14,1402-00775,30,R,Ame-It Interpreting Ltd
http://statistics.data.gov.uk/doc/local-authority/00DA,Leeds City Council,Central & Corporate,Customer Services,Supplies and Services,Bought In Professional Services,277,10-Feb-14,1402-00776,35,R,Ame-It Interpreting Ltd
http://statistics.data.gov.uk/doc/local-authority/00DA,Leeds City Council,Central & Corporate,Customer Services,Supplies and Services,Bought In Professional Services,277,10-Feb-14,1402-00777,40,R,Ame-It Interpreting Ltd
http://statistics.data.gov.uk/doc/local-authority/00DA,Leeds City Council,Adult Social Care,Services For Older People - 65 And Over,Third Party Payments,Residential,580,12-Feb-14,1402-00778,2139.44,R,Amelia House Care Home
http://statistics.data.gov.uk/doc/local-authority/00DA,Leeds City Council,City Development,Highways,Supplies and Services,Other Hired And Contracted Services,265,07-Feb-14,1402-00779,1250,R,Amelix Limited
http://statistics.data.gov.uk/doc/local-authority/00DA,Leeds City Council,Adult Social Care,Services For Older People - 65 And Over,Transfer Payments,Direct Payments,626,12-Feb-14,1402-00780,388.44,R,REDACTED PERSONAL DATA
http://statistics.data.gov.uk/doc/local-authority/00DA,Leeds City Council,Childrens Services,Safeguarding Targeted & Specialist,Supplies and Services,General Amenity For Clients/Residents,285,25-Feb-14,1402-00781,36.6,R,REDACTED PERSONAL DATA
http://statistics.data.gov.uk/doc/local-authority/00DA,Leeds City Council,Childrens Services,Safeguarding Targeted & Specialist,Transport,Public Transport Expenses,310,25-Feb-14,1402-00782,72.8,R,REDACTED PERSONAL DATA
http://statistics.data.gov.uk/doc/local-authority/00DA,Leeds City Council,Central & Corporate,Support And Facilities General Fund,Income,Admissions  Booking Fees & Ticket Sales,933,27-Feb-14,1402-00783,245,R,REDACTED PERSONAL DATA
http://statistics.data.gov.uk/doc/local-authority/00DA,Leeds City Council,Adult Social Care,Services For Older People - 65 And Over,Transfer Payments,Personalised Budgets,627,12-Feb-14,1402-00784,1469.48,R,REDACTED PERSONAL DATA
http://statistics.data.gov.uk/doc/local-authority/00DA,Leeds City Council,City Development,Economic Development,Supplies and Services,Publication And Promotion,267,21-Feb-14,1402-00785,14293.4,R,Amplitude A V Services
http://statistics.data.gov.uk/doc/local-authority/00DA,Leeds City Council,Central & Corporate,Human Resources,Supplies and Services,Other Hired And Contracted Services,265,21-Feb-14,1402-00786,202.45,R,Amplivox Ltd
http://statistics.data.gov.uk/doc/local-authority/00DA,Leeds City Council as Accountable Body,Social Services Pooled Budgets,Jcs For People With Learning Disabilitie,Transfer Payments,Personal Budgets,627,12-Feb-14,1402-00787,2531.04,R,REDACTED PERSONAL DATA
http://statistics.data.gov.uk/doc/local-authority/00DA,Leeds City Council as Accountable Body,Social Services Pooled Budgets,Jcs For People With Learning Disabilitie,Transfer Payments,Personal Budgets,627,12-Feb-14,1402-00788,354.48,R,REDACTED PERSONAL DATA
http://statistics.data.gov.uk/doc/local-authority/00DA,Leeds City Council,Childrens Services,Safeguarding Targeted & Specialist,Transfer Payments,16 Plus Top Up Allowance,625,07-Feb-14,1402-00789,10,R,REDACTED PERSONAL DATA
http://statistics.data.gov.uk/doc/local-authority/00DA,Leeds City Council as Accountable Body,Social Services Pooled Budgets,Jcs For People With Learning Disabilitie,Transfer Payments,Personal Budgets,627,12-Feb-14,1402-00790,549.48,R,REDACTED PERSONAL DATA
http://statistics.data.gov.uk/doc/local-authority/00DA,Leeds City Council,Adult Social Care,Services For Adults Under 65 Mental/Dis,Transfer Payments,Personalised Budgets,627,12-Feb-14,1402-00791,532.72,R,REDACTED PERSONAL DATA
http://statistics.data.gov.uk/doc/local-authority/00DA,Leeds City Council,Adult Social Care,Services For Older People Under 65 P/Dis,Transfer Payments,Direct Payments,626,12-Feb-14,1402-00792,1124.72,R,REDACTED PERSONAL DATA
http://statistics.data.gov.uk/doc/local-authority/00DA,Leeds City Council as Accountable Body,Social Services Pooled Budgets,Jcs For People With Learning Disabilitie,Transfer Payments,Personal Budgets,627,12-Feb-14,1402-00793,2149.13,R,REDACTED PERSONAL DATA
http://statistics.data.gov.uk/doc/local-authority/00DA,Leeds City Council,Adult Social Care,Services For Adults Under 65 Mental/Dis,Third Party Payments,Home Care,568,21-Feb-14,1402-00794,513.8,R,Anchor Trust
http://statistics.data.gov.uk/doc/local-authority/00DA,Leeds City Council,Adult Social Care,Services For Older People - 65 And Over,Third Party Payments,Payments To Voluntary Organisations,561,18-Feb-14,1402-00795,9167.48,R,Anchor Trust
http://statistics.data.gov.uk/doc/local-authority/00DA,Leeds City Council,Adult Social Care,Services For Older People - 65 And Over,Third Party Payments,Nursing Home,570,12-Feb-14,1402-00796,36064.54,R,Anchor Trust
http://statistics.data.gov.uk/doc/local-authority/00DA,Leeds City Council,Adult Social Care,Services For Older People - 65 And Over,Third Party Payments,Residential Care Dementia,571,12-Feb-14,1402-00797,4983,R,Anchor Trust
http://statistics.data.gov.uk/doc/local-authority/00DA,Leeds City Council,Adult Social Care,Services For Older People - 65 And Over,Third Party Payments,Nursing Care Dementia,574,12-Feb-14,1402-00798,3186,R,Anchor Trust
http://statistics.data.gov.uk/doc/local-authority/00DA,Leeds City Council,Adult Social Care,Services For Older People - 65 And Over,Third Party Payments,Nursing Care Dementia,574,12-Feb-14,1402-00799,1140.04,R,Anchor Trust
http://statistics.data.gov.uk/doc/local-authority/00DA,Leeds City Council,Adult Social Care,Services For Older People - 65 And Over,Third Party Payments,Residential,580,12-Feb-14,1402-00800,4399.62,R,Anchor Trust
http://statistics.data.gov.uk/doc/local-authority/00DA,Leeds City Council,Adult Social Care,Services For Older People - 65 And Over,Third Party Payments,Residential,580,12-Feb-14,1402-00801,4783.99,R,Anchor Trust
http://statistics.data.gov.uk/doc/local-authority/00DA,Leeds City Council,Adult Social Care,Services For Older People - 65 And Over,Third Party Payments,Residential,580,12-Feb-14,1402-00802,4016.15,R,Anchor Trust
http://statistics.data.gov.uk/doc/local-authority/00DA,Leeds City Council,Adult Social Care,Services For Older People Under 65 P/Dis,Third Party Payments,Nursing Home,570,12-Feb-14,1402-00803,6806.79,R,Anchor Trust
http://statistics.data.gov.uk/doc/local-authority/00DA,Leeds City Council as Accountable Body,Social Services Pooled Budgets,Jcs For People With Learning Disabilitie,Third Party Payments,Residential,580,21-Feb-14,1402-00804,649.32,R,Anchor Trust
http://statistics.data.gov.uk/doc/local-authority/00DA,Leeds City Council,Adult Social Care,Services For Older People - 65 And Over,Third Party Payments,Residential Care Dementia,571,12-Feb-14,1402-00805,19759.92,R,Anchor Trust Simon Marks Court
http://statistics.data.gov.uk/doc/local-authority/00DA,Leeds City Council,Adult Social Care,Services For Older People - 65 And Over,Third Party Payments,Residential,580,12-Feb-14,1402-00806,8716.4,R,Anchor Trust Simon Marks Court
http://statistics.data.gov.uk/doc/local-authority/00DA,Leeds City Council,Adult Social Care,Services For Older People - 65 And Over,Transfer Payments,Personalised Budgets,627,12-Feb-14,1402-00807,100.36,R,REDACTED PERSONAL DATA
http://statistics.data.gov.uk/doc/local-authority/00DA,Leeds City Council,Adult Social Care,Services For Older People Under 65 P/Dis,Transfer Payments,Personalised Budgets,627,12-Feb-14,1402-00808,603.6,R,REDACTED PERSONAL DATA
http://statistics.data.gov.uk/doc/local-authority/00DA,Leeds City Council,Childrens Services,Learning Skills & Universal,Third Party Payments,Services Rendered By Other Organisations,511,17-Feb-14,1402-00809,15,R,Andrea Gray
http://statistics.data.gov.uk/doc/local-authority/00DA,Leeds City Council,Adult Social Care,Services For Adults Under 65 Mental/Dis,Transfer Payments,Personalised Budgets,627,12-Feb-14,1402-00810,1059.16,R,REDACTED PERSONAL DATA
http://statistics.data.gov.uk/doc/local-authority/00DA,Leeds City Council as Accountable Body,Social Services Pooled Budgets,Jcs For People With Learning Disabilitie,Transfer Payments,Personal Budgets,627,12-Feb-14,1402-00811,690.32,R,REDACTED PERSONAL DATA
http://statistics.data.gov.uk/doc/local-authority/00DA,Leeds City Council as Accountable Body,Social Services Pooled Budgets,Jcs For People With Learning Disabilitie,Transfer Payments,Personal Budgets,627,12-Feb-14,1402-00812,837.4,R,REDACTED PERSONAL DATA
http://statistics.data.gov.uk/doc/local-authority/00DA,Leeds City Council,Adult Social Care,Services For Older People Under 65 P/Dis,Transfer Payments,Direct Payments,626,12-Feb-14,1402-00813,5395.97,R,REDACTED PERSONAL DATA
http://statistics.data.gov.uk/doc/local-authority/00DA,Leeds City Council,Adult Social Care,Services For Older People Under 65 P/Dis,Transfer Payments,Personalised Budgets,627,12-Feb-14,1402-00814,849.04,R,REDACTED PERSONAL DATA
http://statistics.data.gov.uk/doc/local-authority/00DA,Leeds City Council,Adult Social Care,Services For Older People Under 65 P/Dis,Transfer Payments,Direct Payments,626,12-Feb-14,1402-00815,655.45,R,REDACTED PERSONAL DATA
http://statistics.data.gov.uk/doc/local-authority/00DA,Leeds City Council,Adult Social Care,Services For Older People Under 65 P/Dis,Transfer Payments,Direct Payments,626,12-Feb-14,1402-00816,402.8,R,REDACTED PERSONAL DATA
http://statistics.data.gov.uk/doc/local-authority/00DA,Leeds City Council,Adult Social Care,Services For Older People Under 65 P/Dis,Transfer Payments,Personalised Budgets,627,12-Feb-14,1402-00817,1000,R,REDACTED PERSONAL DATA
http://statistics.data.gov.uk/doc/local-authority/00DA,Leeds City Council,Central & Corporate,Commercial Services Trading Services,Employees,Best Value Training,70,03-Feb-14,1402-00818,1115,R,Andrew Ives
http://statistics.data.gov.uk/doc/local-authority/00DA,Leeds City Council as Accountable Body,Social Services Pooled Budgets,Jcs For People With Learning Disabilitie,Transfer Payments,Direct Payments,626,12-Feb-14,1402-00819,552.32,R,REDACTED PERSONAL DATA
http://statistics.data.gov.uk/doc/local-authority/00DA,Leeds City Council,Childrens Services,Safeguarding Targeted & Specialist,Support Services,Legal Disbursements,411,20-Feb-14,1402-00820,195.82,R,Andrew Kenyon
http://statistics.data.gov.uk/doc/local-authority/00DA,Leeds City Council,Adult Social Care,Services For Older People Under 65 P/Dis,Transfer Payments,Personalised Budgets,627,12-Feb-14,1402-00821,73.15,R,REDACTED PERSONAL DATA
http://statistics.data.gov.uk/doc/local-authority/00DA,Leeds City Council,Environment & Housing,Hra  ,Supplies and Services,Other Hired And Contracted Services,265,13-Jan-14,1402-00822,298.5,R,Andrew Miller Buil
http://statistics.data.gov.uk/doc/local-authority/00DA,Leeds City Council,Environment & Housing,Hra  ,Supplies and Services,Other Hired And Contracted Services,265,13-Jan-14,1402-00823,220.8,R,Andrew Miller Buil
http://statistics.data.gov.uk/doc/local-authority/00DA,Leeds City Council,Environment & Housing,Hra  ,Supplies and Services,Other Hired And Contracted Services,265,13-Jan-14,1402-00824,151.8,R,Andrew Miller Buil
http://statistics.data.gov.uk/doc/local-authority/00DA,Leeds City Council,Environment & Housing,Hra  ,Supplies and Services,Other Hired And Contracted Services,265,13-Jan-14,1402-00825,215.7,R,Andrew Miller Buil
http://statistics.data.gov.uk/doc/local-authority/00DA,Leeds City Council,Environment & Housing,Hra  ,Supplies and Services,Other Hired And Contracted Services,265,13-Jan-14,1402-00826,188.1,R,Andrew Miller Buil
http://statistics.data.gov.uk/doc/local-authority/00DA,Leeds City Council,Environment & Housing,Hra  ,Supplies and Services,Other Hired And Contracted Services,265,13-Jan-14,1402-00827,195.3,R,Andrew Miller Buil
http://statistics.data.gov.uk/doc/local-authority/00DA,Leeds City Council,Environment & Housing,Hra  ,Supplies and Services,Other Hired And Contracted Services,265,16-Jan-14,1402-00828,136.7,R,Andrew Miller Buil
http://statistics.data.gov.uk/doc/local-authority/00DA,Leeds City Council,Environment & Housing,Hra  ,Supplies and Services,Other Hired And Contracted Services,265,22-Jan-14,1402-00829,215.4,R,Andrew Miller Buil
http://statistics.data.gov.uk/doc/local-authority/00DA,Leeds City Council,Environment & Housing,Hra  ,Supplies and Services,Other Hired And Contracted Services,265,22-Jan-14,1402-00830,96.6,R,Andrew Miller Buil
http://statistics.data.gov.uk/doc/local-authority/00DA,Leeds City Council,Environment & Housing,Hra,Supplies and Services,Other Hired And Contracted Services,265,05-Feb-14,1402-00831,1750,R,Andrew Miller Builders
http://statistics.data.gov.uk/doc/local-authority/00DA,Leeds City Council,City Development,Libraries  Arts & Heritage,Supplies and Services,Other Hired And Contracted Services,265,21-Feb-14,1402-00832,350,R,Andrew Newbound
http://statistics.data.gov.uk/doc/local-authority/00DA,Leeds City Council,Adult Social Care,Services For Older People Under 65 P/Dis,Transfer Payments,Personalised Budgets,627,12-Feb-14,1402-00833,505.6,R,REDACTED PERSONAL DATA
http://statistics.data.gov.uk/doc/local-authority/00DA,Leeds City Council,Adult Social Care,Services For Older People Under 65 P/Dis,Transfer Payments,Direct Payments,626,12-Feb-14,1402-00834,2021.52,R,REDACTED PERSONAL DATA
http://statistics.data.gov.uk/doc/local-authority/00DA,Leeds City Council,Adult Social Care,Services For Older People Under 65 P/Dis,Transfer Payments,Personalised Budgets,627,12-Feb-14,1402-00835,655.68,R,REDACTED PERSONAL DATA
http://statistics.data.gov.uk/doc/local-authority/00DA,Leeds City Council as Accountable Body,Social Services Pooled Budgets,Jcs For People With Learning Disabilitie,Transfer Payments,Direct Payments,626,12-Feb-14,1402-00836,866.12,R,REDACTED PERSONAL DATA
http://statistics.data.gov.uk/doc/local-authority/00DA,Leeds City Council,Adult Social Care,Services For Older People Under 65 P/Dis,Transfer Payments,Personalised Budgets,627,12-Feb-14,1402-00837,2108.56,R,REDACTED PERSONAL DATA
http://statistics.data.gov.uk/doc/local-authority/00DA,Leeds City Council,Environment & Housing,Hra,Premises,General Maintenance,104,20-Feb-14,1402-00838,100,R,REDACTED PERSONAL DATA
http://statistics.data.gov.uk/doc/local-authority/00DA,Leeds City Council,Adult Social Care,Services For Older People Under 65 P/Dis,Transfer Payments,Personalised Budgets,627,13-Feb-14,1402-00839,199.36,R,REDACTED PERSONAL DATA
http://statistics.data.gov.uk/doc/local-authority/00DA,Leeds City Council,City Development,Libraries  Arts & Heritage,Supplies and Services,Non-Recurring Grants,227,17-Feb-14,1402-00840,250,R,Angel Of Youth
http://statistics.data.gov.uk/doc/local-authority/00DA,Leeds City Council,City Development,Libraries  Arts & Heritage,Supplies and Services,Other Hired And Contracted Services,265,28-Feb-14,1402-00841,5000,R,Angel Of Youth
http://statistics.data.gov.uk/doc/local-authority/00DA,Leeds City Council as Accountable Body,Social Services Pooled Budgets,Jcs For People With Learning Disabilitie,Transfer Payments,Direct Payments,626,12-Feb-14,1402-00842,433.6,R,REDACTED PERSONAL DATA
http://statistics.data.gov.uk/doc/local-authority/00DA,Leeds City Council,City Development,Economic Development,Supplies and Services,Other Hired And Contracted Services,265,07-Feb-14,1402-00843,34.48,R,Angel Springs Ltd
http://statistics.data.gov.uk/doc/local-authority/00DA,Leeds City Council,Adult Social Care,Services For Older People Under 65 P/Dis,Transfer Payments,Personalised Budgets,627,12-Feb-14,1402-00844,567,R,REDACTED PERSONAL DATA
http://statistics.data.gov.uk/doc/local-authority/00DA,Leeds City Council,Adult Social Care,Services For Older People Under 65 P/Dis,Transfer Payments,Personalised Budgets,627,12-Feb-14,1402-00845,476.16,R,REDACTED PERSONAL DATA
http://statistics.data.gov.uk/doc/local-authority/00DA,Leeds City Council,Childrens Services,Safeguarding Targeted & Specialist,Transport,Car & Motorcycle Allowances,311,07-Feb-14,1402-00846,32.4,R,REDACTED PERSONAL DATA
http://statistics.data.gov.uk/doc/local-authority/00DA,Leeds City Council as Accountable Body,Social Services Pooled Budgets,Jcs For People With Learning Disabilitie,Transfer Payments,Direct Payments,626,12-Feb-14,1402-00847,687.48,R,REDACTED PERSONAL DATA
http://statistics.data.gov.uk/doc/local-authority/00DA,Leeds City Council,Adult Social Care,Services For Older People Under 65 P/Dis,Transfer Payments,Personalised Budgets,627,12-Feb-14,1402-00848,531.68,R,REDACTED PERSONAL DATA
http://statistics.data.gov.uk/doc/local-authority/00DA,Leeds City Council,Adult Social Care,Services For Adults Under 65 Mental/Dis,Third Party Payments,Home Care,568,14-Feb-14,1402-00849,1092,R,Angels Home Care Services
http://statistics.data.gov.uk/doc/local-authority/00DA,Leeds City Council,Adult Social Care,Services For Older People - 65 And Over,Third Party Payments,Home Care,568,14-Feb-14,1402-00850,3109.2,R,Angels Home Care Services
http://statistics.data.gov.uk/doc/local-authority/00DA,Leeds City Council,Adult Social Care,Services For Older People - 65 And Over,Third Party Payments,Home Care,568,14-Feb-14,1402-00851,3430,R,Angels Home Care Services
http://statistics.data.gov.uk/doc/local-authority/00DA,Leeds City Council,Adult Social Care,Services For Older People - 65 And Over,Third Party Payments,Home Care,568,14-Feb-14,1402-00852,238,R,Angels Home Care Services
http://statistics.data.gov.uk/doc/local-authority/00DA,Leeds City Council,Adult Social Care,Services For Older People - 65 And Over,Third Party Payments,Home Care,568,14-Feb-14,1402-00853,2142,R,Angels Home Care Services
http://statistics.data.gov.uk/doc/local-authority/00DA,Leeds City Council,Adult Social Care,Services For Older People - 65 And Over,Third Party Payments,Home Care,568,14-Feb-14,1402-00854,1830.5,R,Angels Home Care Services
http://statistics.data.gov.uk/doc/local-authority/00DA,Leeds City Council,Adult Social Care,Services For Older People Under 65 P/Dis,Third Party Payments,Home Care,568,14-Feb-14,1402-00855,388.8,R,Angels Home Care Services
http://statistics.data.gov.uk/doc/local-authority/00DA,Leeds City Council,Adult Social Care,Services For Older People Under 65 P/Dis,Third Party Payments,Home Care,568,14-Feb-14,1402-00856,1617,R,Angels Home Care Services
http://statistics.data.gov.uk/doc/local-authority/00DA,Leeds City Council,Childrens Services,Learning Skills & Universal,Third Party Payments,Services Rendered By Other Organisations,511,14-Feb-14,1402-00857,1002,R,Angels Nursery
http://statistics.data.gov.uk/doc/local-authority/00DA,Leeds City Council,Childrens Services,Learning Skills & Universal,Third Party Payments,Services Rendered By Other Organisations,511,14-Feb-14,1402-00858,1222.2,R,Angels Nursery
http://statistics.data.gov.uk/doc/local-authority/00DA,Leeds City Council,City Development,Libraries  Arts And Heritage  ,Supplies and Services,Operational Materials,205,16-Jan-14,1402-00859,54.09,R,Anglo Brands Ltd
http://statistics.data.gov.uk/doc/local-authority/00DA,Leeds City Council,Adult Social Care,Services For Older People Under 65 P/Dis,Transfer Payments,Personalised Budgets,627,12-Feb-14,1402-00860,438.64,R,REDACTED PERSONAL DATA
http://statistics.data.gov.uk/doc/local-authority/00DA,Leeds City Council,Adult Social Care,Services For Older People Under 65 P/Dis,Transfer Payments,Direct Payments,626,12-Feb-14,1402-00861,642.24,R,REDACTED PERSONAL DATA
http://statistics.data.gov.uk/doc/local-authority/00DA,Leeds City Council,Adult Social Care,Services For Older People Under 65 P/Dis,Transfer Payments,Direct Payments,626,12-Feb-14,1402-00862,-2558.37,R,REDACTED PERSONAL DATA
http://statistics.data.gov.uk/doc/local-authority/00DA,Leeds City Council,Adult Social Care,Services For Older People Under 65 P/Dis,Transfer Payments,Personalised Budgets,627,12-Feb-14,1402-00863,4537.74,R,REDACTED PERSONAL DATA
http://statistics.data.gov.uk/doc/local-authority/00DA,Leeds City Council,Childrens Services,Safeguarding Targeted & Specialist,Support Services,Legal Disbursements,411,12-Feb-14,1402-00864,183.59,R,Ann M Mortimer
http://statistics.data.gov.uk/doc/local-authority/00DA,Leeds City Council,Childrens Services,Safeguarding Targeted & Specialist,Support Services,Legal Disbursements,411,03-Feb-14,1402-00865,308.04,R,Ann M Mortimer
http://statistics.data.gov.uk/doc/local-authority/00DA,Leeds City Council,Adult Social Care,Services For Older People - 65 And Over,Transfer Payments,Direct Payments,626,12-Feb-14,1402-00866,643.32,R,REDACTED PERSONAL DATA
http://statistics.data.gov.uk/doc/local-authority/00DA,Leeds City Council,Adult Social Care,Services For Older People Under 65 P/Dis,Transfer Payments,Direct Payments,626,12-Feb-14,1402-00867,1969.16,R,REDACTED PERSONAL DATA
http://statistics.data.gov.uk/doc/local-authority/00DA,Leeds City Council,Environment & Housing,Hra,Premises,General Maintenance,104,13-Feb-14,1402-00868,100,R,REDACTED PERSONAL DATA
http://statistics.data.gov.uk/doc/local-authority/00DA,Leeds City Council,Adult Social Care,Services For Older People Under 65 P/Dis,Transfer Payments,Personalised Budgets,627,12-Feb-14,1402-00869,893.88,R,REDACTED PERSONAL DATA
http://statistics.data.gov.uk/doc/local-authority/00DA,Leeds City Council,Adult Social Care,Services For Adults Under 65 Mental/Dis,Transfer Payments,Personalised Budgets,627,12-Feb-14,1402-00870,941.92,R,REDACTED PERSONAL DATA
http://statistics.data.gov.uk/doc/local-authority/00DA,Leeds City Council,Adult Social Care,Services For Adults Under 65 Mental/Dis,Third Party Payments,Payments To Voluntary Organisations,561,06-Feb-14,1402-00871,15,R,REDACTED PERSONAL DATA
http://statistics.data.gov.uk/doc/local-authority/00DA,Leeds City Council,Central & Corporate,Customer Services,Supplies and Services,Other Hired And Contracted Services,265,04-Feb-14,1402-00872,990.04,R,Anna West
http://statistics.data.gov.uk/doc/local-authority/00DA,Leeds City Council,Adult Social Care,Services For Older People - 65 And Over,Transfer Payments,Personalised Budgets,627,12-Feb-14,1402-00873,98,R,REDACTED PERSONAL DATA
http://statistics.data.gov.uk/doc/local-authority/00DA,Leeds City Council,City Development,Libraries  Arts & Heritage,Supplies and Services,Bought In Professional Services,277,14-Feb-14,1402-00874,50,R,Anne Goodchild
http://statistics.data.gov.uk/doc/local-authority/00DA,Leeds City Council,Adult Social Care,Services For Older People Under 65 P/Dis,Transfer Payments,Personalised Budgets,627,12-Feb-14,1402-00875,168.32,R,REDACTED PERSONAL DATA
http://statistics.data.gov.uk/doc/local-authority/00DA,Leeds City Council,City Development,Libraries  Arts & Heritage,Supplies and Services,Other Hired And Contracted Services,265,27-Feb-14,1402-00876,698.4,R,Anne Harding Training
http://statistics.data.gov.uk/doc/local-authority/00DA,Leeds City Council,Childrens Services,Safeguarding Targeted & Specialist,Supplies and Services,General Amenity For Clients/Residents,285,07-Feb-14,1402-00877,12.7,R,REDACTED PERSONAL DATA
http://statistics.data.gov.uk/doc/local-authority/00DA,Leeds City Council,Childrens Services,Safeguarding Targeted & Specialist,Transport,Public Transport Expenses,310,07-Feb-14,1402-00878,11.6,R,REDACTED PERSONAL DATA
http://statistics.data.gov.uk/doc/local-authority/00DA,Leeds City Council,Childrens Services,Safeguarding Targeted & Specialist,Supplies and Services,Telephones,213,20-Feb-14,1402-00879,10,R,REDACTED PERSONAL DATA
http://statistics.data.gov.uk/doc/local-authority/00DA,Leeds City Council,Childrens Services,Safeguarding Targeted & Specialist,Transport,Car & Motorcycle Allowances,311,20-Feb-14,1402-00880,17.4,R,REDACTED PERSONAL DATA
